Body Name,Transaction Number,Account Code Description,Expenses Type,Service Code,Service Area Categorisation,Supplier Name,Date,Amount
Bath & North East Somerset Council,80013802,7S1,Electricity,P07,Community Resources,BIZZENERGY,29/08/2008,471.04
Bath & North East Somerset Council,80012868,7S2,Electricity,P07,Community Resources,BIZZENERGY,30/10/2008,461.46
Bath & North East Somerset Council,80015288,LM6,Contracts,P07,Community Resources,G4S CASH SERVICES UK LIMITED,16/03/2011,"1,315.00"
Bath & North East Somerset Council,80009658,7S1,Supported Living,P03,Wellbeing,S.W.A.L.L.O.W. LTD,01/08/2011,2.50
Bath & North East Somerset Council,80009660,LK4,Home Care,P03,Wellbeing,RV CARE SOMERSET LTD,01/08/2011,4.15
Bath & North East Somerset Council,80009660,7S1,Individualised Budget,P03,Wellbeing,PHOENIX (SW) LTD,01/08/2011,22.50
Bath & North East Somerset Council,80009661,LK4,Individualised Budget,P03,Wellbeing,PHOENIX (SW) LTD,01/08/2011,22.50
Bath & North East Somerset Council,80009661,7S1,Individualised Budget,P03,Wellbeing,SHAW TRUST LTD,01/08/2011,26.89
Bath & North East Somerset Council,80009662,LK4,Individualised Budget,P03,Wellbeing,SHAW TRUST LTD,01/08/2011,26.89
Bath & North East Somerset Council,80009663,7S1,Home Care,P03,Wellbeing,SAFE & SOUND HOMECARE SERVICES,01/08/2011,30.00
Bath & North East Somerset Council,80009664,LK4,Home Care,P03,Wellbeing,SAFE & SOUND HOMECARE SERVICES,01/08/2011,30.00
Bath & North East Somerset Council,80009664,7S1,Individualised Budget,P03,Wellbeing,REDACTED,01/08/2011,34.00
Bath & North East Somerset Council,80009665,LK4,Individualised Budget,P03,Wellbeing,REDACTED,01/08/2011,34.00
Bath & North East Somerset Council,80009665,7S1,Individualised Budget,P03,Wellbeing,PHOENIX (SW) LTD,01/08/2011,37.69
Bath & North East Somerset Council,80009666,LK4,Individualised Budget,P03,Wellbeing,PHOENIX (SW) LTD,01/08/2011,37.69
Bath & North East Somerset Council,80009666,7S1,Individualised Budget,P03,Wellbeing,SHAW TRUST LTD,01/08/2011,38.73
Bath & North East Somerset Council,80009667,LK4,Individualised Budget,P03,Wellbeing,SHAW TRUST LTD,01/08/2011,38.73
Bath & North East Somerset Council,80009667,7S1,Direct Payments,P02,"Early Years, Children & Youth",SHAW TRUST LTD,01/08/2011,39.18
Bath & North East Somerset Council,80009668,LK4,Direct Payments,P02,"Early Years, Children & Youth",SHAW TRUST LTD,01/08/2011,39.18
Bath & North East Somerset Council,80009668,7S1,Direct Payments,P02,"Early Years, Children & Youth",SHAW TRUST LTD,01/08/2011,41.16
Bath & North East Somerset Council,80009669,LK4,Direct Payments,P02,"Early Years, Children & Youth",SHAW TRUST LTD,01/08/2011,41.16
Bath & North East Somerset Council,80009669,7S1,Direct Payments,P02,"Early Years, Children & Youth",SHAW TRUST LTD,01/08/2011,46.20
Bath & North East Somerset Council,80009670,LK4,Direct Payments,P02,"Early Years, Children & Youth",SHAW TRUST LTD,01/08/2011,46.20
Bath & North East Somerset Council,80009670,7S1,Direct Payments,P03,Wellbeing,SHAW TRUST LTD,01/08/2011,49.99
Bath & North East Somerset Council,80009671,LK4,Direct Payments,P03,Wellbeing,SHAW TRUST LTD,01/08/2011,49.99
Bath & North East Somerset Council,80009671,7S1,Supported Living,P03,Wellbeing,ARCH CARE SERVICES,01/08/2011,54.00
Bath & North East Somerset Council,80009672,7S1,Supported Living,P03,Wellbeing,ARCH CARE SERVICES,01/08/2011,54.00
Bath & North East Somerset Council,80009673,LK4,Individualised Budget,P03,Wellbeing,REDACTED,01/08/2011,59.71
Bath & North East Somerset Council,80009675,LK4,Individualised Budget,P03,Wellbeing,REDACTED,01/08/2011,59.71
Bath & North East Somerset Council,80009675,7S1,Individualised Budget,P03,Wellbeing,REDACTED,01/08/2011,59.71
Bath & North East Somerset Council,80009676,LK4,Direct Payments,P02,"Early Years, Children & Youth",SHAW TRUST LTD,01/08/2011,62.34
Bath & North East Somerset Council,80009676,7S1,Direct Payments,P02,"Early Years, Children & Youth",SHAW TRUST LTD,01/08/2011,62.34
Bath & North East Somerset Council,80009678,LK4,Direct Payments,P02,"Early Years, Children & Youth",SHAW TRUST LTD,01/08/2011,62.34
Bath & North East Somerset Council,80009678,7S1,Direct Payments,P02,"Early Years, Children & Youth",SHAW TRUST LTD,01/08/2011,62.34
Bath & North East Somerset Council,80009679,LK4,Direct Payments,P03,Wellbeing,SHAW TRUST LTD,01/08/2011,66.35
Bath & North East Somerset Council,80009679,7S1,Direct Payments,P03,Wellbeing,SHAW TRUST LTD,01/08/2011,66.35
Bath & North East Somerset Council,80009680,LK4,Direct Payments,P02,"Early Years, Children & Youth",SHAW TRUST LTD,01/08/2011,66.78
Bath & North East Somerset Council,80009680,7S1,Direct Payments,P02,"Early Years, Children & Youth",SHAW TRUST LTD,01/08/2011,66.78
Bath & North East Somerset Council,80009681,LK4,Supported Living,P03,Wellbeing,THREE TREES COMMUNITY SUPPORT LTD,01/08/2011,68.34
Bath & North East Somerset Council,80009681,7S1,Individualised Budget,P03,Wellbeing,SHAW TRUST LTD,01/08/2011,69.10
Bath & North East Somerset Council,80009682,LK4,Individualised Budget,P03,Wellbeing,SHAW TRUST LTD,01/08/2011,69.10
Bath & North East Somerset Council,80009682,7S1,Home Care,P03,Wellbeing,MCKINNONS PRIVATE HOME CARE AGENCY,01/08/2011,73.80
Bath & North East Somerset Council,80009684,LK4,Home Care,P03,Wellbeing,MCKINNONS PRIVATE HOME CARE AGENCY,01/08/2011,73.80
Bath & North East Somerset Council,80009684,7S1,Individualised Budget,P03,Wellbeing,SHAW TRUST LTD,01/08/2011,75.39
Bath & North East Somerset Council,80009685,LK4,Individualised Budget,P03,Wellbeing,SHAW TRUST LTD,01/08/2011,75.39
Bath & North East Somerset Council,80009685,7S1,Individualised Budget,P03,Wellbeing,SHAW TRUST LTD,01/08/2011,78.99
Bath & North East Somerset Council,80009686,LK4,Individualised Budget,P03,Wellbeing,SHAW TRUST LTD,01/08/2011,78.99
Bath & North East Somerset Council,80009686,7S1,Direct Payments,P02,"Early Years, Children & Youth",SHAW TRUST LTD,01/08/2011,79.02
Bath & North East Somerset Council,80009687,LK4,Direct Payments,P02,"Early Years, Children & Youth",SHAW TRUST LTD,01/08/2011,79.02
Bath & North East Somerset Council,80009687,7S1,Direct Payments,P03,Wellbeing,SHAW TRUST LTD,01/08/2011,80.57
Bath & North East Somerset Council,80009688,LK4,Direct Payments,P03,Wellbeing,SHAW TRUST LTD,01/08/2011,80.57
Bath & North East Somerset Council,80009688,7S1,Home Care,P03,Wellbeing,RV CARE SOMERSET LTD,01/08/2011,80.74
Bath & North East Somerset Council,80009690,LK4,Home Care,P03,Wellbeing,RV CARE SOMERSET LTD,01/08/2011,80.74
Bath & North East Somerset Council,80009690,7S1,Home Care,P03,Wellbeing,RV CARE SOMERSET LTD,01/08/2011,80.74
Bath & North East Somerset Council,80009691,LK4,Home Care,P03,Wellbeing,RV CARE SOMERSET LTD,01/08/2011,80.74
Bath & North East Somerset Council,80009691,7S1,Direct Payments,P03,Wellbeing,SHAW TRUST LTD,01/08/2011,82.32
Bath & North East Somerset Council,80009692,LK4,Direct Payments,P03,Wellbeing,SHAW TRUST LTD,01/08/2011,82.32
Bath & North East Somerset Council,80009692,7S1,Individualised Budget,P03,Wellbeing,SHAW TRUST LTD,01/08/2011,84.33
Bath & North East Somerset Council,80009693,LK4,Individualised Budget,P03,Wellbeing,SHAW TRUST LTD,01/08/2011,84.33
Bath & North East Somerset Council,80009693,7S1,Home Care,P03,Wellbeing,RV CARE SOMERSET LTD,01/08/2011,85.85
Bath & North East Somerset Council,80009695,7S1,Home Care,P03,Wellbeing,RV CARE SOMERSET LTD,01/08/2011,85.85
Bath & North East Somerset Council,80009696,LK4,Individualised Budget,P03,Wellbeing,SHAW TRUST LTD,01/08/2011,86.21
Bath & North East Somerset Council,80009696,7S1,Individualised Budget,P03,Wellbeing,SHAW TRUST LTD,01/08/2011,86.21
Bath & North East Somerset Council,80009697,7S1,Home Care,P03,Wellbeing,RV CARE SOMERSET LTD,01/08/2011,88.00
Bath & North East Somerset Council,80009698,LK4,Home Care,P03,Wellbeing,RV CARE SOMERSET LTD,01/08/2011,88.00
Bath & North East Somerset Council,80009698,7S1,Home Care,P03,Wellbeing,KUMARI HOMECARE SERVICE,01/08/2011,89.79
Bath & North East Somerset Council,80009699,LK4,Home Care,P03,Wellbeing,KUMARI HOMECARE SERVICE,01/08/2011,89.79
Bath & North East Somerset Council,80009699,7S1,Individualised Budget,P03,Wellbeing,SHAW TRUST LTD,01/08/2011,92.62
Bath & North East Somerset Council,80009700,LK4,Individualised Budget,P03,Wellbeing,SHAW TRUST LTD,01/08/2011,92.62
Bath & North East Somerset Council,80009700,7S1,Nursing Care,P03,Wellbeing,SOUTHERN CROSS (REDACTED),01/08/2011,92.86
Bath & North East Somerset Council,80009702,LK4,Supported Living,P03,Wellbeing,THREE TREES COMMUNITY SUPPORT LTD,01/08/2011,93.09
Bath & North East Somerset Council,80009702,7S1,Individualised Budget,P03,Wellbeing,SHAW TRUST LTD,01/08/2011,96.22
Bath & North East Somerset Council,80009704,LK4,Individualised Budget,P03,Wellbeing,SHAW TRUST LTD,01/08/2011,96.22
Bath & North East Somerset Council,80009704,7S1,Individualised Budget,P03,Wellbeing,SHAW TRUST LTD,01/08/2011,97.51
Bath & North East Somerset Council,80009706,LK4,Individualised Budget,P03,Wellbeing,SHAW TRUST LTD,01/08/2011,97.51
Bath & North East Somerset Council,80009706,7S1,Supported Living,P03,Wellbeing,OPTIONS FOR LIVING LTD,01/08/2011,101.52
Bath & North East Somerset Council,80009708,LK4,Supported Living,P03,Wellbeing,OPTIONS FOR LIVING LTD,01/08/2011,101.52
Bath & North East Somerset Council,80009709,7S1,Direct Payments,P03,Wellbeing,SHAW TRUST LTD,01/08/2011,102.90
Bath & North East Somerset Council,80009710,LK4,Direct Payments,P03,Wellbeing,SHAW TRUST LTD,01/08/2011,102.90
Bath & North East Somerset Council,80009710,7S1,Individualised Budget,P03,Wellbeing,SHAW TRUST LTD,01/08/2011,107.31
Bath & North East Somerset Council,80009713,LK4,Individualised Budget,P03,Wellbeing,SHAW TRUST LTD,01/08/2011,107.31
Bath & North East Somerset Council,80009713,7S1,Individualised Budget,P03,Wellbeing,PHOENIX (SW) LTD,01/08/2011,107.37
Bath & North East Somerset Council,80009715,LK4,Individualised Budget,P03,Wellbeing,PHOENIX (SW) LTD,01/08/2011,107.37
Bath & North East Somerset Council,80009715,7S1,Individualised Budget,P03,Wellbeing,PHOENIX (SW) LTD,01/08/2011,107.37
Bath & North East Somerset Council,80009716,LK4,Individualised Budget,P03,Wellbeing,PHOENIX (SW) LTD,01/08/2011,107.37
Bath & North East Somerset Council,80009716,7S1,Individualised Budget,P03,Wellbeing,PHOENIX (SW) LTD,01/08/2011,107.37
Bath & North East Somerset Council,80009717,LK4,Individualised Budget,P03,Wellbeing,PHOENIX (SW) LTD,01/08/2011,107.37
Bath & North East Somerset Council,80009717,7S1,Individualised Budget,P03,Wellbeing,PHOENIX (SW) LTD,01/08/2011,107.37
Bath & North East Somerset Council,80009718,LK4,Individualised Budget,P03,Wellbeing,PHOENIX (SW) LTD,01/08/2011,107.37
Bath & North East Somerset Council,80009718,7S1,Individualised Budget,P03,Wellbeing,SHAW TRUST LTD,01/08/2011,111.12
Bath & North East Somerset Council,80009719,LK4,Individualised Budget,P03,Wellbeing,SHAW TRUST LTD,01/08/2011,111.12
Bath & North East Somerset Council,80009719,7S1,Individualised Budget,P03,Wellbeing,SHAW TRUST LTD,01/08/2011,111.77
Bath & North East Somerset Council,80009723,7B1,Individualised Budget,P03,Wellbeing,SHAW TRUST LTD,01/08/2011,111.77
Bath & North East Somerset Council,80009723,7S1,Home Care,P03,Wellbeing,RV CARE SOMERSET LTD,01/08/2011,115.00
Bath & North East Somerset Council,80009751,PG1,Home Care,P03,Wellbeing,RV CARE SOMERSET LTD,01/08/2011,115.00
Bath & North East Somerset Council,80009751,7S2,Home Care,P03,Wellbeing,RV CARE SOMERSET LTD,01/08/2011,116.00
Bath & North East Somerset Council,80009754,PG1,Home Care,P03,Wellbeing,RV CARE SOMERSET LTD,01/08/2011,116.00
Bath & North East Somerset Council,80009754,7S2,Home Care,P03,Wellbeing,RV CARE SOMERSET LTD,01/08/2011,116.00
Bath & North East Somerset Council,80009758,PG1,Home Care,P03,Wellbeing,RV CARE SOMERSET LTD,01/08/2011,116.00
Bath & North East Somerset Council,80009773,PG1,Home Care,P03,Wellbeing,GROVE CARE LTD T/A BATH COMMUNITY CARE,01/08/2011,116.45
Bath & North East Somerset Council,80009773,7S2,Home Care,P03,Wellbeing,GROVE CARE LTD T/A BATH COMMUNITY CARE,01/08/2011,116.45
Bath & North East Somerset Council,80009774,PG1,Individualised Budget,P03,Wellbeing,SHAW TRUST LTD,01/08/2011,116.72
Bath & North East Somerset Council,80009774,7S2,Individualised Budget,P03,Wellbeing,SHAW TRUST LTD,01/08/2011,116.72
Bath & North East Somerset Council,80009775,PG1,Individualised Budget,P03,Wellbeing,SHAW TRUST LTD,01/08/2011,123.65
Bath & North East Somerset Council,80009775,7S2,Individualised Budget,P03,Wellbeing,SHAW TRUST LTD,01/08/2011,123.65
Bath & North East Somerset Council,80009776,PG1,Individualised Budget,P03,Wellbeing,SHAW TRUST LTD,01/08/2011,127.29
Bath & North East Somerset Council,80009776,7S2,Individualised Budget,P03,Wellbeing,SHAW TRUST LTD,01/08/2011,127.29
Bath & North East Somerset Council,80009777,7S2,Individualised Budget,P03,Wellbeing,SHAW TRUST LTD,01/08/2011,129.32
Bath & North East Somerset Council,80009783,PG1,Individualised Budget,P03,Wellbeing,SHAW TRUST LTD,01/08/2011,129.32
Bath & North East Somerset Council,80009783,7S2,Home Care,P03,Wellbeing,METHODIST HOMES FOR THE AGED,01/08/2011,135.10
Bath & North East Somerset Council,80009791,PG1,Home Care,P03,Wellbeing,METHODIST HOMES FOR THE AGED,01/08/2011,135.10
Bath & North East Somerset Council,80009791,7S2,Home Care,P03,Wellbeing,METHODIST HOMES FOR THE AGED,01/08/2011,135.10
Bath & North East Somerset Council,80009794,PG1,Home Care,P03,Wellbeing,METHODIST HOMES FOR THE AGED,01/08/2011,135.10
Bath & North East Somerset Council,80009794,7S2,Individualised Budget,P03,Wellbeing,SHAW TRUST LTD,01/08/2011,135.48
Bath & North East Somerset Council,80009825,PG1,Individualised Budget,P03,Wellbeing,SHAW TRUST LTD,01/08/2011,135.48
Bath & North East Somerset Council,80009825,7S2,Individualised Budget,P03,Wellbeing,SHAW TRUST LTD,01/08/2011,137.06
Bath & North East Somerset Council,80009826,PG1,Individualised Budget,P03,Wellbeing,SHAW TRUST LTD,01/08/2011,137.06
Bath & North East Somerset Council,80009826,7S2,Home Care,P03,Wellbeing,RV CARE SOMERSET LTD,01/08/2011,141.04
Bath & North East Somerset Council,80009867,PG1,Home Care,P03,Wellbeing,RV CARE SOMERSET LTD,01/08/2011,141.04
Bath & North East Somerset Council,80009867,7S2,Individualised Budget,P03,Wellbeing,SHAW TRUST LTD,01/08/2011,142.20
Bath & North East Somerset Council,80009873,PG1,Individualised Budget,P03,Wellbeing,SHAW TRUST LTD,01/08/2011,142.20
Bath & North East Somerset Council,80009873,7S2,Individualised Budget,P03,Wellbeing,SHAW TRUST LTD,01/08/2011,143.80
Bath & North East Somerset Council,80009889,PG1,Individualised Budget,P03,Wellbeing,SHAW TRUST LTD,01/08/2011,143.80
Bath & North East Somerset Council,80009889,7S2,Day Care,P03,Wellbeing,GLOUCESTERSHIRE COUNTY COUNCIL,01/08/2011,146.20
Bath & North East Somerset Council,80009890,PG1,Day Care,P03,Wellbeing,GLOUCESTERSHIRE COUNTY COUNCIL,01/08/2011,146.20
Bath & North East Somerset Council,80009890,7S2,Day Care,P03,Wellbeing,GLOUCESTERSHIRE COUNTY COUNCIL,01/08/2011,146.20
Bath & North East Somerset Council,80009891,PG1,Day Care,P03,Wellbeing,GLOUCESTERSHIRE COUNTY COUNCIL,01/08/2011,146.20
Bath & North East Somerset Council,80009891,7S2,Day Care,P03,Wellbeing,GLOUCESTERSHIRE COUNTY COUNCIL,01/08/2011,146.20
Bath & North East Somerset Council,80009892,PG1,Day Care,P03,Wellbeing,GLOUCESTERSHIRE COUNTY COUNCIL,01/08/2011,146.20
Bath & North East Somerset Council,80009892,7S2,Day Care,P03,Wellbeing,GLOUCESTERSHIRE COUNTY COUNCIL,01/08/2011,146.20
Bath & North East Somerset Council,80009893,7B1,Day Care,P03,Wellbeing,GLOUCESTERSHIRE COUNTY COUNCIL,01/08/2011,146.20
Bath & North East Somerset Council,80009893,7S1,Day Care,P03,Wellbeing,GLOUCESTERSHIRE COUNTY COUNCIL,01/08/2011,146.20
Bath & North East Somerset Council,80009894,7B1,Individualised Budget,P03,Wellbeing,PHOENIX (SW) LTD,01/08/2011,147.60
Bath & North East Somerset Council,80009894,7S1,Individualised Budget,P03,Wellbeing,PHOENIX (SW) LTD,01/08/2011,147.60
Bath & North East Somerset Council,80009897,7B1,Home Care,P03,Wellbeing,SAFE & SOUND HOMECARE SERVICES,01/08/2011,151.00
Bath & North East Somerset Council,80009897,7S1,Home Care,P03,Wellbeing,SAFE & SOUND HOMECARE SERVICES,01/08/2011,151.00
Bath & North East Somerset Council,80009907,LM8,Home Care,P03,Wellbeing,SAFE & SOUND HOMECARE SERVICES,01/08/2011,151.00
Bath & North East Somerset Council,80009907,7S1,Home Care,P03,Wellbeing,SAFE & SOUND HOMECARE SERVICES,01/08/2011,151.00
Bath & North East Somerset Council,80009908,LM8,Individualised Budget,P03,Wellbeing,SHAW TRUST LTD,01/08/2011,154.14
Bath & North East Somerset Council,80009908,LM8,Individualised Budget,P03,Wellbeing,SHAW TRUST LTD,01/08/2011,154.14
Bath & North East Somerset Council,80009908,7S1,Nursing Care,P03,Wellbeing,CHOLWELL HOUSE NURSING HOME,01/08/2011,156.00
Bath & North East Somerset Council,80009909,LM8,Nursing Care,P03,Wellbeing,CHOLWELL HOUSE NURSING HOME,01/08/2011,156.00
Bath & North East Somerset Council,80009909,LM8,Home Care,P03,Wellbeing,GROVE CARE LTD T/A BATH COMMUNITY CARE,01/08/2011,160.51
Bath & North East Somerset Council,80009909,7S1,Home Care,P03,Wellbeing,GROVE CARE LTD T/A BATH COMMUNITY CARE,01/08/2011,160.51
Bath & North East Somerset Council,80009911,LM8,Individualised Budget,P03,Wellbeing,SHAW TRUST LTD,01/08/2011,161.35
Bath & North East Somerset Council,80009911,LM8,Individualised Budget,P03,Wellbeing,SHAW TRUST LTD,01/08/2011,161.35
Bath & North East Somerset Council,80009911,LM8,Home Care,P03,Wellbeing,RV CARE SOMERSET LTD,01/08/2011,163.00
Bath & North East Somerset Council,80009911,LM8,Home Care,P03,Wellbeing,RV CARE SOMERSET LTD,01/08/2011,163.00
Bath & North East Somerset Council,80009911,LM8,Individualised Budget,P03,Wellbeing,SHAW TRUST LTD,01/08/2011,167.52
Bath & North East Somerset Council,80009911,LM8,Individualised Budget,P03,Wellbeing,SHAW TRUST LTD,01/08/2011,167.52
Bath & North East Somerset Council,80009911,LM8,Home Care,P03,Wellbeing,RV CARE SOMERSET LTD,01/08/2011,170.67
Bath & North East Somerset Council,80009911,LM8,Home Care,P03,Wellbeing,RV CARE SOMERSET LTD,01/08/2011,170.67
Bath & North East Somerset Council,80009911,LM8,Individualised Budget,P03,Wellbeing,SHAW TRUST LTD,01/08/2011,180.85
Bath & North East Somerset Council,80009911,LM8,Individualised Budget,P03,Wellbeing,SHAW TRUST LTD,01/08/2011,180.85
Bath & North East Somerset Council,80009911,LM8,Home Care,P03,Wellbeing,RV CARE SOMERSET LTD,01/08/2011,181.00
Bath & North East Somerset Council,80009911,LM8,Home Care,P03,Wellbeing,RV CARE SOMERSET LTD,01/08/2011,181.00
Bath & North East Somerset Council,80009911,7S1,Home Care,P03,Wellbeing,MCKINNONS PRIVATE HOME CARE AGENCY,01/08/2011,185.36
Bath & North East Somerset Council,80009912,LM8,Home Care,P03,Wellbeing,MCKINNONS PRIVATE HOME CARE AGENCY,01/08/2011,185.36
Bath & North East Somerset Council,80009912,7S1,Nursing Care,P03,Wellbeing,CULVERHAY NURSING HOME,01/08/2011,185.71
Bath & North East Somerset Council,80009913,LM8,Individualised Budget,P03,Wellbeing,SHAW TRUST LTD,01/08/2011,186.34
Bath & North East Somerset Council,80009913,7S1,Individualised Budget,P03,Wellbeing,SHAW TRUST LTD,01/08/2011,186.34
Bath & North East Somerset Council,80009914,LM8,Home Care,P03,Wellbeing,SAFE & SOUND HOMECARE SERVICES,01/08/2011,187.50
Bath & North East Somerset Council,80009914,7S1,Home Care,P03,Wellbeing,SAFE & SOUND HOMECARE SERVICES,01/08/2011,187.50
Bath & North East Somerset Council,80009915,LM8,Individualised Budget,P03,Wellbeing,SHAW TRUST LTD,01/08/2011,196.91
Bath & North East Somerset Council,80009915,7S1,Individualised Budget,P03,Wellbeing,SHAW TRUST LTD,01/08/2011,196.91
Bath & North East Somerset Council,80009916,LM8,Supported Living,P03,Wellbeing,SOUTHSIDE FAMILY PROJECT,01/08/2011,199.28
Bath & North East Somerset Council,80009916,LM8,Supported Living,P03,Wellbeing,SOUTHSIDE FAMILY PROJECT,01/08/2011,199.28
Bath & North East Somerset Council,80009916,LM8,Supported Living,P03,Wellbeing,SOUTHSIDE FAMILY PROJECT,01/08/2011,199.28
Bath & North East Somerset Council,80009916,7S1,Individualised Budget,P03,Wellbeing,SHAW TRUST LTD,01/08/2011,200.79
Bath & North East Somerset Council,80009917,LM8,Individualised Budget,P03,Wellbeing,SHAW TRUST LTD,01/08/2011,200.79
Bath & North East Somerset Council,80009917,7S1,Individualised Budget,P03,Wellbeing,PHOENIX (SW) LTD,01/08/2011,203.79
Bath & North East Somerset Council,80009918,LM8,Supported Living,P03,Wellbeing,OPTIONS FOR LIVING LTD,01/08/2011,206.80
Bath & North East Somerset Council,80009918,7S1,Supported Living,P03,Wellbeing,OPTIONS FOR LIVING LTD,01/08/2011,206.80
Bath & North East Somerset Council,80009919,LM8,Day Care,P03,Wellbeing,LEONARD CHESHIRE FOUNDATION,01/08/2011,208.50
Bath & North East Somerset Council,80009919,LM8,Day Care,P03,Wellbeing,LEONARD CHESHIRE FOUNDATION,01/08/2011,208.50
Bath & North East Somerset Council,80009919,LM8,Day Care,P03,Wellbeing,LEONARD CHESHIRE FOUNDATION,01/08/2011,208.50
Bath & North East Somerset Council,80009919,7S1,Day Care,P03,Wellbeing,LEONARD CHESHIRE FOUNDATION,01/08/2011,208.50
Bath & North East Somerset Council,80009920,LM8,Individualised Budget,P03,Wellbeing,SHAW TRUST LTD,01/08/2011,222.69
Bath & North East Somerset Council,80009920,LM8,Individualised Budget,P03,Wellbeing,SHAW TRUST LTD,01/08/2011,222.69
Bath & North East Somerset Council,80009920,7S1,Individualised Budget,P03,Wellbeing,SHAW TRUST LTD,01/08/2011,226.41
Bath & North East Somerset Council,80009921,LM8,Individualised Budget,P03,Wellbeing,SHAW TRUST LTD,01/08/2011,226.41
Bath & North East Somerset Council,80009921,LM8,Home Care,P03,Wellbeing,SAFE & SOUND HOMECARE SERVICES,01/08/2011,226.50
Bath & North East Somerset Council,80009921,LM8,Home Care,P03,Wellbeing,SAFE & SOUND HOMECARE SERVICES,01/08/2011,226.50
Bath & North East Somerset Council,80009921,7S1,Supported Living,P03,Wellbeing,ACTION ON HEARING LOSS,01/08/2011,229.14
Bath & North East Somerset Council,80009922,LM8,Supported Living,P03,Wellbeing,ACTION ON HEARING LOSS,01/08/2011,229.14
Bath & North East Somerset Council,80009922,LM8,Supported Living,P03,Wellbeing,ACTION ON HEARING LOSS,01/08/2011,229.14
Bath & North East Somerset Council,80009922,7S1,Supported Living,P03,Wellbeing,ACTION ON HEARING LOSS,01/08/2011,229.14
Bath & North East Somerset Council,80009927,PG1,Residential Care,P03,Wellbeing,CEDAR CARE HOMES LTD,01/08/2011,229.71
Bath & North East Somerset Council,80009927,7S2,Home Care,P03,Wellbeing,MCKINNONS PRIVATE HOME CARE AGENCY,01/08/2011,232.85
Bath & North East Somerset Council,80009928,PG1,Home Care,P03,Wellbeing,MCKINNONS PRIVATE HOME CARE AGENCY,01/08/2011,232.85
Bath & North East Somerset Council,80009928,7S2,Individualised Budget,P03,Wellbeing,SHAW TRUST LTD,01/08/2011,235.83
Bath & North East Somerset Council,80009989,7B1,Individualised Budget,P03,Wellbeing,SHAW TRUST LTD,01/08/2011,235.83
Bath & North East Somerset Council,80009989,7S1,Individualised Budget,P03,Wellbeing,SHAW TRUST LTD,01/08/2011,240.18
Bath & North East Somerset Council,80010009,7B1,Individualised Budget,P03,Wellbeing,SHAW TRUST LTD,01/08/2011,240.18
Bath & North East Somerset Council,80010009,7S1,Individualised Budget,P03,Wellbeing,SHAW TRUST LTD,01/08/2011,242.91
Bath & North East Somerset Council,80010014,7B1,Individualised Budget,P03,Wellbeing,SHAW TRUST LTD,01/08/2011,242.91
Bath & North East Somerset Council,80010014,7S1,Supported Living,P03,Wellbeing,S.W.A.L.L.O.W. LTD,01/08/2011,249.42
Bath & North East Somerset Council,80010049,LL3,Supported Living,P03,Wellbeing,S.W.A.L.L.O.W. LTD,01/08/2011,249.42
Bath & North East Somerset Council,80010049,LL3,Supported Living,P03,Wellbeing,S.W.A.L.L.O.W. LTD,01/08/2011,249.42
Bath & North East Somerset Council,80010049,LL3,Supported Living,P03,Wellbeing,S.W.A.L.L.O.W. LTD,01/08/2011,249.42
Bath & North East Somerset Council,80010049,LL3,Supported Living,P03,Wellbeing,S.W.A.L.L.O.W. LTD,01/08/2011,249.42
Bath & North East Somerset Council,80010049,7S1,Respite Care,P03,Wellbeing,REDACTED,01/08/2011,254.07
Bath & North East Somerset Council,80010050,LL3,Respite Care,P03,Wellbeing,REDACTED,01/08/2011,254.07
Bath & North East Somerset Council,80010050,LL3,Respite Care,P03,Wellbeing,REDACTED,01/08/2011,254.07
Bath & North East Somerset Council,80010050,LL3,Respite Care,P03,Wellbeing,REDACTED,01/08/2011,254.07
Bath & North East Somerset Council,80010050,LL3,Home Care,P03,Wellbeing,MCKINNONS PRIVATE HOME CARE AGENCY,01/08/2011,254.12
Bath & North East Somerset Council,80010050,7S1,Home Care,P03,Wellbeing,MCKINNONS PRIVATE HOME CARE AGENCY,01/08/2011,254.12
Bath & North East Somerset Council,80010051,LL3,Individualised Budget,P03,Wellbeing,REDACTED,01/08/2011,257.01
Bath & North East Somerset Council,80010051,LL3,Individualised Budget,P03,Wellbeing,REDACTED,01/08/2011,257.01
Bath & North East Somerset Council,80010051,LL3,Home Care,P03,Wellbeing,GROVE CARE LTD T/A BATH COMMUNITY CARE,01/08/2011,260.00
Bath & North East Somerset Council,80010051,LL3,Home Care,P03,Wellbeing,GROVE CARE LTD T/A BATH COMMUNITY CARE,01/08/2011,260.00
Bath & North East Somerset Council,80010051,7S1,Individualised Budget,P03,Wellbeing,REDACTED,01/08/2011,261.54
Bath & North East Somerset Council,80010052,LL3,Individualised Budget,P03,Wellbeing,REDACTED,01/08/2011,261.54
Bath & North East Somerset Council,80010052,LL3,Nursing Care,P03,Wellbeing,METHODIST HOMES FOR THE AGED,01/08/2011,264.00
Bath & North East Somerset Council,80010052,LL3,Supported Living,P03,Wellbeing,OPTIONS FOR LIVING LTD,01/08/2011,264.74
Bath & North East Somerset Council,80010052,LL3,Supported Living,P03,Wellbeing,OPTIONS FOR LIVING LTD,01/08/2011,264.74
Bath & North East Somerset Council,80010052,7S1,Supported Living,P03,Wellbeing,OPTIONS FOR LIVING LTD,01/08/2011,264.74
Bath & North East Somerset Council,80010053,LL3,Supported Living,P03,Wellbeing,OPTIONS FOR LIVING LTD,01/08/2011,264.74
Bath & North East Somerset Council,80010053,LL3,Supported Living,P03,Wellbeing,OPTIONS FOR LIVING LTD,01/08/2011,264.74
Bath & North East Somerset Council,80010053,LL3,Supported Living,P03,Wellbeing,OPTIONS FOR LIVING LTD,01/08/2011,264.74
Bath & North East Somerset Council,80010053,LL3,Individualised Budget,P03,Wellbeing,REDACTED,01/08/2011,266.03
Bath & North East Somerset Council,80010053,7S1,Individualised Budget,P03,Wellbeing,REDACTED,01/08/2011,266.03
Bath & North East Somerset Council,80010054,LL3,Individualised Budget,P03,Wellbeing,REDACTED,01/08/2011,269.10
Bath & North East Somerset Council,80010054,LL3,Individualised Budget,P03,Wellbeing,REDACTED,01/08/2011,269.10
Bath & North East Somerset Council,80010054,LL3,Individualised Budget,P03,Wellbeing,REDACTED,01/08/2011,269.58
Bath & North East Somerset Council,80010054,LL3,Individualised Budget,P03,Wellbeing,REDACTED,01/08/2011,269.58
Bath & North East Somerset Council,80010054,7S1,Direct Payments,P02,"Early Years, Children & Youth",REDACTED,01/08/2011,269.98
Bath & North East Somerset Council,80010056,LL3,Direct Payments,P02,"Early Years, Children & Youth",REDACTED,01/08/2011,269.98
Bath & North East Somerset Council,80010056,LL3,Home Care,P03,Wellbeing,RV CARE SOMERSET LTD,01/08/2011,274.00
Bath & North East Somerset Council,80010056,LL3,Home Care,P03,Wellbeing,RV CARE SOMERSET LTD,01/08/2011,274.00
Bath & North East Somerset Council,80010056,LL3,Nursing Care,P03,Wellbeing,SUPPORTED INDEPENDENCE,01/08/2011,275.25
Bath & North East Somerset Council,80010056,7S1,Nursing Care,P03,Wellbeing,SUPPORTED INDEPENDENCE,01/08/2011,275.25
Bath & North East Somerset Council,80010057,LL3,Home Care,P03,Wellbeing,GROVE CARE LTD T/A BATH COMMUNITY CARE,01/08/2011,277.17
Bath & North East Somerset Council,80010057,LL3,Home Care,P03,Wellbeing,GROVE CARE LTD T/A BATH COMMUNITY CARE,01/08/2011,277.17
Bath & North East Somerset Council,80010057,LL3,Nursing Care,P03,Wellbeing,REDACTED,01/08/2011,278.57
Bath & North East Somerset Council,80010057,LL3,Nursing Care,P03,Wellbeing,LARKHALL SPRINGS NURSING HOME,01/08/2011,278.57
Bath & North East Somerset Council,80010057,7S1,Nursing Care,P03,Wellbeing,BARKER CHEMICALS LTD T/A ST TERESA'S NH,01/08/2011,278.57
Bath & North East Somerset Council,80010058,LL3,Nursing Care,P03,Wellbeing,BARKER CHEMICALS LTD T/A ST TERESA'S NH,01/08/2011,278.57
Bath & North East Somerset Council,80010058,LL3,Nursing Care,P03,Wellbeing,CEDAR CARE HOMES LTD,01/08/2011,278.57
Bath & North East Somerset Council,80010058,LL3,Individualised Budget,P03,Wellbeing,REDACTED,01/08/2011,282.34
Bath & North East Somerset Council,80010058,LL3,Individualised Budget,P03,Wellbeing,REDACTED,01/08/2011,282.34
Bath & North East Somerset Council,80010058,7S1,Individualised Budget,P03,Wellbeing,PHOENIX (SW) LTD,01/08/2011,285.30
Bath & North East Somerset Council,80010059,LL3,Individualised Budget,P03,Wellbeing,PHOENIX (SW) LTD,01/08/2011,285.30
Bath & North East Somerset Council,80010059,LL3,Individualised Budget,P03,Wellbeing,PHOENIX (SW) LTD,01/08/2011,285.30
Bath & North East Somerset Council,80010059,LL3,Individualised Budget,P03,Wellbeing,PHOENIX (SW) LTD,01/08/2011,285.30
Bath & North East Somerset Council,80010059,LL3,Individualised Budget,P03,Wellbeing,PHOENIX (SW) LTD,01/08/2011,285.30
Bath & North East Somerset Council,80010059,LL3,Individualised Budget,P03,Wellbeing,PHOENIX (SW) LTD,01/08/2011,285.30
Bath & North East Somerset Council,80010059,LL3,Individualised Budget,P03,Wellbeing,SHAW TRUST LTD,01/08/2011,288.95
Bath & North East Somerset Council,80010059,LL3,Individualised Budget,P03,Wellbeing,SHAW TRUST LTD,01/08/2011,288.95
Bath & North East Somerset Council,80010059,LL3,Individualised Budget,P03,Wellbeing,REDACTED,01/08/2011,295.50
Bath & North East Somerset Council,80010059,7S1,Individualised Budget,P03,Wellbeing,REDACTED,01/08/2011,295.50
Bath & North East Somerset Council,80010060,LL3,Individualised Budget,P03,Wellbeing,REDACTED,01/08/2011,295.50
Bath & North East Somerset Council,80010060,LL3,Individualised Budget,P03,Wellbeing,REDACTED,01/08/2011,295.50
Bath & North East Somerset Council,80010060,LL3,Individualised Budget,P03,Wellbeing,REDACTED,01/08/2011,299.21
Bath & North East Somerset Council,80010060,LL3,Individualised Budget,P03,Wellbeing,REDACTED,01/08/2011,299.21
Bath & North East Somerset Council,80010060,LL3,Individualised Budget,P03,Wellbeing,REDACTED,01/08/2011,300.00
Bath & North East Somerset Council,80010060,LL3,Individualised Budget,P03,Wellbeing,PHOENIX (SW) LTD,01/08/2011,301.13
Bath & North East Somerset Council,80010060,LL3,Individualised Budget,P03,Wellbeing,PHOENIX (SW) LTD,01/08/2011,301.13
Bath & North East Somerset Council,80010060,LL3,Individualised Budget,P03,Wellbeing,REDACTED,01/08/2011,302.91
Bath & North East Somerset Council,80010060,7S1,Individualised Budget,P03,Wellbeing,REDACTED,01/08/2011,302.91
Bath & North East Somerset Council,80010061,LL3,Supported Living,P03,Wellbeing,OPTIONS FOR LIVING LTD,01/08/2011,304.56
Bath & North East Somerset Council,80010061,LL3,Supported Living,P03,Wellbeing,OPTIONS FOR LIVING LTD,01/08/2011,304.56
Bath & North East Somerset Council,80010061,LL3,Individualised Budget,P03,Wellbeing,SHAW TRUST LTD,01/08/2011,304.77
Bath & North East Somerset Council,80010061,LL3,Individualised Budget,P03,Wellbeing,SHAW TRUST LTD,01/08/2011,304.77
Bath & North East Somerset Council,80010061,LL3,Supported Living,P03,Wellbeing,ARCH CARE SERVICES,01/08/2011,307.00
Bath & North East Somerset Council,80010061,LL3,Supported Living,P03,Wellbeing,ARCH CARE SERVICES,01/08/2011,307.00
Bath & North East Somerset Council,80010061,LL3,Individualised Budget,P03,Wellbeing,REDACTED,01/08/2011,307.08
Bath & North East Somerset Council,80010061,LL3,Individualised Budget,P03,Wellbeing,REDACTED,01/08/2011,307.08
Bath & North East Somerset Council,80010061,7S1,Individualised Budget,P03,Wellbeing,REDACTED,01/08/2011,308.00
Bath & North East Somerset Council,80010062,LL3,Individualised Budget,P03,Wellbeing,REDACTED,01/08/2011,308.00
Bath & North East Somerset Council,80010062,LL3,Individualised Budget,P03,Wellbeing,SHAW TRUST LTD,01/08/2011,311.37
Bath & North East Somerset Council,80010062,LL3,Individualised Budget,P03,Wellbeing,SHAW TRUST LTD,01/08/2011,311.37
Bath & North East Somerset Council,80010062,LL3,Home Care,P03,Wellbeing,RV CARE SOMERSET LTD,01/08/2011,314.00
Bath & North East Somerset Council,80010062,LL3,Home Care,P03,Wellbeing,RV CARE SOMERSET LTD,01/08/2011,314.00
Bath & North East Somerset Council,80010062,LL3,Individualised Budget,P03,Wellbeing,REDACTED,01/08/2011,315.19
Bath & North East Somerset Council,80010062,LL3,Individualised Budget,P03,Wellbeing,REDACTED,01/08/2011,315.19
Bath & North East Somerset Council,80010062,LL3,Direct Payments,P03,Wellbeing,REDACTED,01/08/2011,315.48
Bath & North East Somerset Council,80010062,7S1,Direct Payments,P03,Wellbeing,REDACTED,01/08/2011,315.48
Bath & North East Somerset Council,80010063,LL3,Individualised Budget,P03,Wellbeing,REDACTED,01/08/2011,316.69
Bath & North East Somerset Council,80010063,LL3,Individualised Budget,P03,Wellbeing,REDACTED,01/08/2011,316.69
Bath & North East Somerset Council,80010063,LL3,Individualised Budget,P03,Wellbeing,REDACTED,01/08/2011,317.03
Bath & North East Somerset Council,80010063,LL3,Individualised Budget,P03,Wellbeing,REDACTED,01/08/2011,317.03
Bath & North East Somerset Council,80010063,7S1,Home Care,P03,Wellbeing,SAFE & SOUND HOMECARE SERVICES,01/08/2011,323.97
Bath & North East Somerset Council,80010064,LL3,Home Care,P03,Wellbeing,SAFE & SOUND HOMECARE SERVICES,01/08/2011,323.97
Bath & North East Somerset Council,80010064,LL3,Individualised Budget,P03,Wellbeing,SHAW TRUST LTD,01/08/2011,326.94
Bath & North East Somerset Council,80010064,LL3,Individualised Budget,P03,Wellbeing,SHAW TRUST LTD,01/08/2011,326.94
Bath & North East Somerset Council,80010064,LL3,Individualised Budget,P03,Wellbeing,REDACTED,01/08/2011,327.68
Bath & North East Somerset Council,80010064,7S1,Individualised Budget,P03,Wellbeing,REDACTED,01/08/2011,327.68
Bath & North East Somerset Council,80010065,LL3,Respite Care,P03,Wellbeing,REDACTED,01/08/2011,328.00
Bath & North East Somerset Council,80010065,LL3,Respite Care,P03,Wellbeing,REDACTED,01/08/2011,328.00
Bath & North East Somerset Council,80010065,LL3,Home Care,P03,Wellbeing,AMBER HOMECARE LTD,01/08/2011,331.09
Bath & North East Somerset Council,80010065,LL3,Home Care,P03,Wellbeing,AMBER HOMECARE LTD,01/08/2011,331.09
Bath & North East Somerset Council,80010065,7S1,Individualised Budget,P03,Wellbeing,SHAW TRUST LTD,01/08/2011,336.47
Bath & North East Somerset Council,80010067,LL3,Individualised Budget,P03,Wellbeing,SHAW TRUST LTD,01/08/2011,336.47
Bath & North East Somerset Council,80010067,LL3,Nursing Care,P03,Wellbeing,OAKFIELD,01/08/2011,342.86
Bath & North East Somerset Council,80010067,LL3,Nursing Care,P03,Wellbeing,OAKFIELD,01/08/2011,342.86
Bath & North East Somerset Council,80010067,LL3,Supported Living,P03,Wellbeing,DIMENSIONS (UK) LTD,01/08/2011,349.10
Bath & North East Somerset Council,80010067,7S1,Supported Living,P03,Wellbeing,DIMENSIONS (UK) LTD,01/08/2011,349.10
Bath & North East Somerset Council,80010068,LL3,Supported Living,P03,Wellbeing,DIMENSIONS (UK) LTD,01/08/2011,349.10
Bath & North East Somerset Council,80010068,LL3,Supported Living,P03,Wellbeing,DIMENSIONS (UK) LTD,01/08/2011,349.10
Bath & North East Somerset Council,80010068,LL3,Home Care,P03,Wellbeing,AMBER HOMECARE LTD,01/08/2011,350.21
Bath & North East Somerset Council,80010068,LL3,Home Care,P03,Wellbeing,AMBER HOMECARE LTD,01/08/2011,350.21
Bath & North East Somerset Council,80010068,7S1,Individualised Budget,P03,Wellbeing,PHOENIX (SW) LTD,01/08/2011,351.00
Bath & North East Somerset Council,80010069,LL3,Individualised Budget,P03,Wellbeing,PHOENIX (SW) LTD,01/08/2011,351.00
Bath & North East Somerset Council,80010069,LL3,Individualised Budget,P03,Wellbeing,SHAW TRUST LTD,01/08/2011,351.39
Bath & North East Somerset Council,80010069,LL3,Individualised Budget,P03,Wellbeing,SHAW TRUST LTD,01/08/2011,351.39
Bath & North East Somerset Council,80010069,LL3,Individualised Budget,P03,Wellbeing,SHAW TRUST LTD,01/08/2011,353.91
Bath & North East Somerset Council,80010069,7S1,Individualised Budget,P03,Wellbeing,SHAW TRUST LTD,01/08/2011,353.91
Bath & North East Somerset Council,80010070,LL3,Individualised Budget,P03,Wellbeing,REDACTED,01/08/2011,359.25
Bath & North East Somerset Council,80010070,LL3,Individualised Budget,P03,Wellbeing,REDACTED,01/08/2011,359.25
Bath & North East Somerset Council,80010070,LL3,Individualised Budget,P03,Wellbeing,SHAW TRUST LTD,01/08/2011,360.51
Bath & North East Somerset Council,80010070,LL3,Individualised Budget,P03,Wellbeing,SHAW TRUST LTD,01/08/2011,360.51
Bath & North East Somerset Council,80010070,7S1,Individualised Budget,P03,Wellbeing,SHAW TRUST LTD,01/08/2011,360.93
Bath & North East Somerset Council,80010071,LL3,Individualised Budget,P03,Wellbeing,SHAW TRUST LTD,01/08/2011,360.93
Bath & North East Somerset Council,80010071,LL3,Individualised Budget,P03,Wellbeing,REDACTED,01/08/2011,364.39
Bath & North East Somerset Council,80010071,LL3,Individualised Budget,P03,Wellbeing,REDACTED,01/08/2011,364.39
Bath & North East Somerset Council,80010071,LL3,Nursing Care,P03,Wellbeing,CEDAR CARE HOMES LTD,01/08/2011,371.43
Bath & North East Somerset Council,80010071,7S1,Direct Payments,P03,Wellbeing,SHAW TRUST LTD,01/08/2011,371.78
Bath & North East Somerset Council,80010072,LL3,Direct Payments,P03,Wellbeing,SHAW TRUST LTD,01/08/2011,371.78
Bath & North East Somerset Council,80010072,LL3,Home Care,P03,Wellbeing,RV CARE SOMERSET LTD,01/08/2011,372.00
Bath & North East Somerset Council,80010072,LL3,Home Care,P03,Wellbeing,RV CARE SOMERSET LTD,01/08/2011,372.00
Bath & North East Somerset Council,80010072,LL3,Residential Care,P03,Wellbeing,CEDAR CARE HOMES LTD,01/08/2011,382.86
Bath & North East Somerset Council,80010072,7S1,Nursing Care,P03,Wellbeing,CARE FIRST CARE HOMES LTD,01/08/2011,383.55
Bath & North East Somerset Council,80010073,LL3,Supported Living,P03,Wellbeing,BATH & MENDIP HOME CARE,01/08/2011,387.07
Bath & North East Somerset Council,80010073,LL3,Supported Living,P03,Wellbeing,BATH & MENDIP HOME CARE,01/08/2011,387.07
Bath & North East Somerset Council,80010073,LL3,Supported Living,P03,Wellbeing,BATH & MENDIP HOME CARE,01/08/2011,387.07
Bath & North East Somerset Council,80010073,LL3,Supported Living,P03,Wellbeing,BATH & MENDIP HOME CARE,01/08/2011,387.07
Bath & North East Somerset Council,80010073,7S1,Individualised Budget,P03,Wellbeing,REDACTED,01/08/2011,389.38
Bath & North East Somerset Council,80010074,LL3,Individualised Budget,P03,Wellbeing,REDACTED,01/08/2011,389.38
Bath & North East Somerset Council,80010074,LL3,Individualised Budget,P03,Wellbeing,SHAW TRUST LTD,01/08/2011,391.09
Bath & North East Somerset Council,80010074,LL3,Individualised Budget,P03,Wellbeing,SHAW TRUST LTD,01/08/2011,391.09
Bath & North East Somerset Council,80010074,LL3,Home Care,P03,Wellbeing,GROVE CARE LTD T/A BATH COMMUNITY CARE,01/08/2011,395.46
Bath & North East Somerset Council,80010074,7S1,Home Care,P03,Wellbeing,GROVE CARE LTD T/A BATH COMMUNITY CARE,01/08/2011,395.46
Bath & North East Somerset Council,80010075,LL3,Home Care,P03,Wellbeing,RV CARE SOMERSET LTD,01/08/2011,396.76
Bath & North East Somerset Council,80010075,LL3,Home Care,P03,Wellbeing,RV CARE SOMERSET LTD,01/08/2011,396.76
Bath & North East Somerset Council,80010075,LL3,Individualised Budget,P03,Wellbeing,REDACTED,01/08/2011,399.18
Bath & North East Somerset Council,80010075,LL3,Individualised Budget,P03,Wellbeing,REDACTED,01/08/2011,399.18
Bath & North East Somerset Council,80010075,7S1,Individualised Budget,P03,Wellbeing,REDACTED,01/08/2011,400.81
Bath & North East Somerset Council,80010086,LL3,Individualised Budget,P03,Wellbeing,REDACTED,01/08/2011,400.81
Bath & North East Somerset Council,80010086,LL3,Supported Living,P03,Wellbeing,ARCH CARE SERVICES,01/08/2011,401.00
Bath & North East Somerset Council,80010086,LL3,Supported Living,P03,Wellbeing,ARCH CARE SERVICES,01/08/2011,401.00
Bath & North East Somerset Council,80010086,LL3,Individualised Budget,P03,Wellbeing,REDACTED,01/08/2011,401.10
Bath & North East Somerset Council,80010086,7S1,Individualised Budget,P03,Wellbeing,REDACTED,01/08/2011,401.10
Bath & North East Somerset Council,80010087,LL3,Individualised Budget,P03,Wellbeing,REDACTED,01/08/2011,401.10
Bath & North East Somerset Council,80010087,LL3,Individualised Budget,P03,Wellbeing,REDACTED,01/08/2011,401.10
Bath & North East Somerset Council,80010087,LL3,Respite Care,P03,Wellbeing,REDACTED,01/08/2011,403.00
Bath & North East Somerset Council,80010087,LL3,Respite Care,P03,Wellbeing,REDACTED,01/08/2011,403.00
Bath & North East Somerset Council,80010087,7S1,Respite Care,P03,Wellbeing,REDACTED,01/08/2011,403.85
Bath & North East Somerset Council,80010089,LL3,Respite Care,P03,Wellbeing,REDACTED,01/08/2011,403.85
Bath & North East Somerset Council,80010089,LL3,Individualised Budget,P03,Wellbeing,REDACTED,01/08/2011,404.66
Bath & North East Somerset Council,80010089,LL3,Individualised Budget,P03,Wellbeing,REDACTED,01/08/2011,404.66
Bath & North East Somerset Council,80010089,LL3,Direct Payments,P02,"Early Years, Children & Youth",SHAW TRUST LTD,01/08/2011,423.57
Bath & North East Somerset Council,80010089,7S1,Direct Payments,P02,"Early Years, Children & Youth",SHAW TRUST LTD,01/08/2011,423.57
Bath & North East Somerset Council,80010090,LL3,Individualised Budget,P03,Wellbeing,REDACTED,01/08/2011,424.00
Bath & North East Somerset Council,80010090,LL3,Nursing Care,P03,Wellbeing,ARCH CARE SERVICES,01/08/2011,427.00
Bath & North East Somerset Council,80010090,LL3,Nursing Care,P03,Wellbeing,ARCH CARE SERVICES,01/08/2011,427.00
Bath & North East Somerset Council,80010090,LL3,Individualised Budget,P03,Wellbeing,REDACTED,01/08/2011,427.34
Bath & North East Somerset Council,80010090,7S1,Individualised Budget,P03,Wellbeing,REDACTED,01/08/2011,427.34
Bath & North East Somerset Council,80010091,LL3,Individualised Budget,P03,Wellbeing,SHAW TRUST LTD,01/08/2011,429.32
Bath & North East Somerset Council,80010091,LL3,Individualised Budget,P03,Wellbeing,SHAW TRUST LTD,01/08/2011,429.32
Bath & North East Somerset Council,80010091,LL3,Individualised Budget,P03,Wellbeing,SHAW TRUST LTD,01/08/2011,434.50
Bath & North East Somerset Council,80010091,LL3,Individualised Budget,P03,Wellbeing,SHAW TRUST LTD,01/08/2011,434.50
Bath & North East Somerset Council,80010091,LL3,Individualised Budget,P03,Wellbeing,REDACTED,01/08/2011,439.20
Bath & North East Somerset Council,80010091,LL3,Individualised Budget,P03,Wellbeing,REDACTED,01/08/2011,439.20
Bath & North East Somerset Council,80010091,LL3,Individualised Budget,P03,Wellbeing,REDACTED,01/08/2011,439.20
Bath & North East Somerset Council,80010091,7S1,Individualised Budget,P03,Wellbeing,REDACTED,01/08/2011,439.20
Bath & North East Somerset Council,80010092,LL3,Individualised Budget,P03,Wellbeing,REDACTED,01/08/2011,442.30
Bath & North East Somerset Council,80010092,LL3,Individualised Budget,P03,Wellbeing,REDACTED,01/08/2011,442.30
Bath & North East Somerset Council,80010092,LL3,Individualised Budget,P03,Wellbeing,REDACTED,01/08/2011,445.21
Bath & North East Somerset Council,80010092,LL3,Individualised Budget,P03,Wellbeing,REDACTED,01/08/2011,445.21
Bath & North East Somerset Council,80010092,LL3,Nursing Care,P03,Wellbeing,BARCHESTER HEALTHCARE HOMES LTD,01/08/2011,445.71
Bath & North East Somerset Council,80010092,LL3,Individualised Budget,P03,Wellbeing,REDACTED,01/08/2011,456.92
Bath & North East Somerset Council,80010092,7S1,Individualised Budget,P03,Wellbeing,REDACTED,01/08/2011,456.92
Bath & North East Somerset Council,80010093,LL3,Nursing Care,P03,Wellbeing,LARKHALL SPRINGS NURSING HOME,01/08/2011,464.29
Bath & North East Somerset Council,80010093,LL3,Nursing Care,P03,Wellbeing,CEDAR CARE HOMES LTD,01/08/2011,464.29
Bath & North East Somerset Council,80010093,LL3,Individualised Budget,P03,Wellbeing,REDACTED,01/08/2011,469.67
Bath & North East Somerset Council,80010093,LL3,Individualised Budget,P03,Wellbeing,REDACTED,01/08/2011,469.67
Bath & North East Somerset Council,80010093,LL3,Nursing Care,P03,Wellbeing,BROCKLEY COURT HOME LTD,01/08/2011,471.00
Bath & North East Somerset Council,80010093,LL3,Nursing Care,P03,Wellbeing,BROCKLEY COURT HOME LTD,01/08/2011,471.00
Bath & North East Somerset Council,80010093,7S1,Individualised Budget,P03,Wellbeing,REDACTED,01/08/2011,484.80
Bath & North East Somerset Council,80010096,LM8,Individualised Budget,P03,Wellbeing,REDACTED,01/08/2011,484.80
Bath & North East Somerset Council,80010096,LM8,Individualised Budget,P03,Wellbeing,SHAW TRUST LTD,01/08/2011,486.13
Bath & North East Somerset Council,80010096,LM8,Individualised Budget,P03,Wellbeing,SHAW TRUST LTD,01/08/2011,486.13
Bath & North East Somerset Council,80010096,LM8,Individualised Budget,P03,Wellbeing,REDACTED,01/08/2011,500.00
Bath & North East Somerset Council,80010096,7S1,Individualised Budget,P03,Wellbeing,REDACTED,01/08/2011,500.00
Bath & North East Somerset Council,80010097,LL3,Individualised Budget,P03,Wellbeing,REDACTED,01/08/2011,500.00
Bath & North East Somerset Council,80010097,LL3,Individualised Budget,P03,Wellbeing,REDACTED,01/08/2011,500.00
Bath & North East Somerset Council,80010097,7S1,Individualised Budget,P03,Wellbeing,REDACTED,01/08/2011,500.00
Bath & North East Somerset Council,80010100,LL3,Individualised Budget,P03,Wellbeing,REDACTED,01/08/2011,500.00
Bath & North East Somerset Council,80010100,7S1,Individualised Budget,P03,Wellbeing,REDACTED,01/08/2011,500.00
Bath & North East Somerset Council,80010105,LL3,Respite Care,P03,Wellbeing,REDACTED,01/08/2011,500.00
Bath & North East Somerset Council,80010105,LL3,Respite Care,P03,Wellbeing,REDACTED,01/08/2011,500.00
Bath & North East Somerset Council,80010105,LL3,Nursing Care,P03,Wellbeing,NEWBRIDGE TOWERS RESIDENTIAL CARE HOME,01/08/2011,501.00
Bath & North East Somerset Council,80010105,7S1,Nursing Care,P03,Wellbeing,NEWBRIDGE TOWERS RESIDENTIAL CARE HOME,01/08/2011,501.00
Bath & North East Somerset Council,80010106,LL3,Home Care,P03,Wellbeing,KUMARI HOMECARE SERVICE,01/08/2011,502.46
Bath & North East Somerset Council,80010106,LL3,Home Care,P03,Wellbeing,KUMARI HOMECARE SERVICE,01/08/2011,502.46
Bath & North East Somerset Council,80010106,LL3,Individualised Budget,P03,Wellbeing,REDACTED,01/08/2011,504.12
Bath & North East Somerset Council,80010106,LL3,Individualised Budget,P03,Wellbeing,REDACTED,01/08/2011,504.12
Bath & North East Somerset Council,80010106,LL3,Nursing Care,P03,Wellbeing,EUROPEAN CARE SW LTD - REDACTED AC,01/08/2011,519.92
Bath & North East Somerset Council,80010106,7S1,Nursing Care,P03,Wellbeing,EUROPEAN CARE SW LTD - REDACTED AC,01/08/2011,519.92
Bath & North East Somerset Council,80010107,LL3,Individualised Budget,P03,Wellbeing,SHAW TRUST LTD,01/08/2011,522.02
Bath & North East Somerset Council,80010107,LL3,Individualised Budget,P03,Wellbeing,SHAW TRUST LTD,01/08/2011,522.02
Bath & North East Somerset Council,80010107,LL3,Residential Care,P03,Wellbeing,CEDAR CARE HOMES LTD,01/08/2011,536.00
Bath & North East Somerset Council,80010107,LL3,Respite Care,P03,Wellbeing,REDACTED,01/08/2011,550.00
Bath & North East Somerset Council,80010107,7S1,Respite Care,P03,Wellbeing,REDACTED,01/08/2011,550.00
Bath & North East Somerset Council,80010108,LL3,Individualised Budget,P03,Wellbeing,REDACTED,01/08/2011,552.02
Bath & North East Somerset Council,80010108,LL3,Individualised Budget,P03,Wellbeing,REDACTED,01/08/2011,552.02
Bath & North East Somerset Council,80010108,LL3,Nursing Care,P03,Wellbeing,SHAW HOMES HOUSING ASSOC LTD,01/08/2011,553.84
Bath & North East Somerset Council,80010108,LL3,Nursing Care,P03,Wellbeing,SHAW HOMES HOUSING ASSOC LTD,01/08/2011,553.84
Bath & North East Somerset Council,80010108,7S1,Nursing Care,P03,Wellbeing,BARCHESTER HEALTHCARE HOMES LTD,01/08/2011,557.14
Bath & North East Somerset Council,80010111,LL3,Nursing Care,P03,Wellbeing,EUROPEAN CARE (UK) LTD - REDACTED A/C,01/08/2011,557.14
Bath & North East Somerset Council,80010111,LL3,Nursing Care,P03,Wellbeing,CARE FIRST CARE HOMES LTD,01/08/2011,557.14
Bath & North East Somerset Council,80010111,LL3,Nursing Care,P03,Wellbeing,SHAW HOMES HOUSING ASSOC LTD,01/08/2011,558.30
Bath & North East Somerset Council,80010111,LL3,Nursing Care,P03,Wellbeing,SHAW HOMES HOUSING ASSOC LTD,01/08/2011,558.30
Bath & North East Somerset Council,80010111,7S1,Individualised Budget,P03,Wellbeing,ILSA,01/08/2011,567.49
Bath & North East Somerset Council,80010113,LL3,Individualised Budget,P03,Wellbeing,ILSA,01/08/2011,567.49
Bath & North East Somerset Council,80010113,LL3,Nursing Care,P03,Wellbeing,CHOLWELL HOUSE NURSING HOME,01/08/2011,569.00
Bath & North East Somerset Council,80010113,LL3,Nursing Care,P03,Wellbeing,CHOLWELL HOUSE NURSING HOME,01/08/2011,569.00
Bath & North East Somerset Council,80010113,7S1,Nursing Care,P03,Wellbeing,OAKFIELD,01/08/2011,571.43
Bath & North East Somerset Council,80010116,LL3,Direct Payments,P03,Wellbeing,REDACTED,01/08/2011,595.54
Bath & North East Somerset Council,80010116,LL3,Direct Payments,P03,Wellbeing,REDACTED,01/08/2011,595.54
Bath & North East Somerset Council,80010116,LL3,Individualised Budget,P03,Wellbeing,SHAW TRUST LTD,01/08/2011,595.64
Bath & North East Somerset Council,80010116,LL3,Individualised Budget,P03,Wellbeing,SHAW TRUST LTD,01/08/2011,595.64
Bath & North East Somerset Council,80010116,LL3,Nursing Care,P03,Wellbeing,GROVE CARE LTD T/A ORIEL LODGE,01/08/2011,600.00
Bath & North East Somerset Council,80010116,7S1,Nursing Care,P03,Wellbeing,GROVE CARE LTD T/A ORIEL LODGE,01/08/2011,600.00
Bath & North East Somerset Council,80010117,LL3,Nursing Care,P03,Wellbeing,CULVERHAY NURSING HOME,01/08/2011,600.00
Bath & North East Somerset Council,80010117,LL3,Nursing Care,P03,Wellbeing,CULVERHAY NURSING HOME,01/08/2011,600.00
Bath & North East Somerset Council,80010117,LL3,Nursing Care,P03,Wellbeing,CULVERHAY NURSING HOME,01/08/2011,600.00
Bath & North East Somerset Council,80010117,LL3,Nursing Care,P03,Wellbeing,CULVERHAY NURSING HOME,01/08/2011,600.00
Bath & North East Somerset Council,80010117,7S1,Supported Living,P03,Wellbeing,OPTIONS FOR LIVING LTD,01/08/2011,603.14
Bath & North East Somerset Council,80010119,LM8,Supported Living,P03,Wellbeing,OPTIONS FOR LIVING LTD,01/08/2011,603.14
Bath & North East Somerset Council,80010119,LM8,Nursing Care,P03,Wellbeing,WESTCROFT NURSING HOME,01/08/2011,610.20
Bath & North East Somerset Council,80010119,LM8,Nursing Care,P03,Wellbeing,WESTCROFT NURSING HOME,01/08/2011,610.20
Bath & North East Somerset Council,80010119,7S1,Nursing Care,P03,Wellbeing,METHODIST HOMES FOR THE AGED,01/08/2011,616.00
Bath & North East Somerset Council,80010122,LL8,Nursing Care,P03,Wellbeing,METHODIST HOMES FOR THE AGED,01/08/2011,616.00
Bath & North East Somerset Council,80010122,LL8,Nursing Care,P03,Wellbeing,BRISTOL AGE CARE,01/08/2011,620.00
Bath & North East Somerset Council,80010122,LL8,Nursing Care,P03,Wellbeing,BRISTOL AGE CARE,01/08/2011,620.00
Bath & North East Somerset Council,80010122,LL8,Nursing Care,P03,Wellbeing,EUROPEAN CARE SW LTD - REDACTED AC,01/08/2011,641.22
Bath & North East Somerset Council,80010122,7S1,Nursing Care,P03,Wellbeing,EUROPEAN CARE SW LTD - REDACTED AC,01/08/2011,641.22
Bath & North East Somerset Council,80010130,LL8,Nursing Care,P03,Wellbeing,CHOLWELL HOUSE NURSING HOME,01/08/2011,646.60
Bath & North East Somerset Council,80010130,LL8,Nursing Care,P03,Wellbeing,CHOLWELL HOUSE NURSING HOME,01/08/2011,646.60
Bath & North East Somerset Council,80010130,7S1,Nursing Care,P03,Wellbeing,CHOLWELL HOUSE NURSING HOME,01/08/2011,650.00
Bath & North East Somerset Council,80010134,LL8,Nursing Care,P03,Wellbeing,CHOLWELL HOUSE NURSING HOME,01/08/2011,650.00
Bath & North East Somerset Council,80010134,YF2,Nursing Care,P03,Wellbeing,OAKFIELD,01/08/2011,650.00
Bath & North East Somerset Council,80010134,LL8,Nursing Care,P03,Wellbeing,OAKFIELD,01/08/2011,650.00
Bath & North East Somerset Council,80010134,YF2,Nursing Care,P03,Wellbeing,BARCHESTER HEALTHCARE HOMES LTD,01/08/2011,650.00
Bath & North East Somerset Council,80010134,7S1,Nursing Care,P03,Wellbeing,BARCHESTER HEALTHCARE HOMES LTD,01/08/2011,650.00
Bath & North East Somerset Council,80010138,LL8,Nursing Care,P03,Wellbeing,BARCHESTER HEALTHCARE HOMES LTD,01/08/2011,650.00
Bath & North East Somerset Council,80010138,LL8,Nursing Care,P03,Wellbeing,BARCHESTER HEALTHCARE HOMES LTD,01/08/2011,650.00
Bath & North East Somerset Council,80010138,7S1,Nursing Care,P03,Wellbeing,BARCHESTER HEALTHCARE HOMES LTD,01/08/2011,650.00
Bath & North East Somerset Council,80010142,LL8,Nursing Care,P03,Wellbeing,BARCHESTER HEALTHCARE HOMES LTD,01/08/2011,650.00
Bath & North East Somerset Council,80010142,LL8,Nursing Care,P03,Wellbeing,BARCHESTER HEALTHCARE HOMES LTD,01/08/2011,650.00
Bath & North East Somerset Council,80010142,7S1,Nursing Care,P03,Wellbeing,BARCHESTER HEALTHCARE HOMES LTD,01/08/2011,650.00
Bath & North East Somerset Council,80010145,LL8,Nursing Care,P03,Wellbeing,BARCHESTER HEALTHCARE HOMES LTD,01/08/2011,650.00
Bath & North East Somerset Council,80010145,LL8,Nursing Care,P03,Wellbeing,BARCHESTER HEALTHCARE HOMES LTD,01/08/2011,650.00
Bath & North East Somerset Council,80010145,7S1,Nursing Care,P03,Wellbeing,BARCHESTER HEALTHCARE HOMES LTD,01/08/2011,650.00
Bath & North East Somerset Council,80010148,LL8,Nursing Care,P03,Wellbeing,BARCHESTER HEALTHCARE HOMES LTD,01/08/2011,650.00
Bath & North East Somerset Council,80010148,LL8,Nursing Care,P03,Wellbeing,BARCHESTER HEALTHCARE HOMES LTD,01/08/2011,650.00
Bath & North East Somerset Council,80010148,LL8,Nursing Care,P03,Wellbeing,BARCHESTER HEALTHCARE HOMES LTD,01/08/2011,650.00
Bath & North East Somerset Council,80010148,LL8,Nursing Care,P03,Wellbeing,BARCHESTER HEALTHCARE HOMES LTD,01/08/2011,650.00
Bath & North East Somerset Council,80010148,LL8,Nursing Care,P03,Wellbeing,BARCHESTER HEALTHCARE HOMES LTD,01/08/2011,650.00
Bath & North East Somerset Council,80010148,LL8,Nursing Care,P03,Wellbeing,BARCHESTER HEALTHCARE HOMES LTD,01/08/2011,650.00
Bath & North East Somerset Council,80010148,7S1,Nursing Care,P03,Wellbeing,BARCHESTER HEALTHCARE HOMES LTD,01/08/2011,650.00
Bath & North East Somerset Council,80010155,YF2,Nursing Care,P03,Wellbeing,BARCHESTER HEALTHCARE HOMES LTD,01/08/2011,650.00
Bath & North East Somerset Council,80010155,LL8,Nursing Care,P03,Wellbeing,REDACTED,01/08/2011,650.00
Bath & North East Somerset Council,80010155,YF2,Nursing Care,P03,Wellbeing,LARKHALL SPRINGS NURSING HOME,01/08/2011,650.00
Bath & North East Somerset Council,80010155,LL8,Nursing Care,P03,Wellbeing,LARKHALL SPRINGS NURSING HOME,01/08/2011,650.00
Bath & North East Somerset Council,80010155,7S1,Nursing Care,P03,Wellbeing,LARKHALL SPRINGS NURSING HOME,01/08/2011,650.00
Bath & North East Somerset Council,80010156,LL8,Nursing Care,P03,Wellbeing,LARKHALL SPRINGS NURSING HOME,01/08/2011,650.00
Bath & North East Somerset Council,80010156,LL8,Nursing Care,P03,Wellbeing,LARKHALL SPRINGS NURSING HOME,01/08/2011,650.00
Bath & North East Somerset Council,80010156,7S1,Nursing Care,P03,Wellbeing,LARKHALL SPRINGS NURSING HOME,01/08/2011,650.00
Bath & North East Somerset Council,80010159,YF2,Nursing Care,P03,Wellbeing,LARKHALL SPRINGS NURSING HOME,01/08/2011,650.00
Bath & North East Somerset Council,80010159,LL8,Nursing Care,P03,Wellbeing,EUROPEAN CARE (UK) LTD - REDACTED A/C,01/08/2011,650.00
Bath & North East Somerset Council,80010159,YF2,Nursing Care,P03,Wellbeing,EUROPEAN CARE (UK) LTD - REDACTED A/C,01/08/2011,650.00
Bath & North East Somerset Council,80010162,LL8,Nursing Care,P03,Wellbeing,EUROPEAN CARE (UK) LTD - REDACTED A/C,01/08/2011,650.00
Bath & North East Somerset Council,80010162,LL8,Nursing Care,P03,Wellbeing,EUROPEAN CARE (UK) LTD - REDACTED A/C,01/08/2011,650.00
Bath & North East Somerset Council,80010162,LL8,Nursing Care,P03,Wellbeing,EUROPEAN CARE (UK) LTD - REDACTED A/C,01/08/2011,650.00
Bath & North East Somerset Council,80010162,LL8,Nursing Care,P03,Wellbeing,CARE FIRST CARE HOMES LTD,01/08/2011,650.00
Bath & North East Somerset Council,80010162,LL8,Nursing Care,P03,Wellbeing,CARE FIRST CARE HOMES LTD,01/08/2011,650.00
Bath & North East Somerset Council,80010162,YF2,Nursing Care,P03,Wellbeing,CARE FIRST CARE HOMES LTD,01/08/2011,650.00
Bath & North East Somerset Council,80010162,YF2,Nursing Care,P03,Wellbeing,CARE FIRST CARE HOMES LTD,01/08/2011,650.00
Bath & North East Somerset Council,80010162,LL8,Nursing Care,P03,Wellbeing,SOUTHERN CROSS (REDACTED),01/08/2011,650.00
Bath & North East Somerset Council,80010162,LL8,Nursing Care,P03,Wellbeing,SOUTHERN CROSS (REDACTED),01/08/2011,650.00
Bath & North East Somerset Council,80010162,LL8,Nursing Care,P03,Wellbeing,SOUTHERN CROSS (REDACTED),01/08/2011,650.00
Bath & North East Somerset Council,80010162,LL8,Nursing Care,P03,Wellbeing,SOUTHERN CROSS (REDACTED),01/08/2011,650.00
Bath & North East Somerset Council,80010162,LL8,Nursing Care,P03,Wellbeing,BRIDGE CARE LTD,01/08/2011,650.00
Bath & North East Somerset Council,80010162,LL8,Nursing Care,P03,Wellbeing,BRIDGE CARE LTD,01/08/2011,650.00
Bath & North East Somerset Council,80010162,7S1,Nursing Care,P03,Wellbeing,BARKER CHEMICALS LTD T/A ST TERESA'S NH,01/08/2011,650.00
Bath & North East Somerset Council,80010167,LL8,Nursing Care,P03,Wellbeing,BARKER CHEMICALS LTD T/A ST TERESA'S NH,01/08/2011,650.00
Bath & North East Somerset Council,80010167,LL8,Nursing Care,P03,Wellbeing,BARKER CHEMICALS LTD T/A ST TERESA'S NH,01/08/2011,650.00
Bath & North East Somerset Council,80010167,7S1,Nursing Care,P03,Wellbeing,BARKER CHEMICALS LTD T/A ST TERESA'S NH,01/08/2011,650.00
Bath & North East Somerset Council,80010168,LL8,Nursing Care,P03,Wellbeing,BARKER CHEMICALS LTD T/A ST TERESA'S NH,01/08/2011,650.00
Bath & North East Somerset Council,80010168,LL8,Nursing Care,P03,Wellbeing,BARKER CHEMICALS LTD T/A ST TERESA'S NH,01/08/2011,650.00
Bath & North East Somerset Council,80010168,7S1,Nursing Care,P03,Wellbeing,BARKER CHEMICALS LTD T/A ST TERESA'S NH,01/08/2011,650.00
Bath & North East Somerset Council,80010171,LL8,Nursing Care,P03,Wellbeing,BARKER CHEMICALS LTD T/A ST TERESA'S NH,01/08/2011,650.00
Bath & North East Somerset Council,80010171,LL8,Nursing Care,P03,Wellbeing,CARE FIRST CARE HOMES LTD,01/08/2011,650.00
Bath & North East Somerset Council,80010171,7S1,Nursing Care,P03,Wellbeing,CARE FIRST CARE HOMES LTD,01/08/2011,650.00
Bath & North East Somerset Council,80010173,LL8,Nursing Care,P03,Wellbeing,CARE FIRST CARE HOMES LTD,01/08/2011,650.00
Bath & North East Somerset Council,80010173,LL8,Nursing Care,P03,Wellbeing,CARE FIRST CARE HOMES LTD,01/08/2011,650.00
Bath & North East Somerset Council,80010173,7S1,Nursing Care,P03,Wellbeing,STANTON COURT,01/08/2011,650.00
Bath & North East Somerset Council,80010178,LL8,Nursing Care,P03,Wellbeing,STANTON COURT,01/08/2011,650.00
Bath & North East Somerset Council,80010178,LL8,Nursing Care,P03,Wellbeing,CEDAR CARE HOMES LTD,01/08/2011,650.00
Bath & North East Somerset Council,80010178,7S1,Nursing Care,P03,Wellbeing,CEDAR CARE HOMES LTD,01/08/2011,650.00
Bath & North East Somerset Council,80010179,LL8,Nursing Care,P03,Wellbeing,CEDAR CARE HOMES LTD,01/08/2011,650.00
Bath & North East Somerset Council,80010179,7S1,Nursing Care,P03,Wellbeing,CEDAR CARE HOMES LTD,01/08/2011,650.00
Bath & North East Somerset Council,80010183,YF2,Nursing Care,P03,Wellbeing,CEDAR CARE HOMES LTD,01/08/2011,650.00
Bath & North East Somerset Council,80010183,YF2,Nursing Care,P03,Wellbeing,CEDAR CARE HOMES LTD,01/08/2011,650.00
Bath & North East Somerset Council,80010183,LL8,Nursing Care,P03,Wellbeing,CEDAR CARE HOMES LTD,01/08/2011,650.00
Bath & North East Somerset Council,80010183,LL8,Nursing Care,P03,Wellbeing,CEDAR CARE HOMES LTD,01/08/2011,650.00
Bath & North East Somerset Council,80010183,7S1,Nursing Care,P03,Wellbeing,CEDAR CARE HOMES LTD,01/08/2011,650.00
Bath & North East Somerset Council,80010187,LL8,Nursing Care,P03,Wellbeing,CEDAR CARE HOMES LTD,01/08/2011,650.00
Bath & North East Somerset Council,80010187,7S1,Nursing Care,P03,Wellbeing,CEDAR CARE HOMES LTD,01/08/2011,650.00
Bath & North East Somerset Council,80010189,LL8,Nursing Care,P03,Wellbeing,CEDAR CARE HOMES LTD,01/08/2011,650.00
Bath & North East Somerset Council,80010189,LL8,Nursing Care,P03,Wellbeing,CEDAR CARE HOMES LTD,01/08/2011,650.00
Bath & North East Somerset Council,80010189,7S1,Nursing Care,P03,Wellbeing,CEDAR CARE HOMES LTD,01/08/2011,650.00
Bath & North East Somerset Council,80010194,LL8,Nursing Care,P03,Wellbeing,CEDAR CARE HOMES LTD,01/08/2011,650.00
Bath & North East Somerset Council,80010194,LL8,Nursing Care,P03,Wellbeing,CEDAR CARE HOMES LTD,01/08/2011,650.00
Bath & North East Somerset Council,80010194,7S1,Nursing Care,P03,Wellbeing,CEDAR CARE HOMES LTD,01/08/2011,650.00
Bath & North East Somerset Council,80010196,YF2,Nursing Care,P03,Wellbeing,CEDAR CARE HOMES LTD,01/08/2011,650.00
Bath & North East Somerset Council,80010196,LL8,Nursing Care,P03,Wellbeing,CEDAR CARE HOMES LTD,01/08/2011,650.00
Bath & North East Somerset Council,80010196,YF2,Nursing Care,P03,Wellbeing,CEDAR CARE HOMES LTD,01/08/2011,650.00
Bath & North East Somerset Council,80010196,LL8,Nursing Care,P03,Wellbeing,WESTCROFT NURSING HOME,01/08/2011,650.00
Bath & North East Somerset Council,80010196,7S1,Nursing Care,P03,Wellbeing,WESTCROFT NURSING HOME,01/08/2011,650.00
Bath & North East Somerset Council,80010199,LL8,Nursing Care,P03,Wellbeing,PARK STREET HOME,01/08/2011,650.00
Bath & North East Somerset Council,80010199,LL8,Nursing Care,P03,Wellbeing,PARK STREET HOME,01/08/2011,650.00
Bath & North East Somerset Council,80010199,7S1,Nursing Care,P03,Wellbeing,CULVERHAY NURSING HOME,01/08/2011,650.00
Bath & North East Somerset Council,80010204,YF2,Nursing Care,P03,Wellbeing,CULVERHAY NURSING HOME,01/08/2011,650.00
Bath & North East Somerset Council,80010204,LL8,Nursing Care,P03,Wellbeing,CULVERHAY NURSING HOME,01/08/2011,650.00
Bath & North East Somerset Council,80010204,YF2,Nursing Care,P03,Wellbeing,CULVERHAY NURSING HOME,01/08/2011,650.00
Bath & North East Somerset Council,80010204,LL8,Nursing Care,P03,Wellbeing,CULVERHAY NURSING HOME,01/08/2011,650.00
Bath & North East Somerset Council,80010204,7S1,Nursing Care,P03,Wellbeing,CULVERHAY NURSING HOME,01/08/2011,650.00
Bath & North East Somerset Council,80010213,LL8,Nursing Care,P03,Wellbeing,CULVERHAY NURSING HOME,01/08/2011,650.00
Bath & North East Somerset Council,80010213,YF2,Nursing Care,P03,Wellbeing,CULVERHAY NURSING HOME,01/08/2011,650.00
Bath & North East Somerset Council,80010213,LL8,Nursing Care,P03,Wellbeing,CULVERHAY NURSING HOME,01/08/2011,650.00
Bath & North East Somerset Council,80010213,YF2,Nursing Care,P03,Wellbeing,CULVERHAY NURSING HOME,01/08/2011,650.00
Bath & North East Somerset Council,80010213,7S1,Nursing Care,P03,Wellbeing,CULVERHAY NURSING HOME,01/08/2011,650.00
Bath & North East Somerset Council,80010225,LL8,Nursing Care,P03,Wellbeing,CULVERHAY NURSING HOME,01/08/2011,650.00
Bath & North East Somerset Council,80010225,7S1,Nursing Care,P03,Wellbeing,CULVERHAY NURSING HOME,01/08/2011,650.00
Bath & North East Somerset Council,80010227,LM8,Nursing Care,P03,Wellbeing,CULVERHAY NURSING HOME,01/08/2011,650.00
Bath & North East Somerset Council,80010227,LM8,Nursing Care,P03,Wellbeing,CULVERHAY NURSING HOME,01/08/2011,650.00
Bath & North East Somerset Council,80010227,LM8,Nursing Care,P03,Wellbeing,CULVERHAY NURSING HOME,01/08/2011,650.00
Bath & North East Somerset Council,80010227,LM8,Nursing Care,P03,Wellbeing,CULVERHAY NURSING HOME,01/08/2011,650.00
Bath & North East Somerset Council,80010227,LM8,Nursing Care,P03,Wellbeing,CULVERHAY NURSING HOME,01/08/2011,650.00
Bath & North East Somerset Council,80010227,LM8,Nursing Care,P03,Wellbeing,CULVERHAY NURSING HOME,01/08/2011,650.00
Bath & North East Somerset Council,80010227,LM8,Nursing Care,P03,Wellbeing,CULVERHAY NURSING HOME,01/08/2011,650.00
Bath & North East Somerset Council,80010227,LM8,Nursing Care,P03,Wellbeing,CULVERHAY NURSING HOME,01/08/2011,650.00
Bath & North East Somerset Council,80010227,LM8,Nursing Care,P03,Wellbeing,CULVERHAY NURSING HOME,01/08/2011,650.00
Bath & North East Somerset Council,80010227,LM8,Nursing Care,P03,Wellbeing,CULVERHAY NURSING HOME,01/08/2011,650.00
Bath & North East Somerset Council,80010227,LM8,Nursing Care,P03,Wellbeing,CULVERHAY NURSING HOME,01/08/2011,650.00
Bath & North East Somerset Council,80010227,LM8,Nursing Care,P03,Wellbeing,CULVERHAY NURSING HOME,01/08/2011,650.00
Bath & North East Somerset Council,80010227,LM8,Nursing Care,P03,Wellbeing,CULVERHAY NURSING HOME,01/08/2011,650.00
Bath & North East Somerset Council,80010227,LM8,Nursing Care,P03,Wellbeing,CULVERHAY NURSING HOME,01/08/2011,650.00
Bath & North East Somerset Council,80010227,LM8,Nursing Care,P03,Wellbeing,CULVERHAY NURSING HOME,01/08/2011,650.00
Bath & North East Somerset Council,80010227,LM8,Nursing Care,P03,Wellbeing,CULVERHAY NURSING HOME,01/08/2011,650.00
Bath & North East Somerset Council,80010227,LM8,Nursing Care,P03,Wellbeing,CULVERHAY NURSING HOME,01/08/2011,650.00
Bath & North East Somerset Council,80010227,LM8,Nursing Care,P03,Wellbeing,CULVERHAY NURSING HOME,01/08/2011,650.00
Bath & North East Somerset Council,80010227,LM8,Nursing Care,P03,Wellbeing,CULVERHAY NURSING HOME,01/08/2011,650.00
Bath & North East Somerset Council,80010227,LM8,Nursing Care,P03,Wellbeing,CULVERHAY NURSING HOME,01/08/2011,650.00
Bath & North East Somerset Council,80010227,LM8,Nursing Care,P03,Wellbeing,CULVERHAY NURSING HOME,01/08/2011,650.00
Bath & North East Somerset Council,80010227,LM8,Nursing Care,P03,Wellbeing,CULVERHAY NURSING HOME,01/08/2011,650.00
Bath & North East Somerset Council,80010227,LM8,Nursing Care,P03,Wellbeing,CULVERHAY NURSING HOME,01/08/2011,650.00
Bath & North East Somerset Council,80010227,7S1,Nursing Care,P03,Wellbeing,CULVERHAY NURSING HOME,01/08/2011,650.00
Bath & North East Somerset Council,80010228,LL8,Nursing Care,P03,Wellbeing,CULVERHAY NURSING HOME,01/08/2011,650.00
Bath & North East Somerset Council,80010228,LL8,Nursing Care,P03,Wellbeing,CULVERHAY NURSING HOME,01/08/2011,650.00
Bath & North East Somerset Council,80010228,7S1,Day Care,P03,Wellbeing,S.W.A.L.L.O.W. LTD,01/08/2011,660.00
Bath & North East Somerset Council,80010230,YF2,Nursing Care,P03,Wellbeing,ROSEVILLE CARE HOMES MELKSHAM,01/08/2011,665.00
Bath & North East Somerset Council,80010230,LL8,Nursing Care,P03,Wellbeing,ROSEVILLE CARE HOMES MELKSHAM,01/08/2011,665.00
Bath & North East Somerset Council,80010230,YF2,Individualised Budget,P03,Wellbeing,REDACTED,01/08/2011,667.25
Bath & North East Somerset Council,80010230,LL8,Individualised Budget,P03,Wellbeing,REDACTED,01/08/2011,667.25
Bath & North East Somerset Council,80010230,7S1,Nursing Care,P03,Wellbeing,T C CAREHOME LTD,01/08/2011,675.00
Bath & North East Somerset Council,80010231,YF2,Nursing Care,P03,Wellbeing,T C CAREHOME LTD,01/08/2011,675.00
Bath & North East Somerset Council,80010231,LL8,Nursing Care,P03,Wellbeing,BARCHESTER HEALTHCARE HOMES LTD,01/08/2011,675.61
Bath & North East Somerset Council,80010231,YF2,Nursing Care,P03,Wellbeing,BARCHESTER HEALTHCARE HOMES LTD,01/08/2011,675.61
Bath & North East Somerset Council,80010231,LL8,Supported Living,P03,Wellbeing,NATIONAL AUTISTIC SOCIETY,01/08/2011,680.75
Bath & North East Somerset Council,80010231,7S1,Supported Living,P03,Wellbeing,NATIONAL AUTISTIC SOCIETY,01/08/2011,680.75
Bath & North East Somerset Council,80010232,YF2,Supported Living,P03,Wellbeing,NATIONAL AUTISTIC SOCIETY,01/08/2011,680.75
Bath & North East Somerset Council,80010232,LL8,Supported Living,P03,Wellbeing,NATIONAL AUTISTIC SOCIETY,01/08/2011,680.75
Bath & North East Somerset Council,80010232,YF2,Nursing Care,P03,Wellbeing,BARCHESTER HEALTHCARE HOMES LTD,01/08/2011,691.00
Bath & North East Somerset Council,80010232,LL8,Nursing Care,P03,Wellbeing,BARCHESTER HEALTHCARE HOMES LTD,01/08/2011,691.00
Bath & North East Somerset Council,80010232,7S1,Individualised Budget,P03,Wellbeing,SHAW TRUST LTD,01/08/2011,694.72
Bath & North East Somerset Council,80010233,LL8,Individualised Budget,P03,Wellbeing,SHAW TRUST LTD,01/08/2011,694.72
Bath & North East Somerset Council,80010233,LL8,Nursing Care,P03,Wellbeing,BARKER CHEMICALS LTD T/A ST TERESA'S NH,01/08/2011,700.00
Bath & North East Somerset Council,80010233,7S1,Nursing Care,P03,Wellbeing,BARKER CHEMICALS LTD T/A ST TERESA'S NH,01/08/2011,700.00
Bath & North East Somerset Council,80010234,LL8,Nursing Care,P03,Wellbeing,CULVERHAY NURSING HOME,01/08/2011,700.00
Bath & North East Somerset Council,80010234,YF2,Nursing Care,P03,Wellbeing,CULVERHAY NURSING HOME,01/08/2011,700.00
Bath & North East Somerset Council,80010234,LL8,Nursing Care,P03,Wellbeing,CULVERHAY NURSING HOME,01/08/2011,700.00
Bath & North East Somerset Council,80010234,YF2,Nursing Care,P03,Wellbeing,CULVERHAY NURSING HOME,01/08/2011,700.00
Bath & North East Somerset Council,80010234,7S1,Nursing Care,P03,Wellbeing,CULVERHAY NURSING HOME,01/08/2011,700.00
Bath & North East Somerset Council,80010235,LM8,Nursing Care,P03,Wellbeing,CULVERHAY NURSING HOME,01/08/2011,700.00
Bath & North East Somerset Council,80010235,LM8,Nursing Care,P03,Wellbeing,CULVERHAY NURSING HOME,01/08/2011,700.00
Bath & North East Somerset Council,80010235,LM8,Nursing Care,P03,Wellbeing,CULVERHAY NURSING HOME,01/08/2011,700.00
Bath & North East Somerset Council,80010235,LM8,Home Care,P03,Wellbeing,AGINCARE LIVE IN CARE SERVICES LTD,01/08/2011,700.00
Bath & North East Somerset Council,80010235,LM8,Home Care,P03,Wellbeing,AGINCARE LIVE IN CARE SERVICES LTD,01/08/2011,700.00
Bath & North East Somerset Council,80010235,7S1,Home Care,P03,Wellbeing,AGINCARE LIVE IN CARE SERVICES LTD,01/08/2011,700.00
Bath & North East Somerset Council,80010237,LL3,Home Care,P03,Wellbeing,AGINCARE LIVE IN CARE SERVICES LTD,01/08/2011,700.00
Bath & North East Somerset Council,80010237,LL3,Home Care,P03,Wellbeing,SAFE & SOUND HOMECARE SERVICES,01/08/2011,707.00
Bath & North East Somerset Council,80010237,LL3,Home Care,P03,Wellbeing,SAFE & SOUND HOMECARE SERVICES,01/08/2011,707.00
Bath & North East Somerset Council,80010237,LL3,Nursing Care,P03,Wellbeing,CHOLWELL HOUSE NURSING HOME,01/08/2011,711.90
Bath & North East Somerset Council,80010237,LL3,Nursing Care,P03,Wellbeing,CHOLWELL HOUSE NURSING HOME,01/08/2011,711.90
Bath & North East Somerset Council,80010237,LL3,Nursing Care,P03,Wellbeing,CHOLWELL HOUSE NURSING HOME,01/08/2011,711.90
Bath & North East Somerset Council,80010237,7S1,Nursing Care,P03,Wellbeing,CHOLWELL HOUSE NURSING HOME,01/08/2011,711.90
Bath & North East Somerset Council,80010238,LM8,Nursing Care,P03,Wellbeing,WESTCROFT NURSING HOME,01/08/2011,711.90
Bath & North East Somerset Council,80010238,LM8,Nursing Care,P03,Wellbeing,WESTCROFT NURSING HOME,01/08/2011,711.90
Bath & North East Somerset Council,80010238,LM8,Supported Living,P03,Wellbeing,DIMENSIONS (UK) LTD,01/08/2011,724.30
Bath & North East Somerset Council,80010238,LM8,Supported Living,P03,Wellbeing,DIMENSIONS (UK) LTD,01/08/2011,724.30
Bath & North East Somerset Council,80010238,LM8,Supported Living,P03,Wellbeing,DIMENSIONS (UK) LTD,01/08/2011,724.30
Bath & North East Somerset Council,80010238,LM8,Supported Living,P03,Wellbeing,DIMENSIONS (UK) LTD,01/08/2011,724.30
Bath & North East Somerset Council,80010238,LM8,Nursing Care,P03,Wellbeing,CHOLWELL HOUSE NURSING HOME,01/08/2011,725.00
Bath & North East Somerset Council,80010238,7S1,Nursing Care,P03,Wellbeing,CHOLWELL HOUSE NURSING HOME,01/08/2011,725.00
Bath & North East Somerset Council,80010241,LL8,Nursing Care,P03,Wellbeing,CHOLWELL HOUSE NURSING HOME,01/08/2011,725.00
Bath & North East Somerset Council,80010241,LL8,Nursing Care,P03,Wellbeing,CHOLWELL HOUSE NURSING HOME,01/08/2011,725.00
Bath & North East Somerset Council,80010241,LL8,Nursing Care,P03,Wellbeing,BARCHESTER HEALTHCARE HOMES LTD,01/08/2011,725.00
Bath & North East Somerset Council,80010241,YF2,Nursing Care,P03,Wellbeing,BARCHESTER HEALTHCARE HOMES LTD,01/08/2011,725.00
Bath & North East Somerset Council,80010241,YF2,Nursing Care,P03,Wellbeing,BARKER CHEMICALS LTD T/A ST TERESA'S NH,01/08/2011,725.00
Bath & North East Somerset Council,80010241,7S1,Nursing Care,P03,Wellbeing,BARKER CHEMICALS LTD T/A ST TERESA'S NH,01/08/2011,725.00
Bath & North East Somerset Council,80010243,LL8,Nursing Care,P03,Wellbeing,CEDAR PARK NURSING HOME,01/08/2011,725.00
Bath & North East Somerset Council,80010243,LL8,Nursing Care,P03,Wellbeing,CEDAR PARK NURSING HOME,01/08/2011,725.00
Bath & North East Somerset Council,80010243,7S1,Nursing Care,P03,Wellbeing,CULVERHAY NURSING HOME,01/08/2011,725.00
Bath & North East Somerset Council,80010244,YF2,Nursing Care,P03,Wellbeing,CULVERHAY NURSING HOME,01/08/2011,725.00
Bath & North East Somerset Council,80010244,LL8,Nursing Care,P03,Wellbeing,EUROPEAN CARE (UK) LTD - REDACTED A/C,01/08/2011,739.87
Bath & North East Somerset Council,80010244,YF2,Nursing Care,P03,Wellbeing,EUROPEAN CARE (UK) LTD - REDACTED A/C,01/08/2011,739.87
Bath & North East Somerset Council,80010244,LL8,Individualised Budget,P03,Wellbeing,REDACTED,01/08/2011,739.96
Bath & North East Somerset Council,80010244,7S1,Individualised Budget,P03,Wellbeing,REDACTED,01/08/2011,739.96
Bath & North East Somerset Council,80010248,LL8,Nursing Care,P03,Wellbeing,MILLENNIUM CARE HOMES LTD,01/08/2011,745.00
Bath & North East Somerset Council,80010248,LL8,Nursing Care,P03,Wellbeing,MILLENNIUM CARE HOMES LTD,01/08/2011,745.00
Bath & North East Somerset Council,80010248,LL8,Nursing Care,P03,Wellbeing,BARCHESTER HEALTHCARE HOMES LTD,01/08/2011,750.00
Bath & North East Somerset Council,80010248,LL8,Nursing Care,P03,Wellbeing,BARCHESTER HEALTHCARE HOMES LTD,01/08/2011,750.00
Bath & North East Somerset Council,80010248,7S1,Nursing Care,P03,Wellbeing,BRIDGE CARE LTD,01/08/2011,750.00
Bath & North East Somerset Council,80010249,LM8,Nursing Care,P03,Wellbeing,BRIDGE CARE LTD,01/08/2011,750.00
Bath & North East Somerset Council,80010249,LM8,Nursing Care,P03,Wellbeing,STANTON COURT,01/08/2011,750.00
Bath & North East Somerset Council,80010249,LM8,Nursing Care,P03,Wellbeing,STANTON COURT,01/08/2011,750.00
Bath & North East Somerset Council,80010249,LM8,Nursing Care,P03,Wellbeing,BUPA CARE SERVICES BACS RECEIPTS,01/08/2011,750.00
Bath & North East Somerset Council,80010249,LM8,Nursing Care,P03,Wellbeing,BUPA CARE SERVICES BACS RECEIPTS,01/08/2011,750.00
Bath & North East Somerset Council,80010249,LM8,Nursing Care,P03,Wellbeing,CULVERHAY NURSING HOME,01/08/2011,750.00
Bath & North East Somerset Council,80010249,LM8,Nursing Care,P03,Wellbeing,CULVERHAY NURSING HOME,01/08/2011,750.00
Bath & North East Somerset Council,80010249,LM8,Nursing Care,P03,Wellbeing,CULVERHAY NURSING HOME,01/08/2011,750.00
Bath & North East Somerset Council,80010249,LM8,Nursing Care,P03,Wellbeing,CULVERHAY NURSING HOME,01/08/2011,750.00
Bath & North East Somerset Council,80010249,LM8,Nursing Care,P03,Wellbeing,CULVERHAY NURSING HOME,01/08/2011,750.00
Bath & North East Somerset Council,80010249,7S1,Nursing Care,P03,Wellbeing,CULVERHAY NURSING HOME,01/08/2011,750.00
Bath & North East Somerset Council,80010250,LL8,Nursing Care,P03,Wellbeing,CULVERHAY NURSING HOME,01/08/2011,750.00
Bath & North East Somerset Council,80010250,LL8,Nursing Care,P03,Wellbeing,CULVERHAY NURSING HOME,01/08/2011,750.00
Bath & North East Somerset Council,80010250,7S1,Nursing Care,P03,Wellbeing,CULVERHAY NURSING HOME,01/08/2011,750.00
Bath & North East Somerset Council,80010252,LL8,Nursing Care,P03,Wellbeing,CULVERHAY NURSING HOME,01/08/2011,750.00
Bath & North East Somerset Council,80010252,YF2,Nursing Care,P03,Wellbeing,CULVERHAY NURSING HOME,01/08/2011,750.00
Bath & North East Somerset Council,80010252,LL8,Nursing Care,P03,Wellbeing,CULVERHAY NURSING HOME,01/08/2011,750.00
Bath & North East Somerset Council,80010252,YF2,Nursing Care,P03,Wellbeing,CARE FIRST CARE HOMES LTD,01/08/2011,754.61
Bath & North East Somerset Council,80010252,7S1,Nursing Care,P03,Wellbeing,CARE FIRST CARE HOMES LTD,01/08/2011,754.61
Bath & North East Somerset Council,80010257,YF2,Nursing Care,P03,Wellbeing,BARCHESTER HEALTHCARE HOMES LTD,01/08/2011,755.00
Bath & North East Somerset Council,80010257,LL8,Nursing Care,P03,Wellbeing,BARCHESTER HEALTHCARE HOMES LTD,01/08/2011,755.00
Bath & North East Somerset Council,80010257,YF2,Supported Living,P03,Wellbeing,NATIONAL AUTISTIC SOCIETY,01/08/2011,759.05
Bath & North East Somerset Council,80010257,LL8,Supported Living,P03,Wellbeing,NATIONAL AUTISTIC SOCIETY,01/08/2011,759.05
Bath & North East Somerset Council,80010257,7S1,Supported Living,P03,Wellbeing,NATIONAL AUTISTIC SOCIETY,01/08/2011,759.05
Bath & North East Somerset Council,80010258,LL8,Supported Living,P03,Wellbeing,NATIONAL AUTISTIC SOCIETY,01/08/2011,759.05
Bath & North East Somerset Council,80010258,LL8,Nursing Care,P03,Wellbeing,BARCHESTER HEALTHCARE HOMES LTD,01/08/2011,762.75
Bath & North East Somerset Council,80010258,7S1,Nursing Care,P03,Wellbeing,BARCHESTER HEALTHCARE HOMES LTD,01/08/2011,762.75
Bath & North East Somerset Council,80010260,LM8,Nursing Care,P03,Wellbeing,BARCHESTER HEALTHCARE HOMES LTD,01/08/2011,762.75
Bath & North East Somerset Council,80010260,LM8,Nursing Care,P03,Wellbeing,BARCHESTER HEALTHCARE HOMES LTD,01/08/2011,762.75
Bath & North East Somerset Council,80010260,LM8,Nursing Care,P03,Wellbeing,EXTRAFRIEND LTD,01/08/2011,762.75
Bath & North East Somerset Council,80010260,LM8,Nursing Care,P03,Wellbeing,EXTRAFRIEND LTD,01/08/2011,762.75
Bath & North East Somerset Council,80010260,LM8,Individualised Budget,P03,Wellbeing,REDACTED,01/08/2011,773.53
Bath & North East Somerset Council,80010260,LM8,Individualised Budget,P03,Wellbeing,REDACTED,01/08/2011,773.53
Bath & North East Somerset Council,80010260,LM8,Individualised Budget,P03,Wellbeing,REDACTED,01/08/2011,773.53
Bath & North East Somerset Council,80010260,LM8,Individualised Budget,P03,Wellbeing,REDACTED,01/08/2011,773.53
Bath & North East Somerset Council,80010260,LM8,Individualised Budget,P03,Wellbeing,REDACTED,01/08/2011,773.53
Bath & North East Somerset Council,80010260,LM8,Individualised Budget,P03,Wellbeing,REDACTED,01/08/2011,773.53
Bath & North East Somerset Council,80010260,LM8,Individualised Budget,P03,Wellbeing,REDACTED,01/08/2011,773.53
Bath & North East Somerset Council,80010260,LM8,Individualised Budget,P03,Wellbeing,REDACTED,01/08/2011,773.53
Bath & North East Somerset Council,80010260,LM8,Individualised Budget,P03,Wellbeing,REDACTED,01/08/2011,773.53
Bath & North East Somerset Council,80010260,LM8,Individualised Budget,P03,Wellbeing,REDACTED,01/08/2011,773.53
Bath & North East Somerset Council,80010260,7S1,Nursing Care,P03,Wellbeing,LIFESTYLE CARE (2005) PLC,01/08/2011,775.00
Bath & North East Somerset Council,80010265,LL3,Nursing Care,P03,Wellbeing,LIFESTYLE CARE (2005) PLC,01/08/2011,775.00
Bath & North East Somerset Council,80010265,LL3,Supported Living,P03,Wellbeing,NATIONAL AUTISTIC SOCIETY,01/08/2011,776.45
Bath & North East Somerset Council,80010265,LL3,Supported Living,P03,Wellbeing,NATIONAL AUTISTIC SOCIETY,01/08/2011,776.45
Bath & North East Somerset Council,80010265,LL3,Supported Living,P03,Wellbeing,NATIONAL AUTISTIC SOCIETY,01/08/2011,776.45
Bath & North East Somerset Council,80010265,LL3,Supported Living,P03,Wellbeing,NATIONAL AUTISTIC SOCIETY,01/08/2011,776.45
Bath & North East Somerset Council,80010265,LL3,Nursing Care,P03,Wellbeing,BARCHESTER HEALTHCARE HOMES LTD,01/08/2011,780.00
Bath & North East Somerset Council,80010265,LL3,Nursing Care,P03,Wellbeing,BARCHESTER HEALTHCARE HOMES LTD,01/08/2011,780.00
Bath & North East Somerset Council,80010265,LL3,Nursing Care,P03,Wellbeing,BARCHESTER HEALTHCARE HOMES LTD,01/08/2011,780.00
Bath & North East Somerset Council,80010265,LL3,Nursing Care,P03,Wellbeing,REDACTED,01/08/2011,787.00
Bath & North East Somerset Council,80010265,LL3,Nursing Care,P03,Wellbeing,REDACTED,01/08/2011,787.00
Bath & North East Somerset Council,80010265,LL3,Nursing Care,P03,Wellbeing,BARCHESTER HEALTHCARE HOMES LTD,01/08/2011,798.35
Bath & North East Somerset Council,80010265,LL3,Nursing Care,P03,Wellbeing,BARCHESTER HEALTHCARE HOMES LTD,01/08/2011,798.35
Bath & North East Somerset Council,80010265,LL3,Nursing Care,P03,Wellbeing,BARKER CHEMICALS LTD T/A ST TERESA'S NH,01/08/2011,800.00
Bath & North East Somerset Council,80010265,LL3,Nursing Care,P03,Wellbeing,BARKER CHEMICALS LTD T/A ST TERESA'S NH,01/08/2011,800.00
Bath & North East Somerset Council,80010265,LL3,Nursing Care,P03,Wellbeing,CEDAR CARE HOMES LTD,01/08/2011,800.00
Bath & North East Somerset Council,80010265,LL3,Nursing Care,P03,Wellbeing,CEDAR CARE HOMES LTD,01/08/2011,800.00
Bath & North East Somerset Council,80010265,LL3,Nursing Care,P03,Wellbeing,CEDAR CARE HOMES LTD,01/08/2011,800.00
Bath & North East Somerset Council,80010265,LL3,Nursing Care,P03,Wellbeing,CEDAR CARE HOMES LTD,01/08/2011,800.00
Bath & North East Somerset Council,80010265,LL3,Nursing Care,P03,Wellbeing,CULVERHAY NURSING HOME,01/08/2011,800.00
Bath & North East Somerset Council,80010265,LL3,Nursing Care,P03,Wellbeing,CULVERHAY NURSING HOME,01/08/2011,800.00
Bath & North East Somerset Council,80010265,LL3,Supported Living,P03,Wellbeing,NATIONAL AUTISTIC SOCIETY,01/08/2011,811.25
Bath & North East Somerset Council,80010265,LL3,Supported Living,P03,Wellbeing,NATIONAL AUTISTIC SOCIETY,01/08/2011,811.25
Bath & North East Somerset Council,80010265,LL3,Supported Living,P03,Wellbeing,NATIONAL AUTISTIC SOCIETY,01/08/2011,811.25
Bath & North East Somerset Council,80010265,LL3,Supported Living,P03,Wellbeing,NATIONAL AUTISTIC SOCIETY,01/08/2011,811.25
Bath & North East Somerset Council,80010265,LL3,Supported Living,P03,Wellbeing,OPTIONS FOR LIVING LTD,01/08/2011,823.62
Bath & North East Somerset Council,80010265,LL3,Supported Living,P03,Wellbeing,OPTIONS FOR LIVING LTD,01/08/2011,823.62
Bath & North East Somerset Council,80010265,LL3,Nursing Care,P03,Wellbeing,STANTON COURT,01/08/2011,836.80
Bath & North East Somerset Council,80010265,LL3,Nursing Care,P03,Wellbeing,STANTON COURT,01/08/2011,836.80
Bath & North East Somerset Council,80010265,LL3,Nursing Care,P03,Wellbeing,BARCHESTER HEALTHCARE HOMES LTD,01/08/2011,839.03
Bath & North East Somerset Council,80010265,LL3,Nursing Care,P03,Wellbeing,BARCHESTER HEALTHCARE HOMES LTD,01/08/2011,839.03
Bath & North East Somerset Council,80010265,LL3,Nursing Care,P03,Wellbeing,STANTON COURT,01/08/2011,843.09
Bath & North East Somerset Council,80010265,LL3,Nursing Care,P03,Wellbeing,STANTON COURT,01/08/2011,843.09
Bath & North East Somerset Council,80010265,LL3,Supported Living,P03,Wellbeing,S.W.A.L.L.O.W. LTD,01/08/2011,859.05
Bath & North East Somerset Council,80010265,LL3,Supported Living,P03,Wellbeing,S.W.A.L.L.O.W. LTD,01/08/2011,859.05
Bath & North East Somerset Council,80010265,LL3,Supported Living,P03,Wellbeing,S.W.A.L.L.O.W. LTD,01/08/2011,859.05
Bath & North East Somerset Council,80010265,LL3,Supported Living,P03,Wellbeing,S.W.A.L.L.O.W. LTD,01/08/2011,859.05
Bath & North East Somerset Council,80010265,LL3,Supported Living,P03,Wellbeing,S.W.A.L.L.O.W. LTD,01/08/2011,859.05
Bath & North East Somerset Council,80010265,LL3,Nursing Care,P03,Wellbeing,CARE FIRST CARE HOMES LTD,01/08/2011,894.96
Bath & North East Somerset Council,80010265,LL3,Nursing Care,P03,Wellbeing,CARE FIRST CARE HOMES LTD,01/08/2011,894.96
Bath & North East Somerset Council,80010265,LL3,Nursing Care,P03,Wellbeing,CARE FIRST CARE HOMES LTD,01/08/2011,894.96
Bath & North East Somerset Council,80010265,LL3,Nursing Care,P03,Wellbeing,CARE FIRST CARE HOMES LTD,01/08/2011,894.96
Bath & North East Somerset Council,80010265,LL3,Nursing Care,P03,Wellbeing,CARE FIRST CARE HOMES LTD,01/08/2011,894.96
Bath & North East Somerset Council,80010265,LL3,Nursing Care,P03,Wellbeing,CARE FIRST CARE HOMES LTD,01/08/2011,894.96
Bath & North East Somerset Council,80010265,LL3,Individualised Budget,P03,Wellbeing,REDACTED,01/08/2011,900.00
Bath & North East Somerset Council,80010265,LL3,Nursing Care,P03,Wellbeing,BARCHESTER HEALTHCARE,01/08/2011,915.30
Bath & North East Somerset Council,80010265,LL3,Nursing Care,P03,Wellbeing,BARCHESTER HEALTHCARE,01/08/2011,915.30
Bath & North East Somerset Council,80010265,LL3,Supported Living,P03,Wellbeing,NATIONAL AUTISTIC SOCIETY,01/08/2011,915.65
Bath & North East Somerset Council,80010265,LL3,Supported Living,P03,Wellbeing,NATIONAL AUTISTIC SOCIETY,01/08/2011,915.65
Bath & North East Somerset Council,80010265,LL3,Supported Living,P03,Wellbeing,NATIONAL AUTISTIC SOCIETY,01/08/2011,915.65
Bath & North East Somerset Council,80010265,LL3,Supported Living,P03,Wellbeing,NATIONAL AUTISTIC SOCIETY,01/08/2011,915.65
Bath & North East Somerset Council,80010265,7S1,Supported Living,P03,Wellbeing,THREE TREES COMMUNITY SUPPORT LTD,01/08/2011,922.83
Bath & North East Somerset Council,80010267,LL8,Supported Living,P03,Wellbeing,THREE TREES COMMUNITY SUPPORT LTD,01/08/2011,922.83
Bath & North East Somerset Council,80010267,YF2,Supported Living,P03,Wellbeing,THREE TREES COMMUNITY SUPPORT LTD,01/08/2011,922.83
Bath & North East Somerset Council,80010267,LL8,Supported Living,P03,Wellbeing,THREE TREES COMMUNITY SUPPORT LTD,01/08/2011,922.83
Bath & North East Somerset Council,80010267,YF2,Supported Living,P03,Wellbeing,THREE TREES COMMUNITY SUPPORT LTD,01/08/2011,922.83
Bath & North East Somerset Council,80010267,YF2,Supported Living,P03,Wellbeing,THREE TREES COMMUNITY SUPPORT LTD,01/08/2011,922.83
Bath & North East Somerset Council,80010267,LL8,Supported Living,P03,Wellbeing,DIMENSIONS (UK) LTD,01/08/2011,923.54
Bath & North East Somerset Council,80010267,LL8,Nursing Care,P03,Wellbeing,EUROPEAN CARE SW LTD - REDACTED AC,01/08/2011,937.17
Bath & North East Somerset Council,80010267,YF2,Nursing Care,P03,Wellbeing,EUROPEAN CARE SW LTD - REDACTED AC,01/08/2011,937.17
Bath & North East Somerset Council,80010267,YF2,Individualised Budget,P03,Wellbeing,REDACTED,01/08/2011,951.82
Bath & North East Somerset Council,80010267,YF2,Individualised Budget,P03,Wellbeing,REDACTED,01/08/2011,951.82
Bath & North East Somerset Council,80010267,LL8,Nursing Care,P03,Wellbeing,LEONARD CHESHIRE FOUNDATION,01/08/2011,955.21
Bath & North East Somerset Council,80010267,LL8,Nursing Care,P03,Wellbeing,LEONARD CHESHIRE FOUNDATION,01/08/2011,955.21
Bath & North East Somerset Council,80010267,YF2,Nursing Care,P03,Wellbeing,WESTMINSTER HEALTHCARE LTD,01/08/2011,966.15
Bath & North East Somerset Council,80010267,LL8,Nursing Care,P03,Wellbeing,WESTMINSTER HEALTHCARE LTD,01/08/2011,966.15
Bath & North East Somerset Council,80010267,LL8,Nursing Care,P03,Wellbeing,LEONARD CHESHIRE FOUNDATION,01/08/2011,"1,013.81"
Bath & North East Somerset Council,80010267,LL8,Nursing Care,P03,Wellbeing,LEONARD CHESHIRE FOUNDATION,01/08/2011,"1,013.81"
Bath & North East Somerset Council,80010267,LL8,Nursing Care,P03,Wellbeing,REDACTED,01/08/2011,"1,015.00"
Bath & North East Somerset Council,80010267,LL8,Nursing Care,P03,Wellbeing,REDACTED,01/08/2011,"1,015.00"
Bath & North East Somerset Council,80010267,LL8,Nursing Care,P03,Wellbeing,DORSET LODGE LTD,01/08/2011,"1,060.81"
Bath & North East Somerset Council,80010267,LL8,Nursing Care,P03,Wellbeing,DORSET LODGE LTD,01/08/2011,"1,060.81"
Bath & North East Somerset Council,80010267,YF2,Nursing Care,P03,Wellbeing,LEONARD CHESHIRE FOUNDATION,01/08/2011,"1,086.00"
Bath & North East Somerset Council,80010267,YF2,Nursing Care,P03,Wellbeing,LEONARD CHESHIRE FOUNDATION,01/08/2011,"1,086.00"
Bath & North East Somerset Council,80010267,YF2,Nursing Care,P03,Wellbeing,MIRAMAR (OPERATIONS) LTD,01/08/2011,"1,087.50"
Bath & North East Somerset Council,80010267,YF2,Nursing Care,P03,Wellbeing,MIRAMAR (OPERATIONS) LTD,01/08/2011,"1,087.50"
Bath & North East Somerset Council,80010267,LL8,Nursing Care,P03,Wellbeing,LEONARD CHESHIRE FOUNDATION,01/08/2011,"1,176.50"
Bath & North East Somerset Council,80010267,LL8,Nursing Care,P03,Wellbeing,LEONARD CHESHIRE FOUNDATION,01/08/2011,"1,176.50"
Bath & North East Somerset Council,80010267,YF2,Nursing Care,P03,Wellbeing,LEONARD CHESHIRE FOUNDATION,01/08/2011,"1,194.83"
Bath & North East Somerset Council,80010267,LL8,Nursing Care,P03,Wellbeing,LEONARD CHESHIRE FOUNDATION,01/08/2011,"1,194.83"
Bath & North East Somerset Council,80010267,LL8,Home Care,P03,Wellbeing,ACTIVE ASSISTANCE,01/08/2011,"1,200.00"
Bath & North East Somerset Council,80010267,LL8,Individualised Budget,P03,Wellbeing,REDACTED,01/08/2011,"1,223.25"
Bath & North East Somerset Council,80010267,YF2,Individualised Budget,P03,Wellbeing,REDACTED,01/08/2011,"1,223.25"
Bath & North East Somerset Council,80010267,LL8,Individualised Budget,P03,Wellbeing,REDACTED CARE ACCOUNT,01/08/2011,"1,267.30"
Bath & North East Somerset Council,80010267,LL8,Individualised Budget,P03,Wellbeing,REDACTED CARE ACCOUNT,01/08/2011,"1,267.30"
Bath & North East Somerset Council,80010267,LL8,Direct Payments,P03,Wellbeing,REDACTED,01/08/2011,"1,293.48"
Bath & North East Somerset Council,80010267,LL8,Direct Payments,P03,Wellbeing,REDACTED,01/08/2011,"1,293.48"
Bath & North East Somerset Council,80010267,LL8,Home Care,P03,Wellbeing,ACTIVE ASSISTANCE,01/08/2011,"1,300.00"
Bath & North East Somerset Council,80010267,LL8,Nursing Care,P03,Wellbeing,LEONARD CHESHIRE FOUNDATION,01/08/2011,"1,321.05"
Bath & North East Somerset Council,80010267,LL8,Nursing Care,P03,Wellbeing,LEONARD CHESHIRE FOUNDATION,01/08/2011,"1,321.05"
Bath & North East Somerset Council,80010267,LL8,Individualised Budget,P03,Wellbeing,REDACTED,01/08/2011,"1,333.47"
Bath & North East Somerset Council,80010267,LL8,Individualised Budget,P03,Wellbeing,REDACTED,01/08/2011,"1,333.47"
Bath & North East Somerset Council,80010267,YF2,Nursing Care,P03,Wellbeing,SHERWOOD LODGE,01/08/2011,"1,361.76"
Bath & North East Somerset Council,80010267,LL8,Nursing Care,P03,Wellbeing,SHERWOOD LODGE,01/08/2011,"1,361.76"
Bath & North East Somerset Council,80010267,YF2,Nursing Care,P03,Wellbeing,THE SUSSEX BEACON,01/08/2011,"1,400.00"
Bath & North East Somerset Council,80010267,YF2,Nursing Care,P03,Wellbeing,THE SUSSEX BEACON,01/08/2011,"1,400.00"
Bath & North East Somerset Council,80010267,LL8,Nursing Care,P03,Wellbeing,GLENSIDE MANOR HEALTHCARE SERVICES LTD,01/08/2011,"1,401.43"
Bath & North East Somerset Council,80010267,LL8,Nursing Care,P03,Wellbeing,GLENSIDE MANOR HEALTHCARE SERVICES LTD,01/08/2011,"1,401.43"
Bath & North East Somerset Council,80010267,LL8,Nursing Care,P03,Wellbeing,CULVERHAY NURSING HOME,01/08/2011,"1,409.00"
Bath & North East Somerset Council,80010267,YF2,Nursing Care,P03,Wellbeing,CULVERHAY NURSING HOME,01/08/2011,"1,409.00"
Bath & North East Somerset Council,80010267,YF2,Individualised Budget,P03,Wellbeing,REDACTED,01/08/2011,"1,415.92"
Bath & North East Somerset Council,80010267,LL8,Individualised Budget,P03,Wellbeing,REDACTED,01/08/2011,"1,415.92"
Bath & North East Somerset Council,80010267,LL8,Individualised Budget,P03,Wellbeing,REDACTED,01/08/2011,"1,472.72"
Bath & North East Somerset Council,80010267,YF2,Individualised Budget,P03,Wellbeing,REDACTED,01/08/2011,"1,472.72"
Bath & North East Somerset Council,80010267,YF2,Individualised Budget,P03,Wellbeing,REDACTED,01/08/2011,"1,502.20"
Bath & North East Somerset Council,80010267,LL8,Nursing Care,P03,Wellbeing,GLENSIDE MANOR HEALTHCARE SERVICES LTD,01/08/2011,"1,511.26"
Bath & North East Somerset Council,80010267,LL8,Nursing Care,P03,Wellbeing,GLENSIDE MANOR HEALTHCARE SERVICES LTD,01/08/2011,"1,511.26"
Bath & North East Somerset Council,80010267,LL8,Nursing Care,P03,Wellbeing,GLENSIDE MANOR HEALTHCARE SERVICES LTD,01/08/2011,"1,528.55"
Bath & North East Somerset Council,80010267,LL8,Nursing Care,P03,Wellbeing,GLENSIDE MANOR HEALTHCARE SERVICES LTD,01/08/2011,"1,528.55"
Bath & North East Somerset Council,80010267,LL8,Nursing Care,P03,Wellbeing,COMMUNITY OF ST ANTONY & ST ELIAS & REV FR BGPR &,01/08/2011,"1,586.06"
Bath & North East Somerset Council,80010267,YF2,Nursing Care,P03,Wellbeing,COMMUNITY OF ST ANTONY & ST ELIAS & REV FR BGPR &,01/08/2011,"1,586.06"
Bath & North East Somerset Council,80010267,LL8,Nursing Care,P03,Wellbeing,COMMUNITY OF ST ANTONY & ST ELIAS & REV FR BGPR &,01/08/2011,"1,586.66"
Bath & North East Somerset Council,80010267,YF2,Nursing Care,P03,Wellbeing,COMMUNITY OF ST ANTONY & ST ELIAS & REV FR BGPR &,01/08/2011,"1,586.66"
Bath & North East Somerset Council,80010267,LL8,Individualised Budget,P03,Wellbeing,REDACTED,01/08/2011,"1,679.63"
Bath & North East Somerset Council,80010267,LL8,Individualised Budget,P03,Wellbeing,REDACTED,01/08/2011,"1,679.63"
Bath & North East Somerset Council,80010267,LL8,Supported Living,P03,Wellbeing,SURECARE ENABLING (BATH & MENDIP),01/08/2011,"1,868.00"
Bath & North East Somerset Council,80010267,LL8,Supported Living,P03,Wellbeing,SURECARE ENABLING (BATH & MENDIP),01/08/2011,"1,868.00"
Bath & North East Somerset Council,80010267,LL8,Individualised Budget,P03,Wellbeing,REDACTED,01/08/2011,"1,893.13"
Bath & North East Somerset Council,80010267,LL8,Individualised Budget,P03,Wellbeing,REDACTED,01/08/2011,"1,893.13"
Bath & North East Somerset Council,80010267,LL8,Nursing Care,P03,Wellbeing,REDACTED,01/08/2011,"1,947.52"
Bath & North East Somerset Council,80010267,YF2,Nursing Care,P03,Wellbeing,REDACTED,01/08/2011,"1,947.52"
Bath & North East Somerset Council,80010267,LL8,Supported Living,P03,Wellbeing,NATIONAL AUTISTIC SOCIETY,01/08/2011,"2,037.95"
Bath & North East Somerset Council,80010267,YF2,Supported Living,P03,Wellbeing,NATIONAL AUTISTIC SOCIETY,01/08/2011,"2,037.95"
Bath & North East Somerset Council,80010267,LL8,Supported Living,P03,Wellbeing,NATIONAL AUTISTIC SOCIETY,01/08/2011,"2,037.95"
Bath & North East Somerset Council,80010267,LL8,Supported Living,P03,Wellbeing,NATIONAL AUTISTIC SOCIETY,01/08/2011,"2,037.95"
Bath & North East Somerset Council,80010267,LL8,Nursing Care,P03,Wellbeing,SHERWOOD LODGE,01/08/2011,"2,095.02"
Bath & North East Somerset Council,80010267,YF2,Nursing Care,P03,Wellbeing,SHERWOOD LODGE,01/08/2011,"2,095.02"
Bath & North East Somerset Council,80010267,YF2,Nursing Care,P03,Wellbeing,REDACTED,01/08/2011,"2,150.53"
Bath & North East Somerset Council,80010267,LL8,Nursing Care,P03,Wellbeing,REDACTED,01/08/2011,"2,150.53"
Bath & North East Somerset Council,80010267,LL8,Nursing Care,P03,Wellbeing,TRU REHABILITATION UNIT LTD,01/08/2011,"2,870.00"
Bath & North East Somerset Council,80010267,LL8,Nursing Care,P03,Wellbeing,TRU REHABILITATION UNIT LTD,01/08/2011,"2,870.00"
Bath & North East Somerset Council,80010267,LL8,Direct Payments,P02,"Early Years, Children & Youth",SHAW TRUST LTD,01/08/2011,"14,000.00"
Bath & North East Somerset Council,80010411,LM6,Agency Staff,P01,Transport,MR P S MATTHEWS T/A NORAD TAXIS,01/08/2011,36.75
Bath & North East Somerset Council,80010434,LM3,Repairs & Maintenance,P05,Neighbourhoods,P & L INSPECTIONS LTD,01/08/2011,75.64
Bath & North East Somerset Council,80010434,LM3,Repairs & Maintenance,P05,Neighbourhoods,P & L INSPECTIONS LTD,01/08/2011,75.64
Bath & North East Somerset Council,80010434,LM3,Repairs & Maintenance,P05,Neighbourhoods,P & L INSPECTIONS LTD,01/08/2011,75.64
Bath & North East Somerset Council,80010434,LM3,Repairs & Maintenance,P05,Neighbourhoods,P & L INSPECTIONS LTD,01/08/2011,75.64
Bath & North East Somerset Council,80010434,LM3,Repairs & Maintenance,P05,Neighbourhoods,P & L INSPECTIONS LTD,01/08/2011,75.64
Bath & North East Somerset Council,80010434,YF2,Repairs & Maintenance,P05,Neighbourhoods,P & L INSPECTIONS LTD,01/08/2011,75.64
Bath & North East Somerset Council,80010434,LM3,Repairs & Maintenance,P05,Neighbourhoods,P & L INSPECTIONS LTD,01/08/2011,75.66
Bath & North East Somerset Council,80010511,YF2,Building Works,C06,Service Delivery,M JENNINGS,01/08/2011,198.00
Bath & North East Somerset Council,80010565,LM3,Highway Maintenance,P01,Transport,M JENNINGS,01/08/2011,308.00
Bath & North East Somerset Council,80013817,LL3,Payments to Private Contractors,P05,Neighbourhoods,MEGA-ROD,01/08/2011,475.00
Bath & North East Somerset Council,80013818,7S1,Software Support,P04,Leader,NORTHGATE INFORMATION SOLUTIONS,01/08/2011,477.00
Bath & North East Somerset Council,80013822,LM6,Contracts,P01,Transport,MR P S MATTHEWS T/A NORAD TAXIS,01/08/2011,480.00
Bath & North East Somerset Council,80013956,7S1,Equipment Purchase (Non Medical),P03,Wellbeing,ARJO LTD,01/08/2011,490.00
Bath & North East Somerset Council,80014173,7S2,Professional Subscriptions,P07,Community Resources,BEAUFORT WEST ASSOCIATES LTD,01/08/2011,500.00
Bath & North East Somerset Council,80014925,YF2,Legal Fees,P02,"Early Years, Children & Youth",MISS TANYA ZABIHI,01/08/2011,540.00
Bath & North East Somerset Council,80015122,LM3,Street Lighting Maintenance,P01,Transport,WESTERN POWER DISTRIBUTION (SO,01/08/2011,569.57
Bath & North East Somerset Council,80015139,LM3,Equipment Purchase (Non Medical),P03,Wellbeing,INVACARE (UK) LTD,01/08/2011,626.25
Bath & North East Somerset Council,80015139,YF2,Fees,P05,Neighbourhoods,FOR AND ON BEHALF OF WOODBOROUGH KENNELS LTD,01/08/2011,626.80
Bath & North East Somerset Council,80015182,LM3,Materials,P07,Community Resources,PREMIER PAPER,01/08/2011,657.09
Bath & North East Somerset Council,80015183,LL3,Provisions,P07,Community Resources,APETITO LTD,01/08/2011,666.80
Bath & North East Somerset Council,80015196,YF2,Fees,P06,Sustainable Development,YOUR MEMBERSHIP MATTERS LTD,01/08/2011,695.00
Bath & North East Somerset Council,80015200,YF2,Day Care,P03,Wellbeing,CARE FUTURES,01/08/2011,712.50
Bath & North East Somerset Council,80015215,LM3,Educational Activity,P02,"Early Years, Children & Youth",QUEENS ROAD CHURCH PRE-SCHOOL,01/08/2011,750.00
Bath & North East Somerset Council,80015246,YF2,Agency Staff,P05,Neighbourhoods,S P WATKINS,01/08/2011,820.00
Bath & North East Somerset Council,80015251,7S1,Repairs & Maintenance,P05,Neighbourhoods,GULLIVERS TRUCK HIRE LTD,01/08/2011,837.71
Bath & North East Somerset Council,80015265,7S1,Fees,P06,Sustainable Development,TECHNICAL HIRE LTD,01/08/2011,875.00
Bath & North East Somerset Council,80015275,YF2,Highway Maintenance,P01,Transport,M JENNINGS,01/08/2011,902.00
Bath & North East Somerset Council,80015275,LM6,Building Works,C06,Service Delivery,M JENNINGS,01/08/2011,922.00
Bath & North East Somerset Council,80015275,LM6,Contracts,P01,Transport,STEPHEN WARREN,01/08/2011,960.00
Bath & North East Somerset Council,80015277,LM3,Clients & Service Users Public Transport,P03,Wellbeing,MR T HILL & MRS H B HILL,01/08/2011,986.00
Bath & North East Somerset Council,80015277,YF2,Agency Staff,P01,Transport,REDACTED,01/08/2011,"1,000.00"
Bath & North East Somerset Council,80015281,LM6,Contracts,P02,"Early Years, Children & Youth",VICKI TAYLOR CONSULTANCY,01/08/2011,"1,050.00"
Bath & North East Somerset Council,80015287,LM6,Fees,P06,Sustainable Development,BATH FILM FESTIVAL,01/08/2011,"1,200.00"
Bath & North East Somerset Council,80015288,YF2,Day Care,P03,Wellbeing,CARE FUTURES,01/08/2011,"1,302.00"
Bath & North East Somerset Council,80015290,LM3,Agency Staff,P05,Neighbourhoods,S P WATKINS,01/08/2011,"1,350.00"
Bath & North East Somerset Council,80015290,LM3,Responsive Maintenance,P06,Sustainable Development,SCENA PROJECTS LTD,01/08/2011,"1,398.00"
Bath & North East Somerset Council,80015290,YF2,Responsive Maintenance PCB,P07,Community Resources,STREBEL LTD,01/08/2011,"1,421.00"
Bath & North East Somerset Council,80015290,LM6,Materials,P05,Neighbourhoods,THE READING AGENCY LTD,01/08/2011,"1,444.53"
Bath & North East Somerset Council,80015290,LM6,Equipment Purchase (Non Medical),P03,Wellbeing,SIDHIL LTD,01/08/2011,"1,620.00"
Bath & North East Somerset Council,80015290,YF2,Day Care,P03,Wellbeing,CARE FUTURES,01/08/2011,"1,827.00"
Bath & North East Somerset Council,80015290,LM3,Highway Maintenance,P01,Transport,SAVOY COMPUTING SERVICES LTD,01/08/2011,"1,950.00"
Bath & North East Somerset Council,80015290,LM3,Contracts,P01,Transport,MR P S MATTHEWS T/A NORAD TAXIS,01/08/2011,"2,563.00"
Bath & North East Somerset Council,80015290,LM3,Contracts,P01,Transport,MR P S MATTHEWS T/A NORAD TAXIS,01/08/2011,"2,702.62"
Bath & North East Somerset Council,80015290,LM3,Agency Staff,P05,Neighbourhoods,S P WATKINS,01/08/2011,"3,037.50"
Bath & North East Somerset Council,80015290,LM6,Provisions,P07,Community Resources,NEWTON FARM FOODS LIMITED,01/08/2011,"3,293.61"
Bath & North East Somerset Council,80015290,LM6,Contracts,P01,Transport,CENTURION TRAVEL,01/08/2011,"4,000.00"
Bath & North East Somerset Council,80015290,LM6,Fees,P06,Sustainable Development,GOLDEN-OLDIES,01/08/2011,"4,000.00"
Bath & North East Somerset Council,80015293,LM6,Materials,P05,Neighbourhoods,SOMERSET COUNTY COUNCIL,01/08/2011,"4,416.67"
Bath & North East Somerset Council,80015293,YF2,Materials,P05,Neighbourhoods,SOMERSET COUNTY COUNCIL,01/08/2011,"4,416.67"
Bath & North East Somerset Council,80015293,YF2,Materials,P05,Neighbourhoods,SOMERSET COUNTY COUNCIL,01/08/2011,"4,416.67"
Bath & North East Somerset Council,80015293,LM6,Materials,P05,Neighbourhoods,SOMERSET COUNTY COUNCIL,01/08/2011,"4,416.67"
Bath & North East Somerset Council,80015293,YF2,Materials,P05,Neighbourhoods,SOMERSET COUNTY COUNCIL,01/08/2011,"4,416.67"
Bath & North East Somerset Council,80015295,YF2,Contracts,P01,Transport,S. J. & J M MUNDEN T/A GUYAN MINI BUSES,01/08/2011,"4,760.80"
Bath & North East Somerset Council,80015295,LM3,Contracts,P02,"Early Years, Children & Youth",KIDS,01/08/2011,"5,000.00"
Bath & North East Somerset Council,80015295,LM3,Contracts,P02,"Early Years, Children & Youth",KIDS,01/08/2011,"5,000.00"
Bath & North East Somerset Council,80015302,LL3,Subscriptions,P07,Community Resources,RIBA ENTERPRISES LTD,01/08/2011,"5,382.00"
Bath & North East Somerset Council,80015305,YF2,Fees,P06,Sustainable Development,INTERNATIONAL GUITAR FOUNDATION,01/08/2011,"6,000.00"
Bath & North East Somerset Council,80015311,LM3,Consultants Fees,P03,Wellbeing,PRACTICUS LTD,01/08/2011,"8,550.00"
Bath & North East Somerset Council,80015319,LM3,Materials,P05,Neighbourhoods,SOMERSET COUNTY COUNCIL,01/08/2011,"10,083.33"
Bath & North East Somerset Council,80015319,LM3,Materials,P05,Neighbourhoods,SOMERSET COUNTY COUNCIL,01/08/2011,"10,083.33"
Bath & North East Somerset Council,80015319,LM3,Materials,P05,Neighbourhoods,SOMERSET COUNTY COUNCIL,01/08/2011,"10,083.33"
Bath & North East Somerset Council,80015319,YF2,Materials,P05,Neighbourhoods,SOMERSET COUNTY COUNCIL,01/08/2011,"10,083.33"
Bath & North East Somerset Council,80015319,LM3,Materials,P05,Neighbourhoods,SOMERSET COUNTY COUNCIL,01/08/2011,"10,083.33"
Bath & North East Somerset Council,80015321,LM3,Contracts,P01,Transport,STEPHEN WARREN,01/08/2011,"13,148.02"
Bath & North East Somerset Council,80015325,LM4,Contracts,P01,Transport,CENTURION TRAVEL,01/08/2011,"14,922.80"
Bath & North East Somerset Council,80015352,LM2,External Fees,C04,Development & Major Projects,E R HEMMINGS (BUILDING) LTD,01/08/2011,"18,035.06"
Bath & North East Somerset Council,80015363,LM2,Payments to Health Authorities,P03,Wellbeing,THE CARE FORUM,01/08/2011,"20,000.00"
Bath & North East Somerset Council,80015363,7S1,Liability Insurance,Z99,Outside Revenue Accounts,ZURICH MUNICIPAL,01/08/2011,"20,000.00"
Bath & North East Somerset Council,80015364,7S1,Contracts,P01,Transport,ARLEEN COACH & HIRE SERVICES L,01/08/2011,"20,320.84"
Bath & North East Somerset Council,80015411,LM2,Agency Staff,P07,Community Resources,COMENSURA LTD,01/08/2011,"57,323.19"
Bath & North East Somerset Council,80015412,LM2,Contracts,P02,"Early Years, Children & Youth",IN-VOLVE,01/08/2011,"58,402.75"
Bath & North East Somerset Council,80015432,LM4,Building Works,C02,Resources,ISG PEARCE LTD,01/08/2011,"293,824.78"
Bath & North East Somerset Council,80015547,LM4,Grant Income,Z99,Outside Revenue Accounts,CLG,01/08/2011,"1,042,209.00"
Bath & North East Somerset Council,80010267,LL8,Home Care,P03,Wellbeing,ROBERT SAGE LTD T/A PRESTIGE NURSING PAYROLL,02/08/2011,12.00
Bath & North East Somerset Council,80010267,LL8,Home Care,P03,Wellbeing,ROBERT SAGE LTD T/A PRESTIGE NURSING PAYROLL,02/08/2011,20.00
Bath & North East Somerset Council,80010267,LL8,Home Care,P03,Wellbeing,ROBERT SAGE LTD T/A PRESTIGE NURSING PAYROLL,02/08/2011,64.00
Bath & North East Somerset Council,80010267,LL8,Home Care,P03,Wellbeing,ROBERT SAGE LTD T/A PRESTIGE NURSING PAYROLL,02/08/2011,66.52
Bath & North East Somerset Council,80010267,LL8,Home Care,P03,Wellbeing,ROBERT SAGE LTD T/A PRESTIGE NURSING PAYROLL,02/08/2011,151.14
Bath & North East Somerset Council,80010267,LL8,Home Care,P03,Wellbeing,ROBERT SAGE LTD T/A PRESTIGE NURSING PAYROLL,02/08/2011,418.32
Bath & North East Somerset Council,80010267,LL8,Home Care,P03,Wellbeing,ROBERT SAGE LTD T/A PRESTIGE NURSING PAYROLL,02/08/2011,871.56
Bath & North East Somerset Council,80010267,LL8,Home Care,P03,Wellbeing,ROBERT SAGE LTD T/A PRESTIGE NURSING PAYROLL,02/08/2011,"1,560.60"
Bath & North East Somerset Council,80010267,LL8,Contracts,P02,"Early Years, Children & Youth",CROSSROADS CARE WESSEX LTD,02/08/2011,"8,663.00"
Bath & North East Somerset Council,80010399,LM6,Provisions,P03,Wellbeing,L & F JONES HOLDINGS LTD,02/08/2011,27.93
Bath & North East Somerset Council,80010538,LM3,Room Hire Charges,P07,Community Resources,CENTURION HOTELS LTD,02/08/2011,260.00
Bath & North East Somerset Council,80010592,LM6,Room Hire Charges,P07,Community Resources,CENTURION HOTELS LTD,02/08/2011,400.41
Bath & North East Somerset Council,80010819,7S2,Purchases for Resale,P06,Sustainable Development,EMBLEM PRINT PRODUCTS LTD,02/08/2011,448.48
Bath & North East Somerset Council,80010821,7S2,Purchases for Resale,P06,Sustainable Development,ANCESTORS OF DOVER LTD,02/08/2011,450.00
Bath & North East Somerset Council,80013822,LM6,Responsive Maintenance PCB,P07,Community Resources,A W PARRY LIFTS LTD,02/08/2011,480.00
Bath & North East Somerset Council,80014355,7S2,Provisions,P07,Community Resources,APETITO LTD,02/08/2011,502.17
Bath & North East Somerset Council,80014576,LM6,Street Lighting Maintenance,P01,Transport,WESTERN POWER DISTRIBUTION (SO,02/08/2011,528.63
Bath & North East Somerset Council,80015139,YF2,Responsive Maintenance PCB,P07,Community Resources,A W PARRY LIFTS LTD,02/08/2011,626.00
Bath & North East Somerset Council,80015194,LM3,Provisions,P03,Wellbeing,L & F JONES HOLDINGS LTD,02/08/2011,687.32
Bath & North East Somerset Council,80015196,YF2,Responsive Maintenance PCB,P07,Community Resources,A W PARRY LIFTS LTD,02/08/2011,692.00
Bath & North East Somerset Council,80015200,LM6,Service Contract PCB,P07,Community Resources,ORONA LTD,02/08/2011,725.00
Bath & North East Somerset Council,80015250,YF2,Postages,P01,Transport,FTA SALES OFFICE,02/08/2011,832.25
Bath & North East Somerset Council,80015258,LM6,Responsive Maintenance PCB,P07,Community Resources,A W PARRY LIFTS LTD,02/08/2011,848.00
Bath & North East Somerset Council,80015282,YF2,Payments to Private Contractors,P05,Neighbourhoods,R J KING & SONS,02/08/2011,"1,128.55"
Bath & North East Somerset Council,80015282,LM6,Responsive Maintenance PCB,P07,Community Resources,A W PARRY LIFTS LTD,02/08/2011,"1,152.00"
Bath & North East Somerset Council,80015290,LM6,Payments to Private Contractors,P05,Neighbourhoods,SRCL LIMITED,02/08/2011,"1,363.72"
Bath & North East Somerset Council,80015290,LM3,Payments to Private Contractors,P05,Neighbourhoods,R J KING & SONS,02/08/2011,"1,416.75"
Bath & North East Somerset Council,80015290,LM3,Foster Carer Allowances,P02,"Early Years, Children & Youth",PATHWAY CARE (BRISTOL) LTD,02/08/2011,"1,714.29"
Bath & North East Somerset Council,80015290,LM6,Educational Activity,P02,"Early Years, Children & Youth",BATH AND NORTH EAST SOMERSET PCT,02/08/2011,"1,872.00"
Bath & North East Somerset Council,80015290,LM6,Telephones,P07,Community Resources,BRITISH TELECOM,02/08/2011,"1,928.74"
Bath & North East Somerset Council,80015290,LM6,Security of Premises,P05,Neighbourhoods,S P WATKINS,02/08/2011,"2,075.00"
Bath & North East Somerset Council,80015290,LM3,Foster Carer Allowances,P02,"Early Years, Children & Youth",PATHWAY CARE (BRISTOL) LTD,02/08/2011,"2,201.00"
Bath & North East Somerset Council,80015290,LM3,Foster Carer Allowances,P02,"Early Years, Children & Youth",PATHWAY CARE (BRISTOL) LTD,02/08/2011,"3,275.95"
Bath & North East Somerset Council,80015290,LM6,Materials,P05,Neighbourhoods,GELPACK EXCELSIOR LTD,02/08/2011,"3,332.40"
Bath & North East Somerset Council,80015290,LM6,Foster Carer Allowances,P02,"Early Years, Children & Youth",PATHWAY CARE (BRISTOL) LTD,02/08/2011,"3,472.00"
Bath & North East Somerset Council,80015290,LM6,Foster Carer Allowances,P02,"Early Years, Children & Youth",PATHWAY CARE (BRISTOL) LTD,02/08/2011,"3,472.00"
Bath & North East Somerset Council,80015290,LM3,Foster Carer Allowances,P02,"Early Years, Children & Youth",PATHWAY CARE (BRISTOL) LTD,02/08/2011,"3,472.00"
Bath & North East Somerset Council,80015290,LM6,Foster Carer Allowances,P02,"Early Years, Children & Youth",PATHWAY CARE (BRISTOL) LTD,02/08/2011,"3,542.86"
Bath & North East Somerset Council,80015293,LM6,Telephones,P07,Community Resources,BRITISH TELECOM,02/08/2011,"4,193.20"
Bath & North East Somerset Council,80015294,YF2,Contracts,P01,Transport,ROAD RUNNER TAXI BUSES,02/08/2011,"4,600.18"
Bath & North East Somerset Council,80015296,YF2,Grants to Voluntary Bodies,P04,Leader,THE HAYDON VILLAGE HALL & SOCIAL CLUB,02/08/2011,"5,000.00"
Bath & North East Somerset Council,80015306,YF2,Volunt Homes Placements Top/Up,P02,"Early Years, Children & Youth",ACTIVE INCLUSION SUPPORT & LEARNING,02/08/2011,"6,772.50"
Bath & North East Somerset Council,80015386,LM2,Equipment Purchase (Non Medical),P01,Transport,PARKEON LIMITED,02/08/2011,"25,395.00"
Bath & North East Somerset Council,80010267,YF2,Fees & Charges,P03,Wellbeing,EUROPEAN CARE SW LTD - REDACTED AC,03/08/2011,15.76
Bath & North East Somerset Council,80010267,YF2,Fees & Charges,P03,Wellbeing,CHESCOMBE TRUST,03/08/2011,20.33
Bath & North East Somerset Council,80010267,LL8,Foster Carer Allowances,P02,"Early Years, Children & Youth",REDACTED,03/08/2011,27.10
Bath & North East Somerset Council,80010267,LL8,Transport & Travel,P02,"Early Years, Children & Youth",REDACTED,03/08/2011,41.76
Bath & North East Somerset Council,80010267,LL8,Fees & Charges,P03,Wellbeing,METHODIST HOMES FOR THE AGED,03/08/2011,46.17
Bath & North East Somerset Council,80010267,YF2,Foster Carer Allowances,P02,"Early Years, Children & Youth",REDACTED,03/08/2011,57.96
Bath & North East Somerset Council,80010267,LL8,Residential Care,P03,Wellbeing,FSHC NEWCO 2 LTD: REDACTED,03/08/2011,59.00
Bath & North East Somerset Council,80010267,YF2,Fees & Charges,P03,Wellbeing,SALVATION ARMY,03/08/2011,63.03
Bath & North East Somerset Council,80010267,LL8,Fees & Charges,P03,Wellbeing,CEDAR PARK NURSING HOME,03/08/2011,65.57
Bath & North East Somerset Council,80010267,LL8,Fees & Charges,P03,Wellbeing,FSHC NEWCO 2 LTD: REDACTED,03/08/2011,66.12
Bath & North East Somerset Council,80010267,LL8,Transport & Travel,P02,"Early Years, Children & Youth",REDACTED,03/08/2011,68.90
Bath & North East Somerset Council,80010267,LL8,Personal Needs of Clients,P02,"Early Years, Children & Youth",REDACTED,03/08/2011,70.00
Bath & North East Somerset Council,80010267,LL8,Fees & Charges,P03,Wellbeing,CHESCOMBE TRUST,03/08/2011,71.15
Bath & North East Somerset Council,80010267,YF2,Fees & Charges,P03,Wellbeing,CHESCOMBE TRUST,03/08/2011,71.15
Bath & North East Somerset Council,80010267,YF2,Fees & Charges,P03,Wellbeing,CHESCOMBE TRUST,03/08/2011,71.15
Bath & North East Somerset Council,80010267,LL8,Nursing Care,P03,Wellbeing,EUROPEAN CARE (UK) LTD - REDACTED A/C,03/08/2011,76.57
Bath & North East Somerset Council,80010267,YF2,Transport & Travel,P02,"Early Years, Children & Youth",REDACTED,03/08/2011,84.56
Bath & North East Somerset Council,80010267,LL8,Supported Living,P03,Wellbeing,DIMENSIONS (UK) LTD,03/08/2011,87.85
Bath & North East Somerset Council,80010267,LL8,Supported Living,P03,Wellbeing,DIMENSIONS (UK) LTD,03/08/2011,87.85
Bath & North East Somerset Council,80010267,LL8,Fees & Charges,P03,Wellbeing,OAKFIELD,03/08/2011,90.65
Bath & North East Somerset Council,80010267,YF2,Transport & Travel,P02,"Early Years, Children & Youth",REDACTED,03/08/2011,93.96
Bath & North East Somerset Council,80010267,YF2,Fees & Charges,P03,Wellbeing,EUROPEAN CARE (UK) LTD - REDACTED A/C,03/08/2011,94.54
Bath & North East Somerset Council,80010267,LL8,Fees & Charges,P03,Wellbeing,BRIDGE CARE LTD,03/08/2011,96.38
Bath & North East Somerset Council,80010267,LL8,Foster Carer Allowances,P02,"Early Years, Children & Youth",REDACTED,03/08/2011,100.00
Bath & North East Somerset Council,80010267,LL8,Foster Carer Allowances,P02,"Early Years, Children & Youth",REDACTED,03/08/2011,100.00
Bath & North East Somerset Council,80010267,LL8,Foster Carer Allowances,P02,"Early Years, Children & Youth",REDACTED,03/08/2011,100.00
Bath & North East Somerset Council,80010267,LL8,Foster Carer Allowances,P02,"Early Years, Children & Youth",REDACTED,03/08/2011,100.00
Bath & North East Somerset Council,80010267,LL8,Foster Carer Allowances,P02,"Early Years, Children & Youth",REDACTED,03/08/2011,100.00
Bath & North East Somerset Council,80010267,LL8,Foster Carer Allowances,P02,"Early Years, Children & Youth",REDACTED,03/08/2011,100.00
Bath & North East Somerset Council,80010267,YF2,Foster Carer Allowances,P02,"Early Years, Children & Youth",REDACTED,03/08/2011,100.00
Bath & North East Somerset Council,80010267,YF2,Foster Carer Allowances,P02,"Early Years, Children & Youth",REDACTED,03/08/2011,100.00
Bath & North East Somerset Council,80010267,LL8,Needs & Services,P02,"Early Years, Children & Youth",REDACTED,03/08/2011,108.50
Bath & North East Somerset Council,80010267,YF2,Fees & Charges,P03,Wellbeing,EUROPEAN CARE SW LTD - REDACTED AC,03/08/2011,110.30
Bath & North East Somerset Council,80010267,LL8,Fees & Charges,P03,Wellbeing,EUROPEAN CARE SW LTD - REDACTED AC,03/08/2011,110.30
Bath & North East Somerset Council,80010267,LL8,Fees & Charges,P03,Wellbeing,EUROPEAN CARE SW LTD - REDACTED AC,03/08/2011,110.30
Bath & North East Somerset Council,80010267,LL8,Fees & Charges,P03,Wellbeing,EUROPEAN CARE SW LTD - REDACTED AC,03/08/2011,110.30
Bath & North East Somerset Council,80010267,LL8,Fees & Charges,P03,Wellbeing,SALVATION ARMY,03/08/2011,110.30
Bath & North East Somerset Council,80010267,LL8,Fees & Charges,P03,Wellbeing,SALVATION ARMY,03/08/2011,110.30
Bath & North East Somerset Council,80010267,YF2,Fees & Charges,P03,Wellbeing,REDACTED,03/08/2011,110.30
Bath & North East Somerset Council,80010267,LL8,Fees & Charges,P03,Wellbeing,REDACTED,03/08/2011,110.30
Bath & North East Somerset Council,80010267,YF2,Fees & Charges,P03,Wellbeing,EUROPEAN CARE (UK) LTD - REDACTED A/C,03/08/2011,110.30
Bath & North East Somerset Council,80010267,LL8,Residence Orders,P02,"Early Years, Children & Youth",REDACTED,03/08/2011,110.97
Bath & North East Somerset Council,80010267,LL8,Foster Carer Allowances,P02,"Early Years, Children & Youth",REDACTED,03/08/2011,116.42
Bath & North East Somerset Council,80010267,YF2,Residential Care,P03,Wellbeing,REDACTED,03/08/2011,118.00
Bath & North East Somerset Council,80010267,LL8,Personal Needs of Clients,P02,"Early Years, Children & Youth",REDACTED,03/08/2011,130.00
Bath & North East Somerset Council,80010267,YF2,Fees & Charges,P03,Wellbeing,BRIDGE CARE LTD,03/08/2011,134.93
Bath & North East Somerset Council,80010267,LL8,Fees & Charges,P03,Wellbeing,BRIDGE CARE LTD,03/08/2011,134.93
Bath & North East Somerset Council,80010267,LL8,Residence Orders,P02,"Early Years, Children & Youth",REDACTED,03/08/2011,135.21
Bath & North East Somerset Council,80010267,LL8,Residence Orders,P02,"Early Years, Children & Youth",REDACTED,03/08/2011,142.40
Bath & North East Somerset Council,80010267,7S1,Residence Orders,P02,"Early Years, Children & Youth",REDACTED,03/08/2011,148.31
Bath & North East Somerset Council,80010270,YF2,Supported Living,P03,Wellbeing,OPTIONS FOR LIVING LTD,03/08/2011,150.40
Bath & North East Somerset Council,80010270,LL8,Supported Living,P03,Wellbeing,OPTIONS FOR LIVING LTD,03/08/2011,150.40
Bath & North East Somerset Council,80010270,YF2,Nursing Care,P03,Wellbeing,CHARLTON COURT LTD T/A SUNNYMEDE,03/08/2011,153.14
Bath & North East Somerset Council,80010270,LL8,Fees & Charges,P03,Wellbeing,FSHC NEWCO 2 LTD: REDACTED,03/08/2011,154.27
Bath & North East Somerset Council,80010270,7S1,Supported Living,P03,Wellbeing,OPTIONS FOR LIVING LTD,03/08/2011,169.20
Bath & North East Somerset Council,80010271,LM6,Supported Living,P03,Wellbeing,OPTIONS FOR LIVING LTD,03/08/2011,169.20
Bath & North East Somerset Council,80010271,LM6,Residential Care,P03,Wellbeing,EUROPEAN CARE SW LTD - REDACTED AC,03/08/2011,171.69
Bath & North East Somerset Council,80010271,LM6,Residence Orders,P02,"Early Years, Children & Youth",REDACTED,03/08/2011,174.00
Bath & North East Somerset Council,80010271,LM6,Respite Care,P02,"Early Years, Children & Youth",REDACTED,03/08/2011,175.71
Bath & North East Somerset Council,80010271,7S1,Fees & Charges,P03,Wellbeing,T C CAREHOME LTD,03/08/2011,176.33
Bath & North East Somerset Council,80010273,YF2,Fees & Charges,P03,Wellbeing,T C CAREHOME LTD,03/08/2011,176.33
Bath & North East Somerset Council,80010273,LL8,Fees & Charges,P03,Wellbeing,T C CAREHOME LTD,03/08/2011,176.33
Bath & North East Somerset Council,80010273,YF2,Fees & Charges,P03,Wellbeing,T C CAREHOME LTD,03/08/2011,176.33
Bath & North East Somerset Council,80010273,LL8,Fees & Charges,P03,Wellbeing,T C CAREHOME LTD,03/08/2011,176.33
Bath & North East Somerset Council,80010273,7S1,Fees & Charges,P03,Wellbeing,T C CAREHOME LTD,03/08/2011,176.33
Bath & North East Somerset Council,80010274,LL8,Fees & Charges,P03,Wellbeing,T C CAREHOME LTD,03/08/2011,176.33
Bath & North East Somerset Council,80010274,LL8,Fees & Charges,P03,Wellbeing,T C CAREHOME LTD,03/08/2011,176.33
Bath & North East Somerset Council,80010274,7S1,Fees & Charges,P03,Wellbeing,T C CAREHOME LTD,03/08/2011,176.33
Bath & North East Somerset Council,80010275,LL8,Fees & Charges,P03,Wellbeing,T C CAREHOME LTD,03/08/2011,176.33
Bath & North East Somerset Council,80010275,YF2,Fees & Charges,P03,Wellbeing,T C CAREHOME LTD,03/08/2011,176.33
Bath & North East Somerset Council,80010275,LL8,Fees & Charges,P03,Wellbeing,T C CAREHOME LTD,03/08/2011,176.33
Bath & North East Somerset Council,80010275,YF2,Residential Care,P03,Wellbeing,BRIDGE CARE LTD,03/08/2011,177.00
Bath & North East Somerset Council,80010275,7S1,Residential Care,P03,Wellbeing,FSHC NEWCO 2 LTD: REDACTED,03/08/2011,177.00
Bath & North East Somerset Council,80010279,LL8,Residential Care,P03,Wellbeing,METHODIST HOMES FOR THE AGED,03/08/2011,177.00
Bath & North East Somerset Council,80010279,LL8,Nursing Care,P03,Wellbeing,CULVERHAY NURSING HOME,03/08/2011,181.00
Bath & North East Somerset Council,80010279,7S1,Nursing Care,P03,Wellbeing,CULVERHAY NURSING HOME,03/08/2011,181.00
Bath & North East Somerset Council,80010281,YF2,Nursing Care,P03,Wellbeing,CULVERHAY NURSING HOME,03/08/2011,181.00
Bath & North East Somerset Council,80010281,LL8,Nursing Care,P03,Wellbeing,CULVERHAY NURSING HOME,03/08/2011,181.00
Bath & North East Somerset Council,80010281,YF2,Residence Orders,P02,"Early Years, Children & Youth",REDACTED,03/08/2011,181.89
Bath & North East Somerset Council,80010281,LL8,Foster Carer Allowances,P02,"Early Years, Children & Youth",REDACTED,03/08/2011,186.43
Bath & North East Somerset Council,80010281,7S1,Residential Care,P03,Wellbeing,SALVATION ARMY,03/08/2011,193.71
Bath & North East Somerset Council,80010282,LM3,Personal Needs of Clients,P02,"Early Years, Children & Youth",REDACTED,03/08/2011,200.00
Bath & North East Somerset Council,80010282,LM3,Nursing Care,P03,Wellbeing,EUROPEAN CARE (UK) LTD - REDACTED A/C,03/08/2011,222.82
Bath & North East Somerset Council,80010282,LM3,Foster Carer Allowances,P02,"Early Years, Children & Youth",REDACTED,03/08/2011,226.74
Bath & North East Somerset Council,80010282,7S1,Nursing Care,P03,Wellbeing,EUROPEAN CARE SW LTD - REDACTED AC,03/08/2011,229.71
Bath & North East Somerset Council,80010286,LL8,Nursing Care,P03,Wellbeing,CEDAR PARK NURSING HOME,03/08/2011,229.71
Bath & North East Somerset Council,80010286,YF2,Nursing Care,P03,Wellbeing,OAKFIELD,03/08/2011,229.71
Bath & North East Somerset Council,80010286,LL8,Needs & Services,P02,"Early Years, Children & Youth",REDACTED,03/08/2011,233.59
Bath & North East Somerset Council,80010286,YF2,Residential Care,P03,Wellbeing,GROVE CARE LTD T/A ORIEL LODGE,03/08/2011,234.69
Bath & North East Somerset Council,80010286,7S1,Residential Care,P03,Wellbeing,GROVE CARE LTD T/A ORIEL LODGE,03/08/2011,234.69
Bath & North East Somerset Council,80010288,LL8,Residential Care,P03,Wellbeing,FSHC NEWCO 2 LTD: REDACTED,03/08/2011,236.00
Bath & North East Somerset Council,80010288,YF2,Foster Carer Allowances,P02,"Early Years, Children & Youth",REDACTED,03/08/2011,240.72
Bath & North East Somerset Council,80010288,LL8,Foster Carer Allowances,P02,"Early Years, Children & Youth",REDACTED,03/08/2011,240.72
Bath & North East Somerset Council,80010288,YF2,Foster Carer Allowances,P02,"Early Years, Children & Youth",REDACTED,03/08/2011,240.72
Bath & North East Somerset Council,80010288,YF2,Nursing Care,P03,Wellbeing,EUROPEAN CARE SW LTD - REDACTED AC,03/08/2011,241.23
Bath & North East Somerset Council,80010288,LL8,Supported Living,P03,Wellbeing,ARCH CARE SERVICES,03/08/2011,250.00
Bath & North East Somerset Council,80010288,YF2,Supported Living,P03,Wellbeing,ARCH CARE SERVICES,03/08/2011,250.00
Bath & North East Somerset Council,80010288,LL8,Supported Living,P03,Wellbeing,ARCH CARE SERVICES,03/08/2011,275.00
Bath & North East Somerset Council,80010288,7S1,Supported Living,P03,Wellbeing,ARCH CARE SERVICES,03/08/2011,275.00
Bath & North East Somerset Council,80010289,LL8,Residential Care,P03,Wellbeing,ST AGNES RETIREMENT HOME,03/08/2011,295.00
Bath & North East Somerset Council,80010289,LL8,Residential Care,P03,Wellbeing,REDACTED,03/08/2011,295.00
Bath & North East Somerset Council,80010289,7S1,Residential Care,P03,Wellbeing,NEWBRIDGE TOWERS RESIDENTIAL CARE HOME,03/08/2011,295.00
Bath & North East Somerset Council,80010290,LL8,Supported Living,P03,Wellbeing,ARCH CARE SERVICES,03/08/2011,310.00
Bath & North East Somerset Council,80010290,LL8,Supported Living,P03,Wellbeing,ARCH CARE SERVICES,03/08/2011,310.00
Bath & North East Somerset Council,80010290,7S1,Supported Living,P03,Wellbeing,ARCH CARE SERVICES,03/08/2011,312.00
Bath & North East Somerset Council,80010291,YF2,Supported Living,P03,Wellbeing,ARCH CARE SERVICES,03/08/2011,312.00
Bath & North East Somerset Council,80010291,LL8,Residential Care,P03,Wellbeing,DIMENSIONS (UK) LTD,03/08/2011,313.06
Bath & North East Somerset Council,80010291,YF2,Residential Care,P03,Wellbeing,DIMENSIONS (UK) LTD,03/08/2011,313.06
Bath & North East Somerset Council,80010291,LL8,Nursing Care,P03,Wellbeing,CHARLTON COURT LTD T/A SUNNYMEDE,03/08/2011,325.14
Bath & North East Somerset Council,80010291,7S1,Supported Living,P03,Wellbeing,SWALLOW LTD,03/08/2011,337.53
Bath & North East Somerset Council,80010295,YF2,Supported Living,P03,Wellbeing,SWALLOW LTD,03/08/2011,337.53
Bath & North East Somerset Council,80010295,LL8,Supported Living,P03,Wellbeing,ARCH CARE SERVICES,03/08/2011,343.00
Bath & North East Somerset Council,80010295,YF2,Supported Living,P03,Wellbeing,ARCH CARE SERVICES,03/08/2011,343.00
Bath & North East Somerset Council,80010295,LL8,Supported Living,P03,Wellbeing,ARCH CARE SERVICES,03/08/2011,352.00
Bath & North East Somerset Council,80010295,7S1,Supported Living,P03,Wellbeing,ARCH CARE SERVICES,03/08/2011,352.00
Bath & North East Somerset Council,80010304,LM6,Foster Carer Allowances,P02,"Early Years, Children & Youth",REDACTED,03/08/2011,372.86
Bath & North East Somerset Council,80010304,LM6,Foster Carer Allowances,P02,"Early Years, Children & Youth",REDACTED,03/08/2011,372.86
Bath & North East Somerset Council,80010304,7S1,Foster Carer Allowances,P02,"Early Years, Children & Youth",REDACTED,03/08/2011,372.86
Bath & North East Somerset Council,80010311,YF2,Foster Carer Allowances,P02,"Early Years, Children & Youth",REDACTED,03/08/2011,372.86
Bath & North East Somerset Council,80010311,LL8,Foster Carer Allowances,P02,"Early Years, Children & Youth",REDACTED,03/08/2011,372.86
Bath & North East Somerset Council,80010311,YF2,Foster Carer Allowances,P02,"Early Years, Children & Youth",REDACTED,03/08/2011,372.86
Bath & North East Somerset Council,80010311,LL8,Foster Carer Allowances,P02,"Early Years, Children & Youth",REDACTED,03/08/2011,372.86
Bath & North East Somerset Council,80010311,7S1,Foster Carer Allowances,P02,"Early Years, Children & Youth",REDACTED,03/08/2011,372.86
Bath & North East Somerset Council,80010312,LM8,Foster Carer Allowances,P02,"Early Years, Children & Youth",REDACTED,03/08/2011,372.86
Bath & North East Somerset Council,80010312,LM8,Residential Care,P03,Wellbeing,DIMENSIONS (UK) LTD,03/08/2011,380.34
Bath & North East Somerset Council,80010312,LM8,Residential Care,P03,Wellbeing,DIMENSIONS (UK) LTD,03/08/2011,380.34
Bath & North East Somerset Council,80010312,LM8,Residential Care,P03,Wellbeing,DIMENSIONS (UK) LTD,03/08/2011,381.45
Bath & North East Somerset Council,80010312,LM8,Residential Care,P03,Wellbeing,DIMENSIONS (UK) LTD,03/08/2011,381.45
Bath & North East Somerset Council,80010312,LM8,Residential Care,P03,Wellbeing,DIMENSIONS (UK) LTD,03/08/2011,381.45
Bath & North East Somerset Council,80010312,LM8,Residential Care,P03,Wellbeing,DIMENSIONS (UK) LTD,03/08/2011,381.45
Bath & North East Somerset Council,80010312,LM8,Residential Care,P03,Wellbeing,DIMENSIONS (UK) LTD,03/08/2011,381.45
Bath & North East Somerset Council,80010312,LM8,Residential Care,P03,Wellbeing,DIMENSIONS (UK) LTD,03/08/2011,381.45
Bath & North East Somerset Council,80010312,LM8,Residential Care,P03,Wellbeing,DIMENSIONS (UK) LTD,03/08/2011,381.45
Bath & North East Somerset Council,80010312,LM8,Residential Care,P03,Wellbeing,DIMENSIONS (UK) LTD,03/08/2011,381.45
Bath & North East Somerset Council,80010312,LM8,Residential Care,P03,Wellbeing,DIMENSIONS (UK) LTD,03/08/2011,381.45
Bath & North East Somerset Council,80010312,LM8,Residential Care,P03,Wellbeing,DIMENSIONS (UK) LTD,03/08/2011,381.45
Bath & North East Somerset Council,80010312,LM8,Residential Care,P03,Wellbeing,DIMENSIONS (UK) LTD,03/08/2011,381.45
Bath & North East Somerset Council,80010312,LM8,Residential Care,P03,Wellbeing,DIMENSIONS (UK) LTD,03/08/2011,381.45
Bath & North East Somerset Council,80010312,LM8,Residential Care,P03,Wellbeing,DIMENSIONS (UK) LTD,03/08/2011,381.45
Bath & North East Somerset Council,80010312,LM8,Residential Care,P03,Wellbeing,DIMENSIONS (UK) LTD,03/08/2011,381.45
Bath & North East Somerset Council,80010312,LM8,Residential Care,P03,Wellbeing,DIMENSIONS (UK) LTD,03/08/2011,381.45
Bath & North East Somerset Council,80010312,LM8,Residential Care,P03,Wellbeing,DIMENSIONS (UK) LTD,03/08/2011,381.45
Bath & North East Somerset Council,80010312,LM8,Residential Care,P03,Wellbeing,DIMENSIONS (UK) LTD,03/08/2011,381.45
Bath & North East Somerset Council,80010312,LM8,Residential Care,P03,Wellbeing,DIMENSIONS (UK) LTD,03/08/2011,381.45
Bath & North East Somerset Council,80010312,LM8,Residential Care,P03,Wellbeing,DIMENSIONS (UK) LTD,03/08/2011,381.45
Bath & North East Somerset Council,80010312,LM8,Residential Care,P03,Wellbeing,DIMENSIONS (UK) LTD,03/08/2011,381.45
Bath & North East Somerset Council,80010312,LM8,Residential Care,P03,Wellbeing,OAKTREE (CLEVEDON) LIMITED,03/08/2011,382.64
Bath & North East Somerset Council,80010312,LM8,Residential Care,P03,Wellbeing,OAKTREE (CLEVEDON) LIMITED,03/08/2011,382.64
Bath & North East Somerset Council,80010312,LM8,Nursing Care,P03,Wellbeing,EUROPEAN CARE SW LTD - REDACTED AC,03/08/2011,382.86
Bath & North East Somerset Council,80010312,LM8,Nursing Care,P03,Wellbeing,EUROPEAN CARE SW LTD - REDACTED AC,03/08/2011,382.86
Bath & North East Somerset Council,80010312,LM8,Nursing Care,P03,Wellbeing,BARKER CHEMICALS LTD T/A ST TERESA'S NH,03/08/2011,382.86
Bath & North East Somerset Council,80010312,LM8,Nursing Care,P03,Wellbeing,EUROPEAN CARE (UK) LTD - REDACTED A/C,03/08/2011,382.86
Bath & North East Somerset Council,80010312,LM8,Residential Care,P03,Wellbeing,CHOLWELL HOUSE NURSING HOME,03/08/2011,387.43
Bath & North East Somerset Council,80010312,LM8,Residential Care,P03,Wellbeing,EUROPEAN CARE (UK) LTD - REDACTED A/C,03/08/2011,400.61
Bath & North East Somerset Council,80010312,LM8,Residential Care,P03,Wellbeing,EUROPEAN CARE (UK) LTD - REDACTED A/C,03/08/2011,400.61
Bath & North East Somerset Council,80010312,LM8,Residential Care,P03,Wellbeing,EUROPEAN CARE (UK) LTD - REDACTED A/C,03/08/2011,400.61
Bath & North East Somerset Council,80010312,LM8,Residential Care,P03,Wellbeing,EUROPEAN CARE (UK) LTD - REDACTED A/C,03/08/2011,400.61
Bath & North East Somerset Council,80010312,LM8,Residential Care,P03,Wellbeing,EUROPEAN CARE (UK) LTD - REDACTED A/C,03/08/2011,400.61
Bath & North East Somerset Council,80010312,LM8,Residential Care,P03,Wellbeing,EUROPEAN CARE (UK) LTD - REDACTED A/C,03/08/2011,400.61
Bath & North East Somerset Council,80010312,LM8,Residential Care,P03,Wellbeing,EUROPEAN CARE (UK) LTD - REDACTED A/C,03/08/2011,400.61
Bath & North East Somerset Council,80010312,LM8,Residential Care,P03,Wellbeing,EUROPEAN CARE (UK) LTD - REDACTED A/C,03/08/2011,400.61
Bath & North East Somerset Council,80010312,LM8,Residential Care,P03,Wellbeing,EUROPEAN CARE (UK) LTD - REDACTED A/C,03/08/2011,400.61
Bath & North East Somerset Council,80010312,LM8,Residential Care,P03,Wellbeing,EUROPEAN CARE (UK) LTD - REDACTED A/C,03/08/2011,400.61
Bath & North East Somerset Council,80010312,LM8,Residential Care,P03,Wellbeing,EUROPEAN CARE (UK) LTD - REDACTED A/C,03/08/2011,400.61
Bath & North East Somerset Council,80010312,LM8,Residential Care,P03,Wellbeing,EUROPEAN CARE (UK) LTD - REDACTED A/C,03/08/2011,400.61
Bath & North East Somerset Council,80010312,7S1,Residential Care,P03,Wellbeing,EUROPEAN CARE (UK) LTD - REDACTED A/C,03/08/2011,400.61
Bath & North East Somerset Council,80010313,LL8,Residential Care,P03,Wellbeing,EUROPEAN CARE (UK) LTD - REDACTED A/C,03/08/2011,400.61
Bath & North East Somerset Council,80010313,LL8,Residential Care,P03,Wellbeing,EUROPEAN CARE (UK) LTD - REDACTED A/C,03/08/2011,400.61
Bath & North East Somerset Council,80010313,7S1,Residential Care,P03,Wellbeing,EUROPEAN CARE (UK) LTD - REDACTED A/C,03/08/2011,400.61
Bath & North East Somerset Council,80010315,LL4,Residential Care,P03,Wellbeing,EUROPEAN CARE (UK) LTD - REDACTED A/C,03/08/2011,400.61
Bath & North East Somerset Council,80010315,LL4,Residential Care,P03,Wellbeing,EUROPEAN CARE (UK) LTD - REDACTED A/C,03/08/2011,400.61
Bath & North East Somerset Council,80010315,7S1,Residential Care,P03,Wellbeing,EUROPEAN CARE (UK) LTD - REDACTED A/C,03/08/2011,400.61
Bath & North East Somerset Council,80010316,LL4,Residential Care,P03,Wellbeing,EUROPEAN CARE (UK) LTD - REDACTED A/C,03/08/2011,400.61
Bath & North East Somerset Council,80010316,LL4,Residential Care,P03,Wellbeing,EUROPEAN CARE (UK) LTD - REDACTED A/C,03/08/2011,400.61
Bath & North East Somerset Council,80010316,7S1,Residential Care,P03,Wellbeing,EUROPEAN CARE (UK) LTD - REDACTED A/C,03/08/2011,400.61
Bath & North East Somerset Council,80010323,LL4,Residential Care,P03,Wellbeing,EUROPEAN CARE (UK) LTD - REDACTED A/C,03/08/2011,400.61
Bath & North East Somerset Council,80010323,LL4,Residential Care,P03,Wellbeing,EUROPEAN CARE (UK) LTD - REDACTED A/C,03/08/2011,400.61
Bath & North East Somerset Council,80010323,7S1,Residential Care,P03,Wellbeing,EUROPEAN CARE (UK) LTD - REDACTED A/C,03/08/2011,400.61
Bath & North East Somerset Council,80010326,LL4,Residential Care,P03,Wellbeing,EUROPEAN CARE (UK) LTD - REDACTED A/C,03/08/2011,400.61
Bath & North East Somerset Council,80010326,LL4,Residential Care,P03,Wellbeing,EUROPEAN CARE (UK) LTD - REDACTED A/C,03/08/2011,400.61
Bath & North East Somerset Council,80010326,7S1,Residential Care,P03,Wellbeing,EUROPEAN CARE (UK) LTD - REDACTED A/C,03/08/2011,400.61
Bath & North East Somerset Council,80010339,LL4,Residential Care,P03,Wellbeing,EUROPEAN CARE (UK) LTD - REDACTED A/C,03/08/2011,400.61
Bath & North East Somerset Council,80010339,LL4,Residential Care,P03,Wellbeing,EUROPEAN CARE (UK) LTD - REDACTED A/C,03/08/2011,400.61
Bath & North East Somerset Council,80010339,LL4,Residential Care,P03,Wellbeing,EUROPEAN CARE (UK) LTD - REDACTED A/C,03/08/2011,400.61
Bath & North East Somerset Council,80010339,LL4,Residential Care,P03,Wellbeing,EUROPEAN CARE (UK) LTD - REDACTED A/C,03/08/2011,400.61
Bath & North East Somerset Council,80010339,LL4,Residential Care,P03,Wellbeing,EUROPEAN CARE (UK) LTD - REDACTED A/C,03/08/2011,400.61
Bath & North East Somerset Council,80010339,LL4,Residential Care,P03,Wellbeing,EUROPEAN CARE (UK) LTD - REDACTED A/C,03/08/2011,400.61
Bath & North East Somerset Council,80010339,LL4,Residential Care,P03,Wellbeing,EUROPEAN CARE (UK) LTD - REDACTED A/C,03/08/2011,400.61
Bath & North East Somerset Council,80010339,LL4,Residential Care,P03,Wellbeing,EUROPEAN CARE (UK) LTD - REDACTED A/C,03/08/2011,400.61
Bath & North East Somerset Council,80010339,LL4,Residential Care,P03,Wellbeing,EUROPEAN CARE (UK) LTD - REDACTED A/C,03/08/2011,400.61
Bath & North East Somerset Council,80010339,LL4,Residential Care,P03,Wellbeing,EUROPEAN CARE (UK) LTD - REDACTED A/C,03/08/2011,400.61
Bath & North East Somerset Council,80010339,LL4,Residential Care,P03,Wellbeing,GREENGATES CARE HOME LTD,03/08/2011,404.07
Bath & North East Somerset Council,80010339,LL4,Residential Care,P03,Wellbeing,GREENGATES CARE HOME LTD,03/08/2011,404.07
Bath & North East Somerset Council,80010339,LL4,Residential Care,P03,Wellbeing,MOSTYN LODGE,03/08/2011,413.00
Bath & North East Somerset Council,80010339,LL4,Residential Care,P03,Wellbeing,MOSTYN LODGE,03/08/2011,413.00
Bath & North East Somerset Council,80010339,LL4,Residential Care,P03,Wellbeing,ST AGNES RETIREMENT HOME,03/08/2011,413.00
Bath & North East Somerset Council,80010339,LL4,Residential Care,P03,Wellbeing,ST AGNES RETIREMENT HOME,03/08/2011,413.00
Bath & North East Somerset Council,80010339,LL4,Residential Care,P03,Wellbeing,ST AGNES RETIREMENT HOME,03/08/2011,413.00
Bath & North East Somerset Council,80010339,LL4,Residential Care,P03,Wellbeing,ST AGNES RETIREMENT HOME,03/08/2011,413.00
Bath & North East Somerset Council,80010339,LL4,Residential Care,P03,Wellbeing,ST AGNES RETIREMENT HOME,03/08/2011,413.00
Bath & North East Somerset Council,80010339,LL4,Residential Care,P03,Wellbeing,CEDAR CARE HOMES LTD,03/08/2011,413.00
Bath & North East Somerset Council,80010339,LL4,Residential Care,P03,Wellbeing,CEDAR CARE HOMES LTD,03/08/2011,413.00
Bath & North East Somerset Council,80010339,LL4,Residential Care,P03,Wellbeing,SALVATION ARMY,03/08/2011,413.00
Bath & North East Somerset Council,80010339,LL4,Residential Care,P03,Wellbeing,SALVATION ARMY,03/08/2011,413.00
Bath & North East Somerset Council,80010339,LL4,Residential Care,P03,Wellbeing,SALVATION ARMY,03/08/2011,413.00
Bath & North East Somerset Council,80010339,LL4,Residential Care,P03,Wellbeing,SALVATION ARMY,03/08/2011,413.00
Bath & North East Somerset Council,80010339,LL4,Residential Care,P03,Wellbeing,SALVATION ARMY,03/08/2011,413.00
Bath & North East Somerset Council,80010339,LL4,Residential Care,P03,Wellbeing,SALVATION ARMY,03/08/2011,413.00
Bath & North East Somerset Council,80010339,YF2,Residential Care,P03,Wellbeing,SALVATION ARMY,03/08/2011,413.00
Bath & North East Somerset Council,80010339,YF2,Residential Care,P03,Wellbeing,SALVATION ARMY,03/08/2011,413.00
Bath & North East Somerset Council,80010339,LL4,Residential Care,P03,Wellbeing,SALVATION ARMY,03/08/2011,413.00
Bath & North East Somerset Council,80010339,7S1,Residential Care,P03,Wellbeing,SALVATION ARMY,03/08/2011,413.00
Bath & North East Somerset Council,80010373,LL4,Residential Care,P03,Wellbeing,SALVATION ARMY,03/08/2011,413.00
Bath & North East Somerset Council,80010373,LL4,Residential Care,P03,Wellbeing,SALVATION ARMY,03/08/2011,413.00
Bath & North East Somerset Council,80010373,7S1,Residential Care,P03,Wellbeing,BRIDGE CARE LTD,03/08/2011,413.00
Bath & North East Somerset Council,80010382,LM6,Residential Care,P03,Wellbeing,BRIDGE CARE LTD,03/08/2011,413.00
Bath & North East Somerset Council,80010382,LM6,Residential Care,P03,Wellbeing,BRIDGE CARE LTD,03/08/2011,413.00
Bath & North East Somerset Council,80010382,LM6,Residential Care,P03,Wellbeing,BRIDGE CARE LTD,03/08/2011,413.00
Bath & North East Somerset Council,80010382,7S1,Residential Care,P03,Wellbeing,ARTI SERVICES LTD T/A THE MANOR FARM HOUSE,03/08/2011,413.00
Bath & North East Somerset Council,80010383,LM6,Residential Care,P03,Wellbeing,ARTI SERVICES LTD T/A THE MANOR FARM HOUSE,03/08/2011,413.00
Bath & North East Somerset Council,80010383,LM6,Residential Care,P03,Wellbeing,ARTI SERVICES LTD T/A THE MANOR FARM HOUSE,03/08/2011,413.00
Bath & North East Somerset Council,80010383,7S1,Residential Care,P03,Wellbeing,ARTI SERVICES LTD T/A THE MANOR FARM HOUSE,03/08/2011,413.00
Bath & North East Somerset Council,80010384,LM6,Residential Care,P03,Wellbeing,ARTI SERVICES LTD T/A THE MANOR FARM HOUSE,03/08/2011,413.00
Bath & North East Somerset Council,80010384,LM6,Residential Care,P03,Wellbeing,ARTI SERVICES LTD T/A THE MANOR FARM HOUSE,03/08/2011,413.00
Bath & North East Somerset Council,80010384,LM6,Residential Care,P03,Wellbeing,ARTI SERVICES LTD T/A THE MANOR FARM HOUSE,03/08/2011,413.00
Bath & North East Somerset Council,80010384,LM6,Residential Care,P03,Wellbeing,ARTI SERVICES LTD T/A THE MANOR FARM HOUSE,03/08/2011,413.00
Bath & North East Somerset Council,80010384,LM6,Residential Care,P03,Wellbeing,QUALITY CARE HOMES LTD,03/08/2011,413.00
Bath & North East Somerset Council,80010384,LM6,Residential Care,P03,Wellbeing,QUALITY CARE HOMES LTD,03/08/2011,413.00
Bath & North East Somerset Council,80010384,LM6,Residential Care,P03,Wellbeing,WYVERN LODGE CARE HOME,03/08/2011,413.00
Bath & North East Somerset Council,80010384,LM6,Residential Care,P03,Wellbeing,WYVERN LODGE CARE HOME,03/08/2011,413.00
Bath & North East Somerset Council,80010384,LM6,Residential Care,P03,Wellbeing,ST BATHENS,03/08/2011,413.00
Bath & North East Somerset Council,80010384,LM6,Residential Care,P03,Wellbeing,ST BATHENS,03/08/2011,413.00
Bath & North East Somerset Council,80010384,LM6,Residential Care,P03,Wellbeing,ST BATHENS,03/08/2011,413.00
Bath & North East Somerset Council,80010384,LM6,Residential Care,P03,Wellbeing,ST BATHENS,03/08/2011,413.00
Bath & North East Somerset Council,80010384,LM6,Residential Care,P03,Wellbeing,ST BATHENS,03/08/2011,413.00
Bath & North East Somerset Council,80010384,LM6,Residential Care,P03,Wellbeing,ST BATHENS,03/08/2011,413.00
Bath & North East Somerset Council,80010384,LM6,Residential Care,P03,Wellbeing,ST BATHENS,03/08/2011,413.00
Bath & North East Somerset Council,80010384,LM6,Residential Care,P03,Wellbeing,ST BATHENS,03/08/2011,413.00
Bath & North East Somerset Council,80010384,LM6,Residential Care,P03,Wellbeing,GROVE CARE LTD T/A ORIEL LODGE,03/08/2011,413.00
Bath & North East Somerset Council,80010384,LM6,Residential Care,P03,Wellbeing,GROVE CARE LTD T/A ORIEL LODGE,03/08/2011,413.00
Bath & North East Somerset Council,80010384,LM6,Residential Care,P03,Wellbeing,BRIGHTWELL RES CARE,03/08/2011,413.00
Bath & North East Somerset Council,80010384,LM6,Residential Care,P03,Wellbeing,BRIGHTWELL RES CARE,03/08/2011,413.00
Bath & North East Somerset Council,80010384,LM6,Residential Care,P03,Wellbeing,BRIGHTWELL RES CARE,03/08/2011,413.00
Bath & North East Somerset Council,80010384,LM6,Residential Care,P03,Wellbeing,BRIGHTWELL RES CARE,03/08/2011,413.00
Bath & North East Somerset Council,80010384,LM6,Residential Care,P03,Wellbeing,BRIGHTWELL RES CARE,03/08/2011,413.00
Bath & North East Somerset Council,80010384,LM6,Residential Care,P03,Wellbeing,BRIGHTWELL RES CARE,03/08/2011,413.00
Bath & North East Somerset Council,80010384,LM6,Residential Care,P03,Wellbeing,BRIGHTWELL RES CARE,03/08/2011,413.00
Bath & North East Somerset Council,80010384,LM6,Residential Care,P03,Wellbeing,BRIGHTWELL RES CARE,03/08/2011,413.00
Bath & North East Somerset Council,80010384,LM6,Residential Care,P03,Wellbeing,BRIGHTWELL RES CARE,03/08/2011,413.00
Bath & North East Somerset Council,80010384,LM6,Residential Care,P03,Wellbeing,FSHC NEWCO 2 LTD: REDACTED,03/08/2011,413.00
Bath & North East Somerset Council,80010384,LM6,Residential Care,P03,Wellbeing,FSHC NEWCO 2 LTD: REDACTED,03/08/2011,413.00
Bath & North East Somerset Council,80010384,LM6,Residential Care,P03,Wellbeing,FSHC NEWCO 2 LTD: REDACTED,03/08/2011,413.00
Bath & North East Somerset Council,80010384,LM6,Residential Care,P03,Wellbeing,FSHC NEWCO 2 LTD: REDACTED,03/08/2011,413.00
Bath & North East Somerset Council,80010384,LM6,Residential Care,P03,Wellbeing,FSHC NEWCO 2 LTD: REDACTED,03/08/2011,413.00
Bath & North East Somerset Council,80010384,LM6,Residential Care,P03,Wellbeing,FSHC NEWCO 2 LTD: REDACTED,03/08/2011,413.00
Bath & North East Somerset Council,80010384,LM6,Residential Care,P03,Wellbeing,FSHC NEWCO 2 LTD: REDACTED,03/08/2011,413.00
Bath & North East Somerset Council,80010384,LM6,Residential Care,P03,Wellbeing,FSHC NEWCO 2 LTD: REDACTED,03/08/2011,413.00
Bath & North East Somerset Council,80010384,LM6,Residential Care,P03,Wellbeing,FSHC NEWCO 2 LTD: REDACTED,03/08/2011,413.00
Bath & North East Somerset Council,80010384,LM6,Residential Care,P03,Wellbeing,FSHC NEWCO 2 LTD: REDACTED,03/08/2011,413.00
Bath & North East Somerset Council,80010384,LM6,Residential Care,P03,Wellbeing,FSHC NEWCO 2 LTD: REDACTED,03/08/2011,413.00
Bath & North East Somerset Council,80010384,LM6,Residential Care,P03,Wellbeing,FSHC NEWCO 2 LTD: REDACTED,03/08/2011,413.00
Bath & North East Somerset Council,80010384,LM6,Residential Care,P03,Wellbeing,FSHC NEWCO 2 LTD: REDACTED,03/08/2011,413.00
Bath & North East Somerset Council,80010384,LM6,Residential Care,P03,Wellbeing,FSHC NEWCO 2 LTD: REDACTED,03/08/2011,413.00
Bath & North East Somerset Council,80010384,LM6,Residential Care,P03,Wellbeing,FSHC NEWCO 2 LTD: REDACTED,03/08/2011,413.00
Bath & North East Somerset Council,80010384,LM6,Residential Care,P03,Wellbeing,FSHC NEWCO 2 LTD: REDACTED,03/08/2011,413.00
Bath & North East Somerset Council,80010384,LM6,Residential Care,P03,Wellbeing,FSHC NEWCO 2 LTD: REDACTED,03/08/2011,413.00
Bath & North East Somerset Council,80010384,LM6,Residential Care,P03,Wellbeing,FSHC NEWCO 2 LTD: REDACTED,03/08/2011,413.00
Bath & North East Somerset Council,80010384,LM6,Residential Care,P03,Wellbeing,FSHC NEWCO 2 LTD: REDACTED,03/08/2011,413.00
Bath & North East Somerset Council,80010384,LM6,Residential Care,P03,Wellbeing,FSHC NEWCO 2 LTD: REDACTED,03/08/2011,413.00
Bath & North East Somerset Council,80010384,7S1,Residential Care,P03,Wellbeing,FSHC NEWCO 2 LTD: REDACTED,03/08/2011,413.00
Bath & North East Somerset Council,80010385,LM6,Residential Care,P03,Wellbeing,FSHC NEWCO 2 LTD: REDACTED,03/08/2011,413.00
Bath & North East Somerset Council,80010385,LM6,Residential Care,P03,Wellbeing,FSHC NEWCO 2 LTD: REDACTED,03/08/2011,413.00
Bath & North East Somerset Council,80010385,LM6,Residential Care,P03,Wellbeing,FSHC NEWCO 2 LTD: REDACTED,03/08/2011,413.00
Bath & North East Somerset Council,80010385,LM6,Residential Care,P03,Wellbeing,FSHC NEWCO 2 LTD: REDACTED,03/08/2011,413.00
Bath & North East Somerset Council,80010385,LM6,Residential Care,P03,Wellbeing,FSHC NEWCO 2 LTD: REDACTED,03/08/2011,413.00
Bath & North East Somerset Council,80010385,7S1,Residential Care,P03,Wellbeing,FSHC NEWCO 2 LTD: REDACTED,03/08/2011,413.00
Bath & North East Somerset Council,80010386,LM6,Residential Care,P03,Wellbeing,FSHC NEWCO 2 LTD: REDACTED,03/08/2011,413.00
Bath & North East Somerset Council,80010386,LM6,Residential Care,P03,Wellbeing,FSHC NEWCO 2 LTD: REDACTED,03/08/2011,413.00
Bath & North East Somerset Council,80010386,LM6,Residential Care,P03,Wellbeing,FSHC NEWCO 2 LTD: REDACTED,03/08/2011,413.00
Bath & North East Somerset Council,80010386,LM6,Residential Care,P03,Wellbeing,FSHC NEWCO 2 LTD: REDACTED,03/08/2011,413.00
Bath & North East Somerset Council,80010386,7S1,Residential Care,P03,Wellbeing,FSHC NEWCO 2 LTD: REDACTED,03/08/2011,413.00
Bath & North East Somerset Council,80010387,LM6,Residential Care,P03,Wellbeing,FSHC NEWCO 2 LTD: REDACTED,03/08/2011,413.00
Bath & North East Somerset Council,80010387,LM6,Residential Care,P03,Wellbeing,FSHC NEWCO 2 LTD: REDACTED,03/08/2011,413.00
Bath & North East Somerset Council,80010387,7S1,Residential Care,P03,Wellbeing,FSHC NEWCO 2 LTD: REDACTED,03/08/2011,413.00
Bath & North East Somerset Council,80010388,LM6,Residential Care,P03,Wellbeing,FSHC NEWCO 2 LTD: REDACTED,03/08/2011,413.00
Bath & North East Somerset Council,80010388,LM6,Residential Care,P03,Wellbeing,FSHC NEWCO 2 LTD: REDACTED,03/08/2011,413.00
Bath & North East Somerset Council,80010388,7S1,Residential Care,P03,Wellbeing,FSHC NEWCO 2 LTD: REDACTED,03/08/2011,413.00
Bath & North East Somerset Council,80010389,LM6,Residential Care,P03,Wellbeing,FSHC NEWCO 2 LTD: REDACTED,03/08/2011,413.00
Bath & North East Somerset Council,80010389,LM6,Residential Care,P03,Wellbeing,FSHC NEWCO 2 LTD: REDACTED,03/08/2011,413.00
Bath & North East Somerset Council,80010389,LM6,Residential Care,P03,Wellbeing,CLEEVE LODGE CARE LTD,03/08/2011,413.00
Bath & North East Somerset Council,80010389,LM6,Residential Care,P03,Wellbeing,CLEEVE LODGE CARE LTD,03/08/2011,413.00
Bath & North East Somerset Council,80010389,7S1,Residential Care,P03,Wellbeing,REDACTED,03/08/2011,413.00
Bath & North East Somerset Council,80010390,LM6,Residential Care,P03,Wellbeing,REDACTED,03/08/2011,413.00
Bath & North East Somerset Council,80010390,LM6,Residential Care,P03,Wellbeing,REDACTED,03/08/2011,413.00
Bath & North East Somerset Council,80010390,7S1,Residential Care,P03,Wellbeing,REDACTED,03/08/2011,413.00
Bath & North East Somerset Council,80010391,LM6,Residential Care,P03,Wellbeing,BROUGHTON LODGE CARE HOME,03/08/2011,413.00
Bath & North East Somerset Council,80010391,LM6,Residential Care,P03,Wellbeing,BROUGHTON LODGE CARE HOME,03/08/2011,413.00
Bath & North East Somerset Council,80010391,LM6,Residential Care,P03,Wellbeing,REDACTED,03/08/2011,413.00
Bath & North East Somerset Council,80010391,LM6,Residential Care,P03,Wellbeing,REDACTED,03/08/2011,413.00
Bath & North East Somerset Council,80010391,7S1,Residential Care,P03,Wellbeing,REDACTED,03/08/2011,413.00
Bath & North East Somerset Council,80010392,LM6,Residential Care,P03,Wellbeing,REDACTED,03/08/2011,413.00
Bath & North East Somerset Council,80010392,LM6,Residential Care,P03,Wellbeing,REDACTED,03/08/2011,413.00
Bath & North East Somerset Council,80010392,7S1,Residential Care,P03,Wellbeing,REDACTED,03/08/2011,413.00
Bath & North East Somerset Council,80010393,LM6,Residential Care,P03,Wellbeing,FARRINGTON CARE HOMES LTD,03/08/2011,413.00
Bath & North East Somerset Council,80010393,LM6,Residential Care,P03,Wellbeing,FARRINGTON CARE HOMES LTD,03/08/2011,413.00
Bath & North East Somerset Council,80010393,LM6,Residential Care,P03,Wellbeing,NEWBRIDGE TOWERS RESIDENTIAL CARE HOME,03/08/2011,413.00
Bath & North East Somerset Council,80010393,LM6,Residential Care,P03,Wellbeing,NEWBRIDGE TOWERS RESIDENTIAL CARE HOME,03/08/2011,413.00
Bath & North East Somerset Council,80010393,LM6,Residential Care,P03,Wellbeing,NEWBRIDGE TOWERS RESIDENTIAL CARE HOME,03/08/2011,413.00
Bath & North East Somerset Council,80010393,LM6,Residential Care,P03,Wellbeing,NEWBRIDGE TOWERS RESIDENTIAL CARE HOME,03/08/2011,413.00
Bath & North East Somerset Council,80010393,LM6,Residential Care,P03,Wellbeing,NEWBRIDGE TOWERS RESIDENTIAL CARE HOME,03/08/2011,413.00
Bath & North East Somerset Council,80010393,LM6,Residential Care,P03,Wellbeing,NEWBRIDGE TOWERS RESIDENTIAL CARE HOME,03/08/2011,413.00
Bath & North East Somerset Council,80010393,LM6,Residential Care,P03,Wellbeing,NEWBRIDGE TOWERS RESIDENTIAL CARE HOME,03/08/2011,413.00
Bath & North East Somerset Council,80010393,LM6,Residential Care,P03,Wellbeing,NEWBRIDGE TOWERS RESIDENTIAL CARE HOME,03/08/2011,413.00
Bath & North East Somerset Council,80010393,LM6,Residential Care,P03,Wellbeing,NEWBRIDGE TOWERS RESIDENTIAL CARE HOME,03/08/2011,413.00
Bath & North East Somerset Council,80010393,LM6,Residential Care,P03,Wellbeing,NEWBRIDGE TOWERS RESIDENTIAL CARE HOME,03/08/2011,413.00
Bath & North East Somerset Council,80010393,7S1,Residential Care,P03,Wellbeing,NEWBRIDGE TOWERS RESIDENTIAL CARE HOME,03/08/2011,413.00
Bath & North East Somerset Council,80010394,7S1,Residential Care,P03,Wellbeing,NEWBRIDGE TOWERS RESIDENTIAL CARE HOME,03/08/2011,413.00
Bath & North East Somerset Council,80010395,LM6,Residential Care,P03,Wellbeing,NEWBRIDGE TOWERS RESIDENTIAL CARE HOME,03/08/2011,413.00
Bath & North East Somerset Council,80010395,LM6,Residential Care,P03,Wellbeing,NEWBRIDGE TOWERS RESIDENTIAL CARE HOME,03/08/2011,413.00
Bath & North East Somerset Council,80010395,7S1,Residential Care,P03,Wellbeing,NEWBRIDGE TOWERS RESIDENTIAL CARE HOME,03/08/2011,413.00
Bath & North East Somerset Council,80010396,LM6,Residential Care,P03,Wellbeing,WHITELADIES RESIDENTIAL HOME LTD,03/08/2011,413.00
Bath & North East Somerset Council,80010396,LM6,Residential Care,P03,Wellbeing,WHITELADIES RESIDENTIAL HOME LTD,03/08/2011,413.00
Bath & North East Somerset Council,80010396,7S1,Residential Care,P03,Wellbeing,AVONPARK VILLAGE (CARE HOMES) LTD,03/08/2011,413.00
Bath & North East Somerset Council,80010397,LM6,Residential Care,P03,Wellbeing,AVONPARK VILLAGE (CARE HOMES) LTD,03/08/2011,413.00
Bath & North East Somerset Council,80010397,LM6,Residential Care,P03,Wellbeing,MD JONES & CD WILSON FUTURE CARE LTD,03/08/2011,413.00
Bath & North East Somerset Council,80010397,LM6,Residential Care,P03,Wellbeing,MD JONES & CD WILSON FUTURE CARE LTD,03/08/2011,413.00
Bath & North East Somerset Council,80010397,LM6,Residential Care,P03,Wellbeing,WHITEHAVEN RESIDENTIAL HOME,03/08/2011,413.00
Bath & North East Somerset Council,80010397,LM6,Residential Care,P03,Wellbeing,WHITEHAVEN RESIDENTIAL HOME,03/08/2011,413.00
Bath & North East Somerset Council,80010398,LM6,Residential Care,P03,Wellbeing,WHITEHAVEN RESIDENTIAL HOME,03/08/2011,413.00
Bath & North East Somerset Council,80010398,7S1,Residential Care,P03,Wellbeing,WHITEHAVEN RESIDENTIAL HOME,03/08/2011,413.00
Bath & North East Somerset Council,80010399,LM6,Residential Care,P03,Wellbeing,WHITEHAVEN RESIDENTIAL HOME,03/08/2011,413.00
Bath & North East Somerset Council,80010399,LM6,Residential Care,P03,Wellbeing,WHITEHAVEN RESIDENTIAL HOME,03/08/2011,413.00
Bath & North East Somerset Council,80010399,LM6,Residential Care,P03,Wellbeing,WHITEHAVEN RESIDENTIAL HOME,03/08/2011,413.00
Bath & North East Somerset Council,80010399,LM6,Residential Care,P03,Wellbeing,WHITEHAVEN RESIDENTIAL HOME,03/08/2011,413.00
Bath & North East Somerset Council,80010399,LM6,Residential Care,P03,Wellbeing,WHITEHAVEN RESIDENTIAL HOME,03/08/2011,413.00
Bath & North East Somerset Council,80010399,LM6,Residential Care,P03,Wellbeing,WHITEHAVEN RESIDENTIAL HOME,03/08/2011,413.00
Bath & North East Somerset Council,80010399,LM6,Residential Care,P03,Wellbeing,WHITEHAVEN RESIDENTIAL HOME,03/08/2011,413.00
Bath & North East Somerset Council,80010399,LM6,Residential Care,P03,Wellbeing,WHITEHAVEN RESIDENTIAL HOME,03/08/2011,413.00
Bath & North East Somerset Council,80010399,LM6,Residential Care,P03,Wellbeing,WHITEHAVEN RESIDENTIAL HOME,03/08/2011,413.00
Bath & North East Somerset Council,80010399,LM6,Other Expenses,P04,Leader,CYCLESCHEME LTD,03/08/2011,30.00
Bath & North East Somerset Council,80010400,LM6,Residential Care,P03,Wellbeing,WHITEHAVEN RESIDENTIAL HOME,03/08/2011,413.00
Bath & North East Somerset Council,80010400,LM6,Residential Care,P03,Wellbeing,WARMLEY HOUSE,03/08/2011,413.00
Bath & North East Somerset Council,80010400,7S1,Residential Care,P03,Wellbeing,WARMLEY HOUSE,03/08/2011,413.00
Bath & North East Somerset Council,80010401,LM6,Residential Care,P03,Wellbeing,BARCHESTER HEALTHCARE HOMES LTD,03/08/2011,413.00
Bath & North East Somerset Council,80010401,LM6,Residential Care,P03,Wellbeing,BARCHESTER HEALTHCARE HOMES LTD,03/08/2011,413.00
Bath & North East Somerset Council,80010401,7S1,Residential Care,P03,Wellbeing,BARCHESTER HEALTHCARE HOMES LTD,03/08/2011,413.00
Bath & North East Somerset Council,80010402,LM6,Residential Care,P03,Wellbeing,BARCHESTER HEALTHCARE HOMES LTD,03/08/2011,413.00
Bath & North East Somerset Council,80010402,LM6,Residential Care,P03,Wellbeing,BARCHESTER HEALTHCARE HOMES LTD,03/08/2011,413.00
Bath & North East Somerset Council,80010402,7S1,Residential Care,P03,Wellbeing,BARCHESTER HEALTHCARE HOMES LTD,03/08/2011,413.00
Bath & North East Somerset Council,80010403,LM6,Residential Care,P03,Wellbeing,REDACTED,03/08/2011,413.00
Bath & North East Somerset Council,80010403,LM6,Residential Care,P03,Wellbeing,REDACTED,03/08/2011,413.00
Bath & North East Somerset Council,80010403,LM6,Residential Care,P03,Wellbeing,REDACTED,03/08/2011,413.00
Bath & North East Somerset Council,80010403,LM6,Residential Care,P03,Wellbeing,REDACTED,03/08/2011,413.00
Bath & North East Somerset Council,80010403,7S1,Residential Care,P03,Wellbeing,REDACTED,03/08/2011,413.00
Bath & North East Somerset Council,80010404,LM6,Residential Care,P03,Wellbeing,REDACTED,03/08/2011,413.00
Bath & North East Somerset Council,80010404,LM6,Residential Care,P03,Wellbeing,EUROPEAN CARE (UK) LTD - REDACTED A/C,03/08/2011,413.00
Bath & North East Somerset Council,80010404,LM6,Residential Care,P03,Wellbeing,EUROPEAN CARE (UK) LTD - REDACTED A/C,03/08/2011,413.00
Bath & North East Somerset Council,80010404,LM6,Residential Care,P03,Wellbeing,EUROPEAN CARE (UK) LTD - REDACTED A/C,03/08/2011,413.00
Bath & North East Somerset Council,80010404,7S1,Residential Care,P03,Wellbeing,EUROPEAN CARE (UK) LTD - REDACTED A/C,03/08/2011,413.00
Bath & North East Somerset Council,80010405,LM6,Residential Care,P03,Wellbeing,MIMOSA HEALTHCARE,03/08/2011,413.00
Bath & North East Somerset Council,80010405,7S1,Residential Care,P03,Wellbeing,MIMOSA HEALTHCARE,03/08/2011,413.00
Bath & North East Somerset Council,80010406,LM6,Residential Care,P03,Wellbeing,MIMOSA HEALTHCARE,03/08/2011,413.00
Bath & North East Somerset Council,80010406,LM6,Residential Care,P03,Wellbeing,MIMOSA HEALTHCARE,03/08/2011,413.00
Bath & North East Somerset Council,80010406,LM6,Residential Care,P03,Wellbeing,MIMOSA HEALTHCARE,03/08/2011,413.00
Bath & North East Somerset Council,80010406,LM6,Residential Care,P03,Wellbeing,MIMOSA HEALTHCARE,03/08/2011,413.00
Bath & North East Somerset Council,80010406,7S1,Residential Care,P03,Wellbeing,MIMOSA HEALTHCARE,03/08/2011,413.00
Bath & North East Somerset Council,80010407,LM6,Residential Care,P03,Wellbeing,MIMOSA HEALTHCARE,03/08/2011,413.00
Bath & North East Somerset Council,80010408,LM6,Residential Care,P03,Wellbeing,MIMOSA HEALTHCARE,03/08/2011,413.00
Bath & North East Somerset Council,80010408,7S1,Residential Care,P03,Wellbeing,MIMOSA HEALTHCARE,03/08/2011,413.00
Bath & North East Somerset Council,80010411,LM6,Residential Care,P03,Wellbeing,BCVS HOMES,03/08/2011,413.00
Bath & North East Somerset Council,80010411,7S1,Residential Care,P03,Wellbeing,BCVS HOMES,03/08/2011,413.00
Bath & North East Somerset Council,80010412,LM6,Residential Care,P03,Wellbeing,BCVS HOMES,03/08/2011,413.00
Bath & North East Somerset Council,80010412,LM6,Residential Care,P03,Wellbeing,BCVS HOMES,03/08/2011,413.00
Bath & North East Somerset Council,80010412,7S1,Residential Care,P03,Wellbeing,BCVS HOMES,03/08/2011,413.00
Bath & North East Somerset Council,80010413,LM6,Residential Care,P03,Wellbeing,BCVS HOMES,03/08/2011,413.00
Bath & North East Somerset Council,80010413,LM6,Residential Care,P03,Wellbeing,BCVS HOMES,03/08/2011,413.00
Bath & North East Somerset Council,80010413,LM6,Residential Care,P03,Wellbeing,BCVS HOMES,03/08/2011,413.00
Bath & North East Somerset Council,80010413,LM6,Residential Care,P03,Wellbeing,BCVS HOMES,03/08/2011,413.00
Bath & North East Somerset Council,80010413,LM6,Residential Care,P03,Wellbeing,BCVS HOMES,03/08/2011,413.00
Bath & North East Somerset Council,80010413,LM6,Residential Care,P03,Wellbeing,ANCHOR TRUST,03/08/2011,413.00
Bath & North East Somerset Council,80010413,LM6,Residential Care,P03,Wellbeing,ANCHOR TRUST,03/08/2011,413.00
Bath & North East Somerset Council,80010413,LM6,Residential Care,P03,Wellbeing,ANCHOR TRUST,03/08/2011,413.00
Bath & North East Somerset Council,80010413,LM6,Residential Care,P03,Wellbeing,ANCHOR TRUST,03/08/2011,413.00
Bath & North East Somerset Council,80010413,LM6,Residential Care,P03,Wellbeing,ANCHOR TRUST,03/08/2011,413.00
Bath & North East Somerset Council,80010413,LM6,Residential Care,P03,Wellbeing,ANCHOR TRUST,03/08/2011,413.00
Bath & North East Somerset Council,80010413,7S1,Residential Care,P03,Wellbeing,METHODIST HOMES FOR THE AGED,03/08/2011,413.00
Bath & North East Somerset Council,80010414,LM6,Residential Care,P03,Wellbeing,METHODIST HOMES FOR THE AGED,03/08/2011,413.00
Bath & North East Somerset Council,80010414,LM6,Residential Care,P03,Wellbeing,METHODIST HOMES FOR THE AGED,03/08/2011,413.00
Bath & North East Somerset Council,80010414,7S1,Residential Care,P03,Wellbeing,METHODIST HOMES FOR THE AGED,03/08/2011,413.00
Bath & North East Somerset Council,80010415,LM6,Residential Care,P03,Wellbeing,METHODIST HOMES FOR THE AGED,03/08/2011,413.00
Bath & North East Somerset Council,80010415,LM6,Residential Care,P03,Wellbeing,METHODIST HOMES FOR THE AGED,03/08/2011,413.00
Bath & North East Somerset Council,80010415,LM6,Residential Care,P03,Wellbeing,METHODIST HOMES FOR THE AGED,03/08/2011,413.00
Bath & North East Somerset Council,80010415,LM6,Residential Care,P03,Wellbeing,METHODIST HOMES FOR THE AGED,03/08/2011,413.00
Bath & North East Somerset Council,80010415,7S1,Residential Care,P03,Wellbeing,METHODIST HOMES FOR THE AGED,03/08/2011,413.00
Bath & North East Somerset Council,80010416,LM6,Residential Care,P03,Wellbeing,METHODIST HOMES FOR THE AGED,03/08/2011,413.00
Bath & North East Somerset Council,80010416,LM6,Residential Care,P03,Wellbeing,METHODIST HOMES FOR THE AGED,03/08/2011,413.00
Bath & North East Somerset Council,80010416,LM6,Residential Care,P03,Wellbeing,METHODIST HOMES FOR THE AGED,03/08/2011,413.00
Bath & North East Somerset Council,80010416,LM6,Residential Care,P03,Wellbeing,METHODIST HOMES FOR THE AGED,03/08/2011,413.00
Bath & North East Somerset Council,80010416,LM6,Residential Care,P03,Wellbeing,METHODIST HOMES FOR THE AGED,03/08/2011,413.00
Bath & North East Somerset Council,80010416,LM6,Residential Care,P03,Wellbeing,METHODIST HOMES FOR THE AGED,03/08/2011,413.00
Bath & North East Somerset Council,80010416,LM6,Residential Care,P03,Wellbeing,METHODIST HOMES FOR THE AGED,03/08/2011,413.00
Bath & North East Somerset Council,80010416,LM6,Legal Fees,C06,Service Delivery,MR V CHAPMAN,03/08/2011,40.00
Bath & North East Somerset Council,80010416,LM6,Residential Care,P03,Wellbeing,METHODIST HOMES FOR THE AGED,03/08/2011,413.00
Bath & North East Somerset Council,80010416,LM6,Residential Care,P03,Wellbeing,METHODIST HOMES FOR THE AGED,03/08/2011,413.00
Bath & North East Somerset Council,80010416,LM6,Residential Care,P03,Wellbeing,METHODIST HOMES FOR THE AGED,03/08/2011,413.00
Bath & North East Somerset Council,80010416,LM6,Residential Care,P03,Wellbeing,METHODIST HOMES FOR THE AGED,03/08/2011,413.00
Bath & North East Somerset Council,80010416,LM6,Residential Care,P03,Wellbeing,METHODIST HOMES FOR THE AGED,03/08/2011,413.00
Bath & North East Somerset Council,80010416,LM6,Residential Care,P03,Wellbeing,METHODIST HOMES FOR THE AGED,03/08/2011,413.00
Bath & North East Somerset Council,80010416,LM6,Residential Care,P03,Wellbeing,METHODIST HOMES FOR THE AGED,03/08/2011,413.00
Bath & North East Somerset Council,80010416,LM6,Residential Care,P03,Wellbeing,METHODIST HOMES FOR THE AGED,03/08/2011,413.00
Bath & North East Somerset Council,80010416,LM6,Residential Care,P03,Wellbeing,METHODIST HOMES FOR THE AGED,03/08/2011,413.00
Bath & North East Somerset Council,80010416,LM6,Residential Care,P03,Wellbeing,METHODIST HOMES FOR THE AGED,03/08/2011,413.00
Bath & North East Somerset Council,80010416,LM6,Residential Care,P03,Wellbeing,METHODIST HOMES FOR THE AGED,03/08/2011,413.00
Bath & North East Somerset Council,80010416,LM6,Residential Care,P03,Wellbeing,COUNTY FUND ACCOUNT REDACTED,03/08/2011,416.00
Bath & North East Somerset Council,80010416,7S1,Provisions,P03,Wellbeing,L & F JONES HOLDINGS LTD,03/08/2011,42.08
Bath & North East Somerset Council,80010417,LM6,Residential Care,P03,Wellbeing,COUNTY FUND ACCOUNT REDACTED,03/08/2011,416.00
Bath & North East Somerset Council,80010417,LM6,Residential Care,P03,Wellbeing,QUALITY CARE HOMES LTD,03/08/2011,417.00
Bath & North East Somerset Council,80010417,7S1,Residential Care,P03,Wellbeing,QUALITY CARE HOMES LTD,03/08/2011,417.00
Bath & North East Somerset Council,80010418,LM6,Residential Care,P03,Wellbeing,GRAND CROSS LTD RE KINGSWOOD COURT CARE HOME,03/08/2011,417.00
Bath & North East Somerset Council,80010418,LM6,Residential Care,P03,Wellbeing,GRAND CROSS LTD RE KINGSWOOD COURT CARE HOME,03/08/2011,417.00
Bath & North East Somerset Council,80010418,LM6,Residential Care,P03,Wellbeing,BCVS HOMES,03/08/2011,423.00
Bath & North East Somerset Council,80010418,LM6,Residential Care,P03,Wellbeing,BCVS HOMES,03/08/2011,423.00
Bath & North East Somerset Council,80010418,7S1,Supported Living,P03,Wellbeing,OPTIONS FOR LIVING LTD,03/08/2011,425.52
Bath & North East Somerset Council,80010419,LM6,Supported Living,P03,Wellbeing,OPTIONS FOR LIVING LTD,03/08/2011,425.52
Bath & North East Somerset Council,80010419,LM6,Supported Living,P03,Wellbeing,SWALLOW LTD,03/08/2011,434.51
Bath & North East Somerset Council,80010420,LM6,Supported Living,P03,Wellbeing,SWALLOW LTD,03/08/2011,434.51
Bath & North East Somerset Council,80010420,7S1,Residential Care,P03,Wellbeing,PCM LAXTON HALL ADMIN FUND,03/08/2011,437.63
Bath & North East Somerset Council,80010421,LM6,Residential Care,P03,Wellbeing,PCM LAXTON HALL ADMIN FUND,03/08/2011,437.63
Bath & North East Somerset Council,80010421,LM6,Supported Living,P03,Wellbeing,DIMENSIONS (UK) LTD,03/08/2011,439.37
Bath & North East Somerset Council,80010421,7S1,Supported Living,P03,Wellbeing,DIMENSIONS (UK) LTD,03/08/2011,439.37
Bath & North East Somerset Council,80010422,LM6,Supported Living,P03,Wellbeing,DIMENSIONS (UK) LTD,03/08/2011,439.37
Bath & North East Somerset Council,80010423,7S1,Supported Living,P03,Wellbeing,DIMENSIONS (UK) LTD,03/08/2011,439.37
Bath & North East Somerset Council,80010424,LM6,Residential Care,P03,Wellbeing,REDACTED,03/08/2011,440.00
Bath & North East Somerset Council,80010424,LM6,Residential Care,P03,Wellbeing,REDACTED,03/08/2011,440.00
Bath & North East Somerset Council,80010424,LM6,Residential Care,P03,Wellbeing,DIMENSIONS (UK) LTD,03/08/2011,442.35
Bath & North East Somerset Council,80010424,LM6,Residential Care,P03,Wellbeing,DIMENSIONS (UK) LTD,03/08/2011,442.35
Bath & North East Somerset Council,80010424,LM6,Residential Care,P03,Wellbeing,DIMENSIONS (UK) LTD,03/08/2011,442.35
Bath & North East Somerset Council,80010424,7S1,Residential Care,P03,Wellbeing,DIMENSIONS (UK) LTD,03/08/2011,442.35
Bath & North East Somerset Council,80010425,LM6,Residential Care,P03,Wellbeing,DIMENSIONS (UK) LTD,03/08/2011,442.35
Bath & North East Somerset Council,80010425,LM6,Residential Care,P03,Wellbeing,DIMENSIONS (UK) LTD,03/08/2011,442.35
Bath & North East Somerset Council,80010425,LM6,Residential Care,P03,Wellbeing,DIMENSIONS (UK) LTD,03/08/2011,442.35
Bath & North East Somerset Council,80010425,LM6,Residential Care,P03,Wellbeing,DIMENSIONS (UK) LTD,03/08/2011,442.35
Bath & North East Somerset Council,80010425,LM6,Residential Care,P03,Wellbeing,DIMENSIONS (UK) LTD,03/08/2011,442.35
Bath & North East Somerset Council,80010425,LM6,Residential Care,P03,Wellbeing,DIMENSIONS (UK) LTD,03/08/2011,442.35
Bath & North East Somerset Council,80010425,7S1,Residential Care,P03,Wellbeing,DIMENSIONS (UK) LTD,03/08/2011,442.35
Bath & North East Somerset Council,80010426,LM6,Residential Care,P03,Wellbeing,DIMENSIONS (UK) LTD,03/08/2011,442.35
Bath & North East Somerset Council,80010426,7S1,Residential Care,P03,Wellbeing,DIMENSIONS (UK) LTD,03/08/2011,442.35
Bath & North East Somerset Council,80010427,LM6,Residential Care,P03,Wellbeing,DIMENSIONS (UK) LTD,03/08/2011,442.35
Bath & North East Somerset Council,80010427,LM6,Residential Care,P03,Wellbeing,DIMENSIONS (UK) LTD,03/08/2011,442.35
Bath & North East Somerset Council,80010427,7S1,Residential Care,P03,Wellbeing,DIMENSIONS (UK) LTD,03/08/2011,442.35
Bath & North East Somerset Council,80010428,LM6,Residential Care,P03,Wellbeing,DIMENSIONS (UK) LTD,03/08/2011,442.35
Bath & North East Somerset Council,80010428,LM6,Residential Care,P03,Wellbeing,DIMENSIONS (UK) LTD,03/08/2011,442.35
Bath & North East Somerset Council,80010428,LM6,Residential Care,P03,Wellbeing,DIMENSIONS (UK) LTD,03/08/2011,442.35
Bath & North East Somerset Council,80010428,LM6,Residential Care,P03,Wellbeing,DIMENSIONS (UK) LTD,03/08/2011,442.35
Bath & North East Somerset Council,80010428,LM6,Residential Care,P03,Wellbeing,DIMENSIONS (UK) LTD,03/08/2011,442.35
Bath & North East Somerset Council,80010428,LM6,Residential Care,P03,Wellbeing,DIMENSIONS (UK) LTD,03/08/2011,442.35
Bath & North East Somerset Council,80010428,LM6,Residential Care,P03,Wellbeing,DIMENSIONS (UK) LTD,03/08/2011,442.35
Bath & North East Somerset Council,80010428,LM6,Residential Care,P03,Wellbeing,DIMENSIONS (UK) LTD,03/08/2011,442.35
Bath & North East Somerset Council,80010428,LM6,Residential Care,P03,Wellbeing,BCVS HOMES,03/08/2011,450.00
Bath & North East Somerset Council,80010428,LM6,Residential Care,P03,Wellbeing,BCVS HOMES,03/08/2011,450.00
Bath & North East Somerset Council,80010428,LM6,Residential Care,P03,Wellbeing,BCVS HOMES,03/08/2011,450.00
Bath & North East Somerset Council,80010428,LM6,Residential Care,P03,Wellbeing,BCVS HOMES,03/08/2011,450.00
Bath & North East Somerset Council,80010428,LM6,Residential Care,P03,Wellbeing,BCVS HOMES,03/08/2011,451.00
Bath & North East Somerset Council,80010428,LM6,Provisions,P03,Wellbeing,L & F JONES HOLDINGS LTD,03/08/2011,60.35
Bath & North East Somerset Council,80010428,LM6,Residential Care,P03,Wellbeing,BCVS HOMES,03/08/2011,451.00
Bath & North East Somerset Council,80010428,LM6,Residential Care,P03,Wellbeing,MOSTYN LODGE,03/08/2011,452.00
Bath & North East Somerset Council,80010428,LM6,Residential Care,P03,Wellbeing,MOSTYN LODGE,03/08/2011,452.00
Bath & North East Somerset Council,80010428,LM6,Provisions,P03,Wellbeing,L & F JONES HOLDINGS LTD,03/08/2011,61.25
Bath & North East Somerset Council,80010428,LM6,Residential Care,P03,Wellbeing,CHOLWELL HOUSE NURSING HOME,03/08/2011,452.00
Bath & North East Somerset Council,80010428,LM6,Residential Care,P03,Wellbeing,CHOLWELL HOUSE NURSING HOME,03/08/2011,452.00
Bath & North East Somerset Council,80010428,LM6,Residential Care,P03,Wellbeing,CHOLWELL HOUSE NURSING HOME,03/08/2011,452.00
Bath & North East Somerset Council,80010428,LM6,Residential Care,P03,Wellbeing,ORDERS OF ST JOHN CARE TRUST,03/08/2011,452.00
Bath & North East Somerset Council,80010428,LM6,Residential Care,P03,Wellbeing,ORDERS OF ST JOHN CARE TRUST,03/08/2011,452.00
Bath & North East Somerset Council,80010428,LM6,Residential Care,P03,Wellbeing,CEDAR CARE HOMES LTD,03/08/2011,452.00
Bath & North East Somerset Council,80010428,LM6,Residential Care,P03,Wellbeing,CEDAR CARE HOMES LTD,03/08/2011,452.00
Bath & North East Somerset Council,80010428,LM6,Residential Care,P03,Wellbeing,CEDAR CARE HOMES LTD,03/08/2011,452.00
Bath & North East Somerset Council,80010428,LM6,Residential Care,P03,Wellbeing,CEDAR CARE HOMES LTD,03/08/2011,452.00
Bath & North East Somerset Council,80010428,LM6,Residential Care,P03,Wellbeing,CEDAR CARE HOMES LTD,03/08/2011,452.00
Bath & North East Somerset Council,80010428,LM6,Residential Care,P03,Wellbeing,CEDAR CARE HOMES LTD,03/08/2011,452.00
Bath & North East Somerset Council,80010428,LM6,Residential Care,P03,Wellbeing,CEDAR CARE HOMES LTD,03/08/2011,452.00
Bath & North East Somerset Council,80010428,LM6,Residential Care,P03,Wellbeing,CEDAR CARE HOMES LTD,03/08/2011,452.00
Bath & North East Somerset Council,80010428,LM6,Residential Care,P03,Wellbeing,CEDAR CARE HOMES LTD,03/08/2011,452.00
Bath & North East Somerset Council,80010428,LM6,Residential Care,P03,Wellbeing,CEDAR CARE HOMES LTD,03/08/2011,452.00
Bath & North East Somerset Council,80010428,LM6,Residential Care,P03,Wellbeing,CEDAR CARE HOMES LTD,03/08/2011,452.00
Bath & North East Somerset Council,80010428,LM6,Residential Care,P03,Wellbeing,CEDAR CARE HOMES LTD,03/08/2011,452.00
Bath & North East Somerset Council,80010428,LM6,Residential Care,P03,Wellbeing,CEDAR CARE HOMES LTD,03/08/2011,452.00
Bath & North East Somerset Council,80010428,LM6,Provisions,P03,Wellbeing,L & F JONES HOLDINGS LTD,03/08/2011,65.79
Bath & North East Somerset Council,80010428,LM6,Provisions,P03,Wellbeing,L & F JONES HOLDINGS LTD,03/08/2011,66.09
Bath & North East Somerset Council,80010428,LM6,Residential Care,P03,Wellbeing,CEDAR CARE HOMES LTD,03/08/2011,452.00
Bath & North East Somerset Council,80010428,LM6,Residential Care,P03,Wellbeing,SALVATION ARMY,03/08/2011,452.00
Bath & North East Somerset Council,80010428,LM6,Residential Care,P03,Wellbeing,SALVATION ARMY,03/08/2011,452.00
Bath & North East Somerset Council,80010428,7S1,Residential Care,P03,Wellbeing,ARTI SERVICES LTD T/A THE MANOR FARM HOUSE,03/08/2011,452.00
Bath & North East Somerset Council,80010431,YF2,Residential Care,P03,Wellbeing,ARTI SERVICES LTD T/A THE MANOR FARM HOUSE,03/08/2011,452.00
Bath & North East Somerset Council,80010431,YF2,Residential Care,P03,Wellbeing,ARTI SERVICES LTD T/A THE MANOR FARM HOUSE,03/08/2011,452.00
Bath & North East Somerset Council,80010431,LM3,Residential Care,P03,Wellbeing,ARTI SERVICES LTD T/A THE MANOR FARM HOUSE,03/08/2011,452.00
Bath & North East Somerset Council,80010431,LM3,Residential Care,P03,Wellbeing,ARTI SERVICES LTD T/A THE MANOR FARM HOUSE,03/08/2011,452.00
Bath & North East Somerset Council,80010431,LM3,Residential Care,P03,Wellbeing,ARTI SERVICES LTD T/A THE MANOR FARM HOUSE,03/08/2011,452.00
Bath & North East Somerset Council,80010431,YF2,Residential Care,P03,Wellbeing,ARTI SERVICES LTD T/A THE MANOR FARM HOUSE,03/08/2011,452.00
Bath & North East Somerset Council,80010431,LM3,Residential Care,P03,Wellbeing,ARTI SERVICES LTD T/A THE MANOR FARM HOUSE,03/08/2011,452.00
Bath & North East Somerset Council,80010431,YF2,Residential Care,P03,Wellbeing,QUALITY CARE HOMES LTD,03/08/2011,452.00
Bath & North East Somerset Council,80010431,7S1,Residential Care,P03,Wellbeing,QUALITY CARE HOMES LTD,03/08/2011,452.00
Bath & North East Somerset Council,80010432,YF2,Residential Care,P03,Wellbeing,QUALITY CARE HOMES LTD,03/08/2011,452.00
Bath & North East Somerset Council,80010432,LM3,Residential Care,P03,Wellbeing,QUALITY CARE HOMES LTD,03/08/2011,452.00
Bath & North East Somerset Council,80010432,YF2,Residential Care,P03,Wellbeing,QUALITY CARE HOMES LTD,03/08/2011,452.00
Bath & North East Somerset Council,80010432,YF2,Residential Care,P03,Wellbeing,QUALITY CARE HOMES LTD,03/08/2011,452.00
Bath & North East Somerset Council,80010432,LM3,Residential Care,P03,Wellbeing,GROVE CARE LTD T/A ORIEL LODGE,03/08/2011,452.00
Bath & North East Somerset Council,80010432,YF2,Residential Care,P03,Wellbeing,GROVE CARE LTD T/A ORIEL LODGE,03/08/2011,452.00
Bath & North East Somerset Council,80010432,LM3,Residential Care,P03,Wellbeing,GROVE CARE LTD T/A ORIEL LODGE,03/08/2011,452.00
Bath & North East Somerset Council,80010432,LM3,Residential Care,P03,Wellbeing,GROVE CARE LTD T/A ORIEL LODGE,03/08/2011,452.00
Bath & North East Somerset Council,80010432,7S1,Residential Care,P03,Wellbeing,NORTHCOTE DEVELOPMENTS LTD T/A ORCHARD HOUSE,03/08/2011,452.00
Bath & North East Somerset Council,80010433,YF2,Residential Care,P03,Wellbeing,NORTHCOTE DEVELOPMENTS LTD T/A ORCHARD HOUSE,03/08/2011,452.00
Bath & North East Somerset Council,80010433,LM3,Residential Care,P03,Wellbeing,FSHC NEWCO 2 LTD: REDACTED,03/08/2011,452.00
Bath & North East Somerset Council,80010433,LM3,Residential Care,P03,Wellbeing,FSHC NEWCO 2 LTD: REDACTED,03/08/2011,452.00
Bath & North East Somerset Council,80010433,YF2,Residential Care,P03,Wellbeing,FSHC NEWCO 2 LTD: REDACTED,03/08/2011,452.00
Bath & North East Somerset Council,80010433,YF2,Residential Care,P03,Wellbeing,FSHC NEWCO 2 LTD: REDACTED,03/08/2011,452.00
Bath & North East Somerset Council,80010433,LM3,Residential Care,P03,Wellbeing,FSHC NEWCO 2 LTD: REDACTED,03/08/2011,452.00
Bath & North East Somerset Council,80010433,LM3,Residential Care,P03,Wellbeing,FSHC NEWCO 2 LTD: REDACTED,03/08/2011,452.00
Bath & North East Somerset Council,80010433,YF2,Residential Care,P03,Wellbeing,YOUNG@HEART (THE WILLOWS) CARE HOME LTD,03/08/2011,452.00
Bath & North East Somerset Council,80010433,7S1,Residential Care,P03,Wellbeing,YOUNG@HEART (THE WILLOWS) CARE HOME LTD,03/08/2011,452.00
Bath & North East Somerset Council,80010434,YF2,Residential Care,P03,Wellbeing,YOUNG@HEART (THE WILLOWS) CARE HOME LTD,03/08/2011,452.00
Bath & North East Somerset Council,80010434,LM3,Residential Care,P03,Wellbeing,YOUNG@HEART (THE WILLOWS) CARE HOME LTD,03/08/2011,452.00
Bath & North East Somerset Council,80010434,LM3,Residential Care,P03,Wellbeing,STONELEIGH RESIDENTIAL CARE HOME LTD,03/08/2011,452.00
Bath & North East Somerset Council,80010434,YF2,Residential Care,P03,Wellbeing,STONELEIGH RESIDENTIAL CARE HOME LTD,03/08/2011,452.00
Bath & North East Somerset Council,80010434,YF2,Residential Care,P03,Wellbeing,THE LIMES RESIDENTIAL LTD,03/08/2011,452.00
Bath & North East Somerset Council,80010434,YF2,Residential Care,P03,Wellbeing,THE LIMES RESIDENTIAL LTD,03/08/2011,452.00
Bath & North East Somerset Council,80010434,LM3,Residential Care,P03,Wellbeing,SPRINGFIELD BATH LTD,03/08/2011,452.00
Bath & North East Somerset Council,80010434,YF2,Residential Care,P03,Wellbeing,SPRINGFIELD BATH LTD,03/08/2011,452.00
Bath & North East Somerset Council,80010434,YF2,Residential Care,P03,Wellbeing,SPRINGFIELD BATH LTD,03/08/2011,452.00
Bath & North East Somerset Council,80010434,YF2,Residential Care,P03,Wellbeing,SPRINGFIELD BATH LTD,03/08/2011,452.00
Bath & North East Somerset Council,80010434,YF2,Residential Care,P03,Wellbeing,SPRINGFIELD BATH LTD,03/08/2011,452.00
Bath & North East Somerset Council,80010434,YF2,Residential Care,P03,Wellbeing,SPRINGFIELD BATH LTD,03/08/2011,452.00
Bath & North East Somerset Council,80010434,LM3,Residential Care,P03,Wellbeing,CEDARS CARE (WINSCOMBE HALL) LTD,03/08/2011,452.00
Bath & North East Somerset Council,80010434,YF2,Residential Care,P03,Wellbeing,CEDARS CARE (WINSCOMBE HALL) LTD,03/08/2011,452.00
Bath & North East Somerset Council,80010434,LM3,Residential Care,P03,Wellbeing,NEWBRIDGE TOWERS RESIDENTIAL CARE HOME,03/08/2011,452.00
Bath & North East Somerset Council,80010434,LM3,Residential Care,P03,Wellbeing,NEWBRIDGE TOWERS RESIDENTIAL CARE HOME,03/08/2011,452.00
Bath & North East Somerset Council,80010434,LM3,Residential Care,P03,Wellbeing,NEWBRIDGE TOWERS RESIDENTIAL CARE HOME,03/08/2011,452.00
Bath & North East Somerset Council,80010434,YF2,Residential Care,P03,Wellbeing,NEWBRIDGE TOWERS RESIDENTIAL CARE HOME,03/08/2011,452.00
Bath & North East Somerset Council,80010434,YF2,Residential Care,P03,Wellbeing,PARK STREET HOME,03/08/2011,452.00
Bath & North East Somerset Council,80010434,LM3,Residential Care,P03,Wellbeing,PARK STREET HOME,03/08/2011,452.00
Bath & North East Somerset Council,80010434,LM3,Residential Care,P03,Wellbeing,WHITEHAVEN RESIDENTIAL HOME,03/08/2011,452.00
Bath & North East Somerset Council,80010434,LM3,Residential Care,P03,Wellbeing,WHITEHAVEN RESIDENTIAL HOME,03/08/2011,452.00
Bath & North East Somerset Council,80010434,LM3,Residential Care,P03,Wellbeing,WHITEHAVEN RESIDENTIAL HOME,03/08/2011,452.00
Bath & North East Somerset Council,80010434,LM3,Residential Care,P03,Wellbeing,WHITEHAVEN RESIDENTIAL HOME,03/08/2011,452.00
Bath & North East Somerset Council,80010434,LM3,Residential Care,P03,Wellbeing,WHITEHAVEN RESIDENTIAL HOME,03/08/2011,452.00
Bath & North East Somerset Council,80010434,LM3,Residential Care,P03,Wellbeing,WHITEHAVEN RESIDENTIAL HOME,03/08/2011,452.00
Bath & North East Somerset Council,80010434,LM3,Residential Care,P03,Wellbeing,WHITEHAVEN RESIDENTIAL HOME,03/08/2011,452.00
Bath & North East Somerset Council,80010434,YF2,Residential Care,P03,Wellbeing,WHITEHAVEN RESIDENTIAL HOME,03/08/2011,452.00
Bath & North East Somerset Council,80010434,YF2,Residential Care,P03,Wellbeing,WHITEHAVEN RESIDENTIAL HOME,03/08/2011,452.00
Bath & North East Somerset Council,80010434,YF2,Residential Care,P03,Wellbeing,WHITEHAVEN RESIDENTIAL HOME,03/08/2011,452.00
Bath & North East Somerset Council,80010434,YF2,Residential Care,P03,Wellbeing,WHITEHAVEN RESIDENTIAL HOME,03/08/2011,452.00
Bath & North East Somerset Council,80010434,YF2,Residential Care,P03,Wellbeing,WHITEHAVEN RESIDENTIAL HOME,03/08/2011,452.00
Bath & North East Somerset Council,80010434,YF2,Residential Care,P03,Wellbeing,WHITEHAVEN RESIDENTIAL HOME,03/08/2011,452.00
Bath & North East Somerset Council,80010434,LM3,Residential Care,P03,Wellbeing,WHITEHAVEN RESIDENTIAL HOME,03/08/2011,452.00
Bath & North East Somerset Council,80010434,YF2,Residential Care,P03,Wellbeing,WHITEHAVEN RESIDENTIAL HOME,03/08/2011,452.00
Bath & North East Somerset Council,80010434,YF2,Residential Care,P03,Wellbeing,WHITEHAVEN RESIDENTIAL HOME,03/08/2011,452.00
Bath & North East Somerset Council,80010434,LM3,Residential Care,P03,Wellbeing,REDACTED,03/08/2011,452.00
Bath & North East Somerset Council,80010434,YF2,Residential Care,P03,Wellbeing,REDACTED,03/08/2011,452.00
Bath & North East Somerset Council,80010434,LM3,Residential Care,P03,Wellbeing,MIMOSA HEALTHCARE,03/08/2011,452.00
Bath & North East Somerset Council,80010434,YF2,Residential Care,P03,Wellbeing,MIMOSA HEALTHCARE,03/08/2011,452.00
Bath & North East Somerset Council,80010434,LM3,Residential Care,P03,Wellbeing,MIMOSA HEALTHCARE,03/08/2011,452.00
Bath & North East Somerset Council,80010434,YF2,Residential Care,P03,Wellbeing,MIMOSA HEALTHCARE,03/08/2011,452.00
Bath & North East Somerset Council,80010434,YF2,Residential Care,P03,Wellbeing,BCVS HOMES,03/08/2011,452.00
Bath & North East Somerset Council,80010434,LM3,Residential Care,P03,Wellbeing,BCVS HOMES,03/08/2011,452.00
Bath & North East Somerset Council,80010434,7S1,Foster Carer Allowances,P02,"Early Years, Children & Youth",REDACTED,03/08/2011,453.48
Bath & North East Somerset Council,80010435,LL3,Foster Carer Allowances,P02,"Early Years, Children & Youth",REDACTED,03/08/2011,453.48
Bath & North East Somerset Council,80010435,LL3,Residential Care,P03,Wellbeing,WHITEHAVEN RESIDENTIAL HOME,03/08/2011,456.00
Bath & North East Somerset Council,80010435,LL3,Residential Care,P03,Wellbeing,WHITEHAVEN RESIDENTIAL HOME,03/08/2011,456.00
Bath & North East Somerset Council,80010435,LL3,Residential Care,P03,Wellbeing,ORDERS OF ST JOHN TRUST WILTSHIRE HOMES,03/08/2011,460.00
Bath & North East Somerset Council,80010435,LL3,Residential Care,P03,Wellbeing,ORDERS OF ST JOHN TRUST WILTSHIRE HOMES,03/08/2011,460.00
Bath & North East Somerset Council,80010435,LL3,Residential Care,P03,Wellbeing,AMBER CARE LTD T/A BRYN EDWIN HALL,03/08/2011,469.73
Bath & North East Somerset Council,80010435,LL3,Residential Care,P03,Wellbeing,AMBER CARE LTD T/A BRYN EDWIN HALL,03/08/2011,469.73
Bath & North East Somerset Council,80010435,LL3,Residential Care,P03,Wellbeing,SALVATION ARMY,03/08/2011,470.00
Bath & North East Somerset Council,80010435,LL3,Residential Care,P03,Wellbeing,SALVATION ARMY,03/08/2011,470.00
Bath & North East Somerset Council,80010435,LL3,Residential Care,P03,Wellbeing,WHITEHAVEN RESIDENTIAL HOME,03/08/2011,470.00
Bath & North East Somerset Council,80010435,LL3,Residential Care,P03,Wellbeing,WHITEHAVEN RESIDENTIAL HOME,03/08/2011,470.00
Bath & North East Somerset Council,80010435,LL3,Residential Care,P03,Wellbeing,BCVS HOMES,03/08/2011,473.00
Bath & North East Somerset Council,80010435,LL3,Residential Care,P03,Wellbeing,BCVS HOMES,03/08/2011,473.00
Bath & North East Somerset Council,80010435,LL3,Residential Care,P03,Wellbeing,GROVE CARE LTD,03/08/2011,475.00
Bath & North East Somerset Council,80010435,7S1,Residential Care,P03,Wellbeing,GROVE CARE LTD,03/08/2011,475.00
Bath & North East Somerset Council,80010436,YF2,Residential Care,P03,Wellbeing,EXCELCARE SERVICE LTD,03/08/2011,478.00
Bath & North East Somerset Council,80010436,LM3,Residential Care,P03,Wellbeing,EXCELCARE SERVICE LTD,03/08/2011,478.00
Bath & North East Somerset Council,80010436,YF2,Residential Care,P03,Wellbeing,BEECHCROFT,03/08/2011,480.00
Bath & North East Somerset Council,80010436,YF2,Residential Care,P03,Wellbeing,BEECHCROFT,03/08/2011,480.00
Bath & North East Somerset Council,80010436,YF2,Nursing Care,P03,Wellbeing,LARKHALL SPRINGS NURSING HOME,03/08/2011,487.71
Bath & North East Somerset Council,80010436,LM3,Supported Living,P03,Wellbeing,DIMENSIONS (UK) LTD,03/08/2011,492.09
Bath & North East Somerset Council,80010436,YF2,Supported Living,P03,Wellbeing,DIMENSIONS (UK) LTD,03/08/2011,492.09
Bath & North East Somerset Council,80010436,LM3,Residential Care,P03,Wellbeing,BCVS HOMES,03/08/2011,494.00
Bath & North East Somerset Council,80010436,LM3,Residential Care,P03,Wellbeing,BCVS HOMES,03/08/2011,494.00
Bath & North East Somerset Council,80010436,LM3,Foster Carer Allowances,P02,"Early Years, Children & Youth",REDACTED,03/08/2011,494.94
Bath & North East Somerset Council,80010436,YF2,Residential Care,P03,Wellbeing,DIMENSIONS (UK) LTD,03/08/2011,497.91
Bath & North East Somerset Council,80010436,YF2,Residential Care,P03,Wellbeing,DIMENSIONS (UK) LTD,03/08/2011,497.91
Bath & North East Somerset Council,80010436,YF2,Nursing Care,P03,Wellbeing,METHODIST HOMES FOR THE AGED,03/08/2011,498.00
Bath & North East Somerset Council,80010436,LM3,Nursing Care,P03,Wellbeing,METHODIST HOMES FOR THE AGED,03/08/2011,498.00
Bath & North East Somerset Council,80010436,LM3,Residential Care,P03,Wellbeing,SPRINGFIELD BATH LTD,03/08/2011,500.00
Bath & North East Somerset Council,80010436,LM3,Residential Care,P03,Wellbeing,SPRINGFIELD BATH LTD,03/08/2011,500.00
Bath & North East Somerset Council,80010436,7S1,Residential Care,P03,Wellbeing,BARCHESTER HEALTHCARE HOMES LTD,03/08/2011,500.00
Bath & North East Somerset Council,80010437,YF2,Residential Care,P03,Wellbeing,BARCHESTER HEALTHCARE HOMES LTD,03/08/2011,500.00
Bath & North East Somerset Council,80010437,YF2,Supported Living,P03,Wellbeing,OPTIONS FOR LIVING LTD,03/08/2011,502.04
Bath & North East Somerset Council,80010437,LM3,Supported Living,P03,Wellbeing,OPTIONS FOR LIVING LTD,03/08/2011,502.04
Bath & North East Somerset Council,80010437,YF2,Residential Care,P03,Wellbeing,ANCHOR TRUST,03/08/2011,510.35
Bath & North East Somerset Council,80010437,LM3,Residential Care,P03,Wellbeing,ANCHOR TRUST,03/08/2011,510.35
Bath & North East Somerset Council,80010437,YF2,Residential Care,P03,Wellbeing,LILLIPUT HOUSE REST HOME,03/08/2011,513.00
Bath & North East Somerset Council,80010437,LM3,Residential Care,P03,Wellbeing,LILLIPUT HOUSE REST HOME,03/08/2011,513.00
Bath & North East Somerset Council,80010437,LM3,Nursing Care,P03,Wellbeing,EUROPEAN CARE SW LTD - REDACTED AC,03/08/2011,519.92
Bath & North East Somerset Council,80010437,YF2,Nursing Care,P03,Wellbeing,EUROPEAN CARE SW LTD - REDACTED AC,03/08/2011,519.92
Bath & North East Somerset Council,80010437,LM3,Nursing Care,P03,Wellbeing,EUROPEAN CARE SW LTD - REDACTED AC,03/08/2011,519.92
Bath & North East Somerset Council,80010437,LM3,Nursing Care,P03,Wellbeing,EUROPEAN CARE SW LTD - REDACTED AC,03/08/2011,519.92
Bath & North East Somerset Council,80010437,YF2,Nursing Care,P03,Wellbeing,EUROPEAN CARE SW LTD - REDACTED AC,03/08/2011,519.92
Bath & North East Somerset Council,80010437,7S1,Nursing Care,P03,Wellbeing,EUROPEAN CARE SW LTD - REDACTED AC,03/08/2011,519.92
Bath & North East Somerset Council,80010438,YF2,Nursing Care,P03,Wellbeing,EUROPEAN CARE SW LTD - REDACTED AC,03/08/2011,519.92
Bath & North East Somerset Council,80010438,LM3,Nursing Care,P03,Wellbeing,EUROPEAN CARE SW LTD - REDACTED AC,03/08/2011,519.92
Bath & North East Somerset Council,80010438,YF2,Nursing Care,P03,Wellbeing,EUROPEAN CARE SW LTD - REDACTED AC,03/08/2011,519.92
Bath & North East Somerset Council,80010438,LM3,Nursing Care,P03,Wellbeing,EUROPEAN CARE SW LTD - REDACTED AC,03/08/2011,519.92
Bath & North East Somerset Council,80010438,7S1,Nursing Care,P03,Wellbeing,EUROPEAN CARE SW LTD - REDACTED AC,03/08/2011,519.92
Bath & North East Somerset Council,80010439,YF2,Nursing Care,P03,Wellbeing,EUROPEAN CARE SW LTD - REDACTED AC,03/08/2011,519.92
Bath & North East Somerset Council,80010439,LM6,Nursing Care,P03,Wellbeing,EUROPEAN CARE SW LTD - REDACTED AC,03/08/2011,519.92
Bath & North East Somerset Council,80010439,YF2,Nursing Care,P03,Wellbeing,EUROPEAN CARE SW LTD - REDACTED AC,03/08/2011,519.92
Bath & North East Somerset Council,80010439,LM6,Nursing Care,P03,Wellbeing,EUROPEAN CARE SW LTD - REDACTED AC,03/08/2011,519.92
Bath & North East Somerset Council,80010439,7S1,Nursing Care,P03,Wellbeing,EUROPEAN CARE SW LTD - REDACTED AC,03/08/2011,519.92
Bath & North East Somerset Council,80010440,YF2,Nursing Care,P03,Wellbeing,EUROPEAN CARE SW LTD - REDACTED AC,03/08/2011,519.92
Bath & North East Somerset Council,80010440,YF2,Nursing Care,P03,Wellbeing,EUROPEAN CARE SW LTD - REDACTED AC,03/08/2011,519.92
Bath & North East Somerset Council,80010440,YF2,Nursing Care,P03,Wellbeing,EUROPEAN CARE SW LTD - REDACTED AC,03/08/2011,519.92
Bath & North East Somerset Council,80010440,YF2,Nursing Care,P03,Wellbeing,EUROPEAN CARE SW LTD - REDACTED AC,03/08/2011,519.92
Bath & North East Somerset Council,80010440,YF2,Nursing Care,P03,Wellbeing,EUROPEAN CARE (UK) LTD - REDACTED A/C,03/08/2011,519.92
Bath & North East Somerset Council,80010440,LM6,Nursing Care,P03,Wellbeing,EUROPEAN CARE (UK) LTD - REDACTED A/C,03/08/2011,519.92
Bath & North East Somerset Council,80010440,YF2,Nursing Care,P03,Wellbeing,EUROPEAN CARE (UK) LTD - REDACTED A/C,03/08/2011,519.92
Bath & North East Somerset Council,80010440,LM6,Nursing Care,P03,Wellbeing,EUROPEAN CARE (UK) LTD - REDACTED A/C,03/08/2011,519.92
Bath & North East Somerset Council,80010440,LM6,Nursing Care,P03,Wellbeing,EUROPEAN CARE (UK) LTD - REDACTED A/C,03/08/2011,519.92
Bath & North East Somerset Council,80010440,YF2,Nursing Care,P03,Wellbeing,EUROPEAN CARE (UK) LTD - REDACTED A/C,03/08/2011,519.92
Bath & North East Somerset Council,80010440,LM6,Nursing Care,P03,Wellbeing,EUROPEAN CARE (UK) LTD - REDACTED A/C,03/08/2011,519.92
Bath & North East Somerset Council,80010440,YF2,Nursing Care,P03,Wellbeing,EUROPEAN CARE (UK) LTD - REDACTED A/C,03/08/2011,519.92
Bath & North East Somerset Council,80010440,YF2,Nursing Care,P03,Wellbeing,EUROPEAN CARE (UK) LTD - REDACTED A/C,03/08/2011,519.92
Bath & North East Somerset Council,80010440,YF2,Nursing Care,P03,Wellbeing,EUROPEAN CARE (UK) LTD - REDACTED A/C,03/08/2011,519.92
Bath & North East Somerset Council,80010440,YF2,Nursing Care,P03,Wellbeing,EUROPEAN CARE (UK) LTD - REDACTED A/C,03/08/2011,519.92
Bath & North East Somerset Council,80010440,YF2,Nursing Care,P03,Wellbeing,EUROPEAN CARE (UK) LTD - REDACTED A/C,03/08/2011,519.92
Bath & North East Somerset Council,80010440,LM6,Nursing Care,P03,Wellbeing,EUROPEAN CARE (UK) LTD - REDACTED A/C,03/08/2011,519.92
Bath & North East Somerset Council,80010440,YF2,Nursing Care,P03,Wellbeing,EUROPEAN CARE (UK) LTD - REDACTED A/C,03/08/2011,519.92
Bath & North East Somerset Council,80010440,LM6,Nursing Care,P03,Wellbeing,EUROPEAN CARE (UK) LTD - REDACTED A/C,03/08/2011,519.92
Bath & North East Somerset Council,80010440,LM6,Nursing Care,P03,Wellbeing,EUROPEAN CARE (UK) LTD - REDACTED A/C,03/08/2011,519.92
Bath & North East Somerset Council,80010440,YF2,Nursing Care,P03,Wellbeing,EUROPEAN CARE (UK) LTD - REDACTED A/C,03/08/2011,519.92
Bath & North East Somerset Council,80010440,YF2,Nursing Care,P03,Wellbeing,EUROPEAN CARE (UK) LTD - REDACTED A/C,03/08/2011,519.92
Bath & North East Somerset Council,80010440,YF2,Nursing Care,P03,Wellbeing,EUROPEAN CARE (UK) LTD - REDACTED A/C,03/08/2011,519.92
Bath & North East Somerset Council,80010440,YF2,Nursing Care,P03,Wellbeing,EUROPEAN CARE (UK) LTD - REDACTED A/C,03/08/2011,519.92
Bath & North East Somerset Council,80010440,YF2,Nursing Care,P03,Wellbeing,EUROPEAN CARE (UK) LTD - REDACTED A/C,03/08/2011,519.92
Bath & North East Somerset Council,80010440,LM6,Nursing Care,P03,Wellbeing,EUROPEAN CARE (UK) LTD - REDACTED A/C,03/08/2011,519.92
Bath & North East Somerset Council,80010440,YF2,Nursing Care,P03,Wellbeing,EUROPEAN CARE (UK) LTD - REDACTED A/C,03/08/2011,519.92
Bath & North East Somerset Council,80010440,YF2,Nursing Care,P03,Wellbeing,EUROPEAN CARE (UK) LTD - REDACTED A/C,03/08/2011,519.92
Bath & North East Somerset Council,80010440,LM6,Nursing Care,P03,Wellbeing,EUROPEAN CARE (UK) LTD - REDACTED A/C,03/08/2011,519.92
Bath & North East Somerset Council,80010440,LM6,Nursing Care,P03,Wellbeing,EUROPEAN CARE (UK) LTD - REDACTED A/C,03/08/2011,519.92
Bath & North East Somerset Council,80010440,YF2,Nursing Care,P03,Wellbeing,EUROPEAN CARE (UK) LTD - REDACTED A/C,03/08/2011,519.92
Bath & North East Somerset Council,80010440,LM6,Nursing Care,P03,Wellbeing,EUROPEAN CARE (UK) LTD - REDACTED A/C,03/08/2011,519.92
Bath & North East Somerset Council,80010440,LM6,Nursing Care,P03,Wellbeing,EUROPEAN CARE (UK) LTD - REDACTED A/C,03/08/2011,519.92
Bath & North East Somerset Council,80010440,YF2,Nursing Care,P03,Wellbeing,EUROPEAN CARE (UK) LTD - REDACTED A/C,03/08/2011,519.92
Bath & North East Somerset Council,80010440,YF2,Nursing Care,P03,Wellbeing,EUROPEAN CARE (UK) LTD - REDACTED A/C,03/08/2011,519.92
Bath & North East Somerset Council,80010440,YF2,Nursing Care,P03,Wellbeing,EUROPEAN CARE (UK) LTD - REDACTED A/C,03/08/2011,519.92
Bath & North East Somerset Council,80010440,LM6,Nursing Care,P03,Wellbeing,EUROPEAN CARE (UK) LTD - REDACTED A/C,03/08/2011,519.92
Bath & North East Somerset Council,80010440,LM6,Nursing Care,P03,Wellbeing,EUROPEAN CARE (UK) LTD - REDACTED A/C,03/08/2011,519.92
Bath & North East Somerset Council,80010440,LM6,Provisions,P03,Wellbeing,L & F JONES HOLDINGS LTD,03/08/2011,86.14
Bath & North East Somerset Council,80010440,LM6,Nursing Care,P03,Wellbeing,EUROPEAN CARE (UK) LTD - REDACTED A/C,03/08/2011,519.92
Bath & North East Somerset Council,80010440,YF2,Nursing Care,P03,Wellbeing,EUROPEAN CARE (UK) LTD - REDACTED A/C,03/08/2011,519.92
Bath & North East Somerset Council,80010440,YF2,Nursing Care,P03,Wellbeing,EUROPEAN CARE (UK) LTD - REDACTED A/C,03/08/2011,519.92
Bath & North East Somerset Council,80010440,LM6,Nursing Care,P03,Wellbeing,EUROPEAN CARE (UK) LTD - REDACTED A/C,03/08/2011,519.92
Bath & North East Somerset Council,80010440,LM6,Nursing Care,P03,Wellbeing,EUROPEAN CARE (UK) LTD - REDACTED A/C,03/08/2011,519.92
Bath & North East Somerset Council,80010440,YF2,Nursing Care,P03,Wellbeing,EUROPEAN CARE (UK) LTD - REDACTED A/C,03/08/2011,519.92
Bath & North East Somerset Council,80010440,YF2,Responsive Maintenance PCB,P07,Community Resources,TPM (SOUTH WEST) LTD,03/08/2011,87.65
Bath & North East Somerset Council,80010440,YF2,Nursing Care,P03,Wellbeing,EUROPEAN CARE (UK) LTD - REDACTED A/C,03/08/2011,519.92
Bath & North East Somerset Council,80010440,YF2,Nursing Care,P03,Wellbeing,EUROPEAN CARE (UK) LTD - REDACTED A/C,03/08/2011,519.92
Bath & North East Somerset Council,80010440,YF2,Nursing Care,P03,Wellbeing,EUROPEAN CARE (UK) LTD - REDACTED A/C,03/08/2011,519.92
Bath & North East Somerset Council,80010440,YF2,Nursing Care,P03,Wellbeing,EUROPEAN CARE (UK) LTD - REDACTED A/C,03/08/2011,519.92
Bath & North East Somerset Council,80010440,YF2,Legal Fees,C06,Service Delivery,MR V CHAPMAN,03/08/2011,88.00
Bath & North East Somerset Council,80010440,7S1,Nursing Care,P03,Wellbeing,EUROPEAN CARE (UK) LTD - REDACTED A/C,03/08/2011,519.92
Bath & North East Somerset Council,80010441,LM3,Nursing Care,P03,Wellbeing,EUROPEAN CARE (UK) LTD - REDACTED A/C,03/08/2011,519.92
Bath & North East Somerset Council,80010441,YF2,Nursing Care,P03,Wellbeing,EUROPEAN CARE (UK) LTD - REDACTED A/C,03/08/2011,519.92
Bath & North East Somerset Council,80010441,LM3,Nursing Care,P03,Wellbeing,EUROPEAN CARE (UK) LTD - REDACTED A/C,03/08/2011,519.92
Bath & North East Somerset Council,80010441,YF2,Nursing Care,P03,Wellbeing,EUROPEAN CARE (UK) LTD - REDACTED A/C,03/08/2011,519.92
Bath & North East Somerset Council,80010441,7S1,Nursing Care,P03,Wellbeing,EUROPEAN CARE (UK) LTD - REDACTED A/C,03/08/2011,519.92
Bath & North East Somerset Council,80010443,LM3,Nursing Care,P03,Wellbeing,EUROPEAN CARE (UK) LTD - REDACTED A/C,03/08/2011,519.92
Bath & North East Somerset Council,80010443,LM3,Nursing Care,P03,Wellbeing,EUROPEAN CARE (UK) LTD - REDACTED A/C,03/08/2011,519.92
Bath & North East Somerset Council,80010443,7S1,Nursing Care,P03,Wellbeing,EUROPEAN CARE (UK) LTD - REDACTED A/C,03/08/2011,519.92
Bath & North East Somerset Council,80010444,LM3,Nursing Care,P03,Wellbeing,EUROPEAN CARE (UK) LTD - REDACTED A/C,03/08/2011,519.92
Bath & North East Somerset Council,80010444,LM3,Nursing Care,P03,Wellbeing,EUROPEAN CARE (UK) LTD - REDACTED A/C,03/08/2011,519.92
Bath & North East Somerset Council,80010444,LM3,Nursing Care,P03,Wellbeing,EUROPEAN CARE (UK) LTD - REDACTED A/C,03/08/2011,519.92
Bath & North East Somerset Council,80010444,LM3,Residential Care,P03,Wellbeing,GROVE CARE LTD T/A ORIEL LODGE,03/08/2011,525.00
Bath & North East Somerset Council,80010444,LM3,Residential Care,P03,Wellbeing,GROVE CARE LTD T/A ORIEL LODGE,03/08/2011,525.00
Bath & North East Somerset Council,80010444,YF2,Residential Care,P03,Wellbeing,AVERY HOMES BRISTOL LIMITED,03/08/2011,525.00
Bath & North East Somerset Council,80010444,LM3,Residential Care,P03,Wellbeing,AVERY HOMES BRISTOL LIMITED,03/08/2011,525.00
Bath & North East Somerset Council,80010444,YF2,Residential Care,P03,Wellbeing,NEWBRIDGE TOWERS RESIDENTIAL CARE HOME,03/08/2011,535.00
Bath & North East Somerset Council,80010444,YF2,Residential Care,P03,Wellbeing,NEWBRIDGE TOWERS RESIDENTIAL CARE HOME,03/08/2011,535.00
Bath & North East Somerset Council,80010444,7S1,Nursing Care,P03,Wellbeing,CARE FIRST CARE HOMES LTD,03/08/2011,536.00
Bath & North East Somerset Council,80010445,YF2,Nursing Care,P03,Wellbeing,CARE FIRST CARE HOMES LTD,03/08/2011,536.00
Bath & North East Somerset Council,80010445,YF2,Nursing Care,P03,Wellbeing,CARE FIRST CARE HOMES LTD,03/08/2011,536.00
Bath & North East Somerset Council,80010445,LM3,Nursing Care,P03,Wellbeing,CARE FIRST CARE HOMES LTD,03/08/2011,536.00
Bath & North East Somerset Council,80010445,LM3,Nursing Care,P03,Wellbeing,CARE FIRST CARE HOMES LTD,03/08/2011,536.00
Bath & North East Somerset Council,80010445,YF2,Nursing Care,P03,Wellbeing,CARE FIRST CARE HOMES LTD,03/08/2011,536.00
Bath & North East Somerset Council,80010445,LM3,Nursing Care,P03,Wellbeing,CARE FIRST CARE HOMES LTD,03/08/2011,536.00
Bath & North East Somerset Council,80010445,YF2,Nursing Care,P03,Wellbeing,CARE FIRST CARE HOMES LTD,03/08/2011,536.00
Bath & North East Somerset Council,80010445,LM3,Nursing Care,P03,Wellbeing,SOUTHERN CROSS (REDACTED),03/08/2011,536.00
Bath & North East Somerset Council,80010445,7S1,Legal Fees,C06,Service Delivery,MR V CHAPMAN,03/08/2011,91.60
Bath & North East Somerset Council,80010446,LM3,Nursing Care,P03,Wellbeing,SOUTHERN CROSS (REDACTED),03/08/2011,536.00
Bath & North East Somerset Council,80010446,LM3,Nursing Care,P03,Wellbeing,SOUTHERN CROSS (REDACTED),03/08/2011,536.00
Bath & North East Somerset Council,80010446,YF2,Nursing Care,P03,Wellbeing,SOUTHERN CROSS (REDACTED),03/08/2011,536.00
Bath & North East Somerset Council,80010446,LM3,Nursing Care,P03,Wellbeing,SOUTHERN CROSS (REDACTED),03/08/2011,536.00
Bath & North East Somerset Council,80010446,YF2,Nursing Care,P03,Wellbeing,SOUTHERN CROSS (REDACTED),03/08/2011,536.00
Bath & North East Somerset Council,80010446,LM3,Nursing Care,P03,Wellbeing,SOUTHERN CROSS (REDACTED),03/08/2011,536.00
Bath & North East Somerset Council,80010446,LM3,Nursing Care,P03,Wellbeing,SOUTHERN CROSS (REDACTED),03/08/2011,536.00
Bath & North East Somerset Council,80010446,LM3,Nursing Care,P03,Wellbeing,SOUTHERN CROSS (REDACTED),03/08/2011,536.00
Bath & North East Somerset Council,80010446,YF2,Nursing Care,P03,Wellbeing,SOUTHERN CROSS (REDACTED),03/08/2011,536.00
Bath & North East Somerset Council,80010446,YF2,Nursing Care,P03,Wellbeing,SOUTHERN CROSS (REDACTED),03/08/2011,536.00
Bath & North East Somerset Council,80010446,YF2,Nursing Care,P03,Wellbeing,SOUTHERN CROSS (REDACTED),03/08/2011,536.00
Bath & North East Somerset Council,80010446,LM3,Nursing Care,P03,Wellbeing,SOUTHERN CROSS (REDACTED),03/08/2011,536.00
Bath & North East Somerset Council,80010446,LM3,Nursing Care,P03,Wellbeing,SOUTHERN CROSS (REDACTED),03/08/2011,536.00
Bath & North East Somerset Council,80010446,7S1,Nursing Care,P03,Wellbeing,SOUTHERN CROSS (REDACTED),03/08/2011,536.00
Bath & North East Somerset Council,80010447,LM3,Nursing Care,P03,Wellbeing,EUROPEAN CARE SW LTD - REDACTED AC,03/08/2011,536.00
Bath & North East Somerset Council,80010447,LM3,Nursing Care,P03,Wellbeing,EUROPEAN CARE SW LTD - REDACTED AC,03/08/2011,536.00
Bath & North East Somerset Council,80010447,LM3,Nursing Care,P03,Wellbeing,EUROPEAN CARE SW LTD - REDACTED AC,03/08/2011,536.00
Bath & North East Somerset Council,80010447,YF2,Nursing Care,P03,Wellbeing,EUROPEAN CARE SW LTD - REDACTED AC,03/08/2011,536.00
Bath & North East Somerset Council,80010447,YF2,Nursing Care,P03,Wellbeing,EUROPEAN CARE SW LTD - REDACTED AC,03/08/2011,536.00
Bath & North East Somerset Council,80010447,YF2,Nursing Care,P03,Wellbeing,EUROPEAN CARE SW LTD - REDACTED AC,03/08/2011,536.00
Bath & North East Somerset Council,80010447,LM3,Nursing Care,P03,Wellbeing,EUROPEAN CARE SW LTD - REDACTED AC,03/08/2011,536.00
Bath & North East Somerset Council,80010447,YF2,Nursing Care,P03,Wellbeing,EUROPEAN CARE SW LTD - REDACTED AC,03/08/2011,536.00
Bath & North East Somerset Council,80010447,LM3,Nursing Care,P03,Wellbeing,EUROPEAN CARE SW LTD - REDACTED AC,03/08/2011,536.00
